Publisher Label,Publisher URI,"Body Name","Service Area Categorisation","Service Division Categorisation","Expenses Type","Date","Transaction Number","Amount","Capital or Revenue","Supplier Name","Merchant Category"
"Peterborough","http://opendatacommunities.org/id/unitary-authority/peterborough","Peterborough City Council","Education","Service Director Education","Services",01/09/2017 00:00:00,30119512,36966.87,"Revenue","Thomas Deacon Academy","Grant Payment"
"Peterborough","http://opendatacommunities.org/id/unitary-authority/peterborough","Peterborough City Council","Adults","Independent Sector Placements","Services",01/09/2017 00:00:00,30139649,1092,"Revenue","Select Support Partnerships Limited","Home Care"
"Peterborough","http://opendatacommunities.org/id/unitary-authority/peterborough","Peterborough City Council","Adults","Independent Sector Placements","Services",01/09/2017 00:00:00,30139651,832,"Revenue","Select Support Partnerships Limited","Home Care"
"Peterborough","http://opendatacommunities.org/id/unitary-authority/peterborough","Peterborough City Council","Adults","Independent Sector Placements","Services",01/09/2017 00:00:00,30139652,624,"Revenue","Select Support Partnerships Limited","Home Care"
"Peterborough","http://opendatacommunities.org/id/unitary-authority/peterborough","Peterborough City Council","Adults","Independent Sector Placements","Services",01/09/2017 00:00:00,30139663,728,"Revenue","Select Support Partnerships Limited","Home Care"
"Peterborough","http://opendatacommunities.org/id/unitary-authority/peterborough","Peterborough City Council","Adults","Independent Sector Placements","Services",01/09/2017 00:00:00,30139664,520,"Revenue","Select Support Partnerships Limited","Home Care"
"Peterborough","http://opendatacommunities.org/id/unitary-authority/peterborough","Peterborough City Council","Adults","Independent Sector Placements","Services",01/09/2017 00:00:00,30139732,728,"Revenue","Select Support Partnerships Limited","Home Care"
"Peterborough","http://opendatacommunities.org/id/unitary-authority/peterborough","Peterborough City Council","Adults","Independent Sector Placements","Services",01/09/2017 00:00:00,30139733,546,"Revenue","Select Support Partnerships Limited","Home Care"
"Peterborough","http://opendatacommunities.org/id/unitary-authority/peterborough","Peterborough City Council","Adults","Independent Sector Placements","Services",01/09/2017 00:00:00,30139736,585,"Revenue","Select Support Partnerships Limited","Home Care"
"Peterborough","http://opendatacommunities.org/id/unitary-authority/peterborough","Peterborough City Council","Adults","Independent Sector Placements","Services",01/09/2017 00:00:00,30139737,1001,"Revenue","Select Support Partnerships Limited","Home Care"
"Peterborough","http://opendatacommunities.org/id/unitary-authority/peterborough","Peterborough City Council","Adults","Independent Sector Placements","Services",01/09/2017 00:00:00,30139738,1105,"Revenue","Select Support Partnerships Limited","Home Care"
"Peterborough","http://opendatacommunities.org/id/unitary-authority/peterborough","Peterborough City Council","Adults","Independent Sector Placements","Services",01/09/2017 00:00:00,30139746,754,"Revenue","Select Support Partnerships Limited","Home Care"
"Peterborough","http://opendatacommunities.org/id/unitary-authority/peterborough","Peterborough City Council","Adults","Independent Sector Placements","Services",01/09/2017 00:00:00,30139749,546,"Revenue","Select Support Partnerships Limited","Home Care"
"Peterborough","http://opendatacommunities.org/id/unitary-authority/peterborough","Peterborough City Council","Adults","Independent Sector Placements","Services",01/09/2017 00:00:00,30139752,1036.75,"Revenue","Select Support Partnerships Limited","Home Care"
"Peterborough","http://opendatacommunities.org/id/unitary-authority/peterborough","Peterborough City Council","Adults","Independent Sector Placements","Services",01/09/2017 00:00:00,30139753,819,"Revenue","Select Support Partnerships Limited","Home Care"
"Peterborough","http://opendatacommunities.org/id/unitary-authority/peterborough","Peterborough City Council","Adults","Independent Sector Placements","Services",01/09/2017 00:00:00,30139754,637,"Revenue","Select Support Partnerships Limited","Home Care"
"Peterborough","http://opendatacommunities.org/id/unitary-authority/peterborough","Peterborough City Council","Adults","Independent Sector Placements","Services",01/09/2017 00:00:00,30139755,546,"Revenue","Select Support Partnerships Limited","Home Care"
"Peterborough","http://opendatacommunities.org/id/unitary-authority/peterborough","Peterborough City Council","Adults","Independent Sector Placements","Services",01/09/2017 00:00:00,30139756,546,"Revenue","Select Support Partnerships Limited","Home Care"
"Peterborough","http://opendatacommunities.org/id/unitary-authority/peterborough","Peterborough City Council","Adults","Independent Sector Placements","Services",01/09/2017 00:00:00,30139758,546,"Revenue","Select Support Partnerships Limited","Home Care"
"Peterborough","http://opendatacommunities.org/id/unitary-authority/peterborough","Peterborough City Council","Adults","Independent Sector Placements","Services",01/09/2017 00:00:00,30139759,780,"Revenue","Select Support Partnerships Limited","Home Care"
"Peterborough","http://opendatacommunities.org/id/unitary-authority/peterborough","Peterborough City Council","Adults","Block Contracts","Third Party Payments",01/09/2017 00:00:00,30141216,1999.2,"Revenue","Axiom Crossroads Care","Third Party Payments - Contract"
"Peterborough","http://opendatacommunities.org/id/unitary-authority/peterborough","Peterborough City Council","Corporate Property","Office Accomodation","Cleaning & Domestic Supplies",01/09/2017 00:00:00,30141254,1422.87,"Revenue","Beebys Ltd","Cleaning"
"Peterborough","http://opendatacommunities.org/id/unitary-authority/peterborough","Peterborough City Council","City Servs & Communications","Marketing & Communications","Services",01/09/2017 00:00:00,30141264,949,"Revenue","Fisherprint Ltd","Printing"
"Peterborough","http://opendatacommunities.org/id/unitary-authority/peterborough","Peterborough City Council","Adults","Block Contracts","Third Party Payments",01/09/2017 00:00:00,30141279,5664.4,"Revenue","Axiom Crossroads Care","Third Party Payments - Contract"
"Peterborough","http://opendatacommunities.org/id/unitary-authority/peterborough","Peterborough City Council","Adults","Block Contracts","Third Party Payments",01/09/2017 00:00:00,30141280,1999.2,"Revenue","Axiom Crossroads Care","Third Party Payments - Contract"
"Peterborough","http://opendatacommunities.org/id/unitary-authority/peterborough","Peterborough City Council","Adults","Therapy/Reablement/Community Equipment","Agency Staff",01/09/2017 00:00:00,30141283,5032,"Revenue","HCL Social Care","External Temporary Staff"
"Peterborough","http://opendatacommunities.org/id/unitary-authority/peterborough","Peterborough City Council","Adults","Therapy/Reablement/Community Equipment","Agency Staff",01/09/2017 00:00:00,30141284,2442,"Revenue","HCL Social Care","External Temporary Staff"
"Peterborough","http://opendatacommunities.org/id/unitary-authority/peterborough","Peterborough City Council","Adults","Therapy/Reablement/Community Equipment","Agency Staff",01/09/2017 00:00:00,30141285,5032,"Revenue","HCL Social Care","External Temporary Staff"
"Peterborough","http://opendatacommunities.org/id/unitary-authority/peterborough","Peterborough City Council","Corporate Items","Corporate Services","Services",01/09/2017 00:00:00,30141303,6038.3,"Revenue","East of England LGA","Publicity"
"Peterborough","http://opendatacommunities.org/id/unitary-authority/peterborough","Peterborough City Council","Adults","Therapy/Reablement/Community Equipment","Tools, Equipment, Furniture & Materials",01/09/2017 00:00:00,30141324,814.5,"Revenue","GRAHAME GARDNER LTD","Uniform/Protective Clothing"
"Peterborough","http://opendatacommunities.org/id/unitary-authority/peterborough","Peterborough City Council","Adults","Block Contracts","Third Party Payments",01/09/2017 00:00:00,30141346,6730.64,"Revenue","Hales Group Ltd","Third Party Payments - Contract"
"Peterborough","http://opendatacommunities.org/id/unitary-authority/peterborough","Peterborough City Council","Adults","Block Contracts","Third Party Payments",01/09/2017 00:00:00,30141348,2289.84,"Revenue","Hales Group Ltd","Third Party Payments - Contract"
"Peterborough","http://opendatacommunities.org/id/unitary-authority/peterborough","Peterborough City Council","Adults","Independent Sector Placements","Services",01/09/2017 00:00:00,30141368,2017.08,"Revenue","Bestcare Ltd","Residential Care"
"Peterborough","http://opendatacommunities.org/id/unitary-authority/peterborough","Peterborough City Council","Corporate Property","Commercial Propety","Services",01/09/2017 00:00:00,30141392,5500,"Revenue","Serco Ltd","Hired Services"
"Peterborough","http://opendatacommunities.org/id/unitary-authority/peterborough","Peterborough City Council","Financial Services","Finance","Agency Staff",01/09/2017 00:00:00,30141464,900.48,"Revenue","Morgan Hunt UK Ltd","External Temporary Staff"
"Peterborough","http://opendatacommunities.org/id/unitary-authority/peterborough","Peterborough City Council","Commissioning and Commercial Operations","Clare Lodge","Agency Staff",01/09/2017 00:00:00,30141914,629.42,"Revenue","Randstad Care Ltd","External Temporary Staff"
"Peterborough","http://opendatacommunities.org/id/unitary-authority/peterborough","Peterborough City Council","Adults","Independent Sector Placements","Services",01/09/2017 00:00:00,30141964,4456.84,"Revenue","Craegmoor Priory Group","Residential Care"
"Peterborough","http://opendatacommunities.org/id/unitary-authority/peterborough","Peterborough City Council","Adults","Independent Sector Placements","Services",01/09/2017 00:00:00,30141997,920.44,"Revenue","Craegmoor Priory Group","Residential Care"
"Peterborough","http://opendatacommunities.org/id/unitary-authority/peterborough","Peterborough City Council","Adults","Independent Sector Placements","Services",01/09/2017 00:00:00,30141998,4531.4,"Revenue","Craegmoor Priory Group","Residential Care"
"Peterborough","http://opendatacommunities.org/id/unitary-authority/peterborough","Peterborough City Council","Adults","Independent Sector Placements","Services",01/09/2017 00:00:00,30141999,4756,"Revenue","Craegmoor Priory Group","Residential Care"
"Peterborough","http://opendatacommunities.org/id/unitary-authority/peterborough","Peterborough City Council","Adults","Independent Sector Placements","Services",01/09/2017 00:00:00,30142000,3127.6,"Revenue","Craegmoor Priory Group","Residential Care"
"Peterborough","http://opendatacommunities.org/id/unitary-authority/peterborough","Peterborough City Council","Commissioning and Commercial Operations","Clare Lodge","Agency Staff",01/09/2017 00:00:00,30142281,1520,"Revenue","Wrixon Care Services","External Temporary Staff"
"Peterborough","http://opendatacommunities.org/id/unitary-authority/peterborough","Peterborough City Council","Commissioning and Commercial Operations","Clare Lodge","Agency Staff",01/09/2017 00:00:00,30142284,560,"Revenue","Wrixon Care Services","External Temporary Staff"
"Peterborough","http://opendatacommunities.org/id/unitary-authority/peterborough","Peterborough City Council","Commissioning and Commercial Operations","Clare Lodge","Agency Staff",01/09/2017 00:00:00,30142286,512,"Revenue","Wrixon Care Services","External Temporary Staff"
"Peterborough","http://opendatacommunities.org/id/unitary-authority/peterborough","Peterborough City Council","Commissioning and Commercial Operations","Clare Lodge","Agency Staff",01/09/2017 00:00:00,30142287,1760,"Revenue","Wrixon Care Services","External Temporary Staff"
"Peterborough","http://opendatacommunities.org/id/unitary-authority/peterborough","Peterborough City Council","Adults","Block Contracts","Third Party Payments",01/09/2017 00:00:00,30142353,5664.4,"Revenue","Axiom Crossroads Care","Third Party Payments - Contract"
"Peterborough","http://opendatacommunities.org/id/unitary-authority/peterborough","Peterborough City Council","Adults","Block Contracts","Third Party Payments",01/09/2017 00:00:00,30142354,5664.4,"Revenue","Axiom Crossroads Care","Third Party Payments - Contract"
"Peterborough","http://opendatacommunities.org/id/unitary-authority/peterborough","Peterborough City Council","Adults","Housing","Services",01/09/2017 00:00:00,30142421,595.56,"Revenue","DA Rosalia Hotel","Homelessness Bed & Breakfast Costs"
"Peterborough","http://opendatacommunities.org/id/unitary-authority/peterborough","Peterborough City Council","Adults","Housing","Services",01/09/2017 00:00:00,30142434,560,"Revenue","DA Rosalia Hotel","Homelessness Bed & Breakfast Costs"
"Peterborough","http://opendatacommunities.org/id/unitary-authority/peterborough","Peterborough City Council","Westcombe Engineering","Westcombe Engineering","Tools, Equipment, Furniture & Materials",01/09/2017 00:00:00,30142884,1686.36,"Revenue","Barron Clark Castings Ltd","Items For Resale"
"Peterborough","http://opendatacommunities.org/id/unitary-authority/peterborough","Peterborough City Council","Children's & Safeguarding","Early Help ASC/CSC","Agency Staff",01/09/2017 00:00:00,30142944,518.88,"Revenue","Reed Specialist Recruitment Limited","External Temporary Staff"
"Peterborough","http://opendatacommunities.org/id/unitary-authority/peterborough","Peterborough City Council","Adults","Independent Sector Placements","Services",01/09/2017 00:00:00,30143029,533,"Revenue","Select Support Partnerships Limited","Home Care"
"Peterborough","http://opendatacommunities.org/id/unitary-authority/peterborough","Peterborough City Council","Adults","Independent Sector Placements","Services",01/09/2017 00:00:00,30143031,1001,"Revenue","Select Support Partnerships Limited","Home Care"
"Peterborough","http://opendatacommunities.org/id/unitary-authority/peterborough","Peterborough City Council","Adults","Independent Sector Placements","Services",01/09/2017 00:00:00,30143041,516.75,"Revenue","Select Support Partnerships Limited","Home Care"
"Peterborough","http://opendatacommunities.org/id/unitary-authority/peterborough","Peterborough City Council","Adults","Independent Sector Placements","Services",01/09/2017 00:00:00,30143042,728,"Revenue","Select Support Partnerships Limited","Home Care"
"Peterborough","http://opendatacommunities.org/id/unitary-authority/peterborough","Peterborough City Council","Adults","Independent Sector Placements","Services",01/09/2017 00:00:00,30143056,513.5,"Revenue","Select Support Partnerships Limited","Home Care"
"Peterborough","http://opendatacommunities.org/id/unitary-authority/peterborough","Peterborough City Council","Adults","Independent Sector Placements","Services",01/09/2017 00:00:00,30143057,2288,"Revenue","Select Support Partnerships Limited","Home Care"
"Peterborough","http://opendatacommunities.org/id/unitary-authority/peterborough","Peterborough City Council","Adults","Independent Sector Placements","Services",01/09/2017 00:00:00,30143114,2236,"Revenue","Select Support Partnerships Limited","Home Care"
"Peterborough","http://opendatacommunities.org/id/unitary-authority/peterborough","Peterborough City Council","Adults","Housing","Services",01/09/2017 00:00:00,30143286,525,"Revenue","Eastfield Guesthouse","Homelessness Bed & Breakfast Costs"
"Peterborough","http://opendatacommunities.org/id/unitary-authority/peterborough","Peterborough City Council","Adults","Housing","Services",01/09/2017 00:00:00,30143287,525,"Revenue","Eastfield Guesthouse","Homelessness Bed & Breakfast Costs"
"Peterborough","http://opendatacommunities.org/id/unitary-authority/peterborough","Peterborough City Council","Adults","Housing","Services",01/09/2017 00:00:00,30143289,525,"Revenue","Eastfield Guesthouse","Homelessness Bed & Breakfast Costs"
"Peterborough","http://opendatacommunities.org/id/unitary-authority/peterborough","Peterborough City Council","Adults","Housing","Services",01/09/2017 00:00:00,30143290,525,"Revenue","Eastfield Guesthouse","Homelessness Bed & Breakfast Costs"
"Peterborough","http://opendatacommunities.org/id/unitary-authority/peterborough","Peterborough City Council","Adults","Housing","Services",01/09/2017 00:00:00,30143318,525,"Revenue","Eastfield Guesthouse","Homelessness Bed & Breakfast Costs"
"Peterborough","http://opendatacommunities.org/id/unitary-authority/peterborough","Peterborough City Council","Adults","Housing","Services",01/09/2017 00:00:00,30143320,525,"Revenue","Eastfield Guesthouse","Homelessness Bed & Breakfast Costs"
"Peterborough","http://opendatacommunities.org/id/unitary-authority/peterborough","Peterborough City Council","Adults","Housing","Services",01/09/2017 00:00:00,30143322,525,"Revenue","Eastfield Guesthouse","Homelessness Bed & Breakfast Costs"
"Peterborough","http://opendatacommunities.org/id/unitary-authority/peterborough","Peterborough City Council","Adults","Housing","Services",01/09/2017 00:00:00,30143330,525,"Revenue","Eastfield Guesthouse","Homelessness Bed & Breakfast Costs"
"Peterborough","http://opendatacommunities.org/id/unitary-authority/peterborough","Peterborough City Council","Adults","Housing","Services",01/09/2017 00:00:00,30143368,525,"Revenue","Eastfield Guesthouse","Homelessness Bed & Breakfast Costs"
"Peterborough","http://opendatacommunities.org/id/unitary-authority/peterborough","Peterborough City Council","Adults","Housing","Services",01/09/2017 00:00:00,30143369,525,"Revenue","Eastfield Guesthouse","Homelessness Bed & Breakfast Costs"
"Peterborough","http://opendatacommunities.org/id/unitary-authority/peterborough","Peterborough City Council","Adults","Housing","Services",01/09/2017 00:00:00,30143372,507.5,"Revenue","Eastfield Guesthouse","Homelessness Bed & Breakfast Costs"
"Peterborough","http://opendatacommunities.org/id/unitary-authority/peterborough","Peterborough City Council","Adults","Housing","Services",01/09/2017 00:00:00,30143376,507.5,"Revenue","Eastfield Guesthouse","Homelessness Bed & Breakfast Costs"
"Peterborough","http://opendatacommunities.org/id/unitary-authority/peterborough","Peterborough City Council","Adults","Housing","Services",01/09/2017 00:00:00,30143381,507.5,"Revenue","Eastfield Guesthouse","Homelessness Bed & Breakfast Costs"
"Peterborough","http://opendatacommunities.org/id/unitary-authority/peterborough","Peterborough City Council","Adults","Housing","Services",01/09/2017 00:00:00,30143384,507.5,"Revenue","Eastfield Guesthouse","Homelessness Bed & Breakfast Costs"
"Peterborough","http://opendatacommunities.org/id/unitary-authority/peterborough","Peterborough City Council","Adults","Housing","Services",01/09/2017 00:00:00,30143386,525,"Revenue","Eastfield Guesthouse","Homelessness Bed & Breakfast Costs"
"Peterborough","http://opendatacommunities.org/id/unitary-authority/peterborough","Peterborough City Council","ICT","ICT","Services",01/09/2017 00:00:00,30143404,61248.54,"Revenue","Arcus Global ltd","Computer Software"
"Peterborough","http://opendatacommunities.org/id/unitary-authority/peterborough","Peterborough City Council","Adults","Independent Sector Placements","Services",01/09/2017 00:00:00,30143416,2300,"Revenue","GCH (North London) Ltd - Tudors","Residential Care"
"Peterborough","http://opendatacommunities.org/id/unitary-authority/peterborough","Peterborough City Council","Corporate Property","Commercial Propety","Services",01/09/2017 00:00:00,30143430,3450,"Revenue","Barker Storey Matthews","Hired Services"
"Peterborough","http://opendatacommunities.org/id/unitary-authority/peterborough","Peterborough City Council","Legal & Democratic","Legal Services","Agency Staff",01/09/2017 00:00:00,30143882,1741.82,"Revenue","Reed Specialist Recruitment Limited","External Temporary Staff"
"Peterborough","http://opendatacommunities.org/id/unitary-authority/peterborough","Peterborough City Council","Legal & Democratic","Legal Services","Agency Staff",01/09/2017 00:00:00,30143893,502.68,"Revenue","Reed Specialist Recruitment Limited","External Temporary Staff"
"Peterborough","http://opendatacommunities.org/id/unitary-authority/peterborough","Peterborough City Council","Legal & Democratic","Legal Services","Agency Staff",01/09/2017 00:00:00,30143917,2025.38,"Revenue","Reed Specialist Recruitment Limited","External Temporary Staff"
"Peterborough","http://opendatacommunities.org/id/unitary-authority/peterborough","Peterborough City Council","Adults","Independent Sector Placements","Services",01/09/2017 00:00:00,30144115,1403.33,"Revenue","Craegmoor Priory Group","Residential Care"
"Peterborough","http://opendatacommunities.org/id/unitary-authority/peterborough","Peterborough City Council","Adults","Independent Sector Placements","Services",01/09/2017 00:00:00,30144117,9823.32,"Revenue","Craegmoor Priory Group","Residential Care"
"Peterborough","http://opendatacommunities.org/id/unitary-authority/peterborough","Peterborough City Council","Adults","Independent Sector Placements","Services",01/09/2017 00:00:00,30144120,4456.84,"Revenue","Craegmoor Priory Group","Residential Care"
"Peterborough","http://opendatacommunities.org/id/unitary-authority/peterborough","Peterborough City Council","Adults","Independent Sector Placements","Services",01/09/2017 00:00:00,30144123,4456.84,"Revenue","Craegmoor Priory Group","Residential Care"
"Peterborough","http://opendatacommunities.org/id/unitary-authority/peterborough","Peterborough City Council","Adults","Independent Sector Placements","Services",01/09/2017 00:00:00,30144163,529,"Revenue","Sagecare","Home Care"
"Peterborough","http://opendatacommunities.org/id/unitary-authority/peterborough","Peterborough City Council","Adults","Independent Sector Placements","Services",01/09/2017 00:00:00,30144164,639.64,"Revenue","Sagecare","Home Care"
"Peterborough","http://opendatacommunities.org/id/unitary-authority/peterborough","Peterborough City Council","Adults","Independent Sector Placements","Services",01/09/2017 00:00:00,30144168,537.25,"Revenue","Sagecare","Home Care"
"Peterborough","http://opendatacommunities.org/id/unitary-authority/peterborough","Peterborough City Council","Adults","Independent Sector Placements","Services",01/09/2017 00:00:00,30144170,724.65,"Revenue","Sagecare","Home Care"
"Peterborough","http://opendatacommunities.org/id/unitary-authority/peterborough","Peterborough City Council","Peterborough Serco Strategic Partnership","Peterborough Serco Strategic Partnership","Services",01/09/2017 00:00:00,30144171,15000,"Revenue","Postage By Phone - Pitney Bowes Ltd","Postage"
"Peterborough","http://opendatacommunities.org/id/unitary-authority/peterborough","Peterborough City Council","Corporate","Corporate","Non Revenue",01/09/2017 00:00:00,30144174,9156.9,"Capital","Southview Building Solutions Ltd","Building And Site Works"
"Peterborough","http://opendatacommunities.org/id/unitary-authority/peterborough","Peterborough City Council","Corporate","Corporate","Non Revenue",01/09/2017 00:00:00,30144175,134822.16,"Capital","Southview Building Solutions Ltd","Building And Site Works"
"Peterborough","http://opendatacommunities.org/id/unitary-authority/peterborough","Peterborough City Council","Adults","Therapy/Reablement/Community Equipment","Tools, Equipment, Furniture & Materials",01/09/2017 00:00:00,30144195,2993,"Revenue","P F S Builders & Contractors","Mobility Equipment"
"Peterborough","http://opendatacommunities.org/id/unitary-authority/peterborough","Peterborough City Council","Adults","Therapy/Reablement/Community Equipment","Tools, Equipment, Furniture & Materials",01/09/2017 00:00:00,30144196,2457,"Revenue","P F S Builders & Contractors","Mobility Equipment"
"Peterborough","http://opendatacommunities.org/id/unitary-authority/peterborough","Peterborough City Council","Corporate","Corporate","Non Revenue",01/09/2017 00:00:00,30144203,33696.82,"Capital","Mears Ltd","Building And Site Works"
"Peterborough","http://opendatacommunities.org/id/unitary-authority/peterborough","Peterborough City Council","Legal & Democratic","Legal Services","Agency Staff",01/09/2017 00:00:00,30144212,1590.28,"Revenue","Reed Specialist Recruitment Limited","External Temporary Staff"
"Peterborough","http://opendatacommunities.org/id/unitary-authority/peterborough","Peterborough City Council","Adults","Block Contracts","Third Party Payments",01/09/2017 00:00:00,30144223,2017.17,"Revenue","Fins Care Ltd t/a St Margarets Rest Home","Third Party Payments - Contract"
"Peterborough","http://opendatacommunities.org/id/unitary-authority/peterborough","Peterborough City Council","Children's & Safeguarding","Early Help ASC/CSC","Services",01/09/2017 00:00:00,30144265,2670,"Revenue","Kevin Sanders Events","Programmes"
"Peterborough","http://opendatacommunities.org/id/unitary-authority/peterborough","Peterborough City Council","Adults","Therapy/Reablement/Community Equipment","Tools, Equipment, Furniture & Materials",01/09/2017 00:00:00,30144268,111458.73,"Revenue","NRS Healthcare","Occupational Therapy Equipment"
"Peterborough","http://opendatacommunities.org/id/unitary-authority/peterborough","Peterborough City Council","Adults","Therapy/Reablement/Community Equipment","Tools, Equipment, Furniture & Materials",01/09/2017 00:00:00,30144269,64223.39,"Revenue","NRS Healthcare","Occupational Therapy Equipment"
"Peterborough","http://opendatacommunities.org/id/unitary-authority/peterborough","Peterborough City Council","Peterborough Highway Services","Transport & Infrastructure Commissioning","Services",01/09/2017 00:00:00,30144282,13573.79,"Revenue","Statutory Payment of Concessionary Fares to Bus Provider","Contractors"
"Peterborough","http://opendatacommunities.org/id/unitary-authority/peterborough","Peterborough City Council","Commissioning and Commercial Operations","Commissioning Team","Services",01/09/2017 00:00:00,30144293,2750,"Revenue","Cross Keys Homes","Consultants Fees"
"Peterborough","http://opendatacommunities.org/id/unitary-authority/peterborough","Peterborough City Council","Adults","Independent Sector Placements","Services",01/09/2017 00:00:00,30144338,2959.17,"Revenue","THE CLAIR FRANCIS RETIREMENT HOME","Residential Care"
"Peterborough","http://opendatacommunities.org/id/unitary-authority/peterborough","Peterborough City Council","Children's & Safeguarding","External Education Placements","Services",01/09/2017 00:00:00,30144350,19042.99,"Revenue","Cambian Childcare Ltd","Boarding Out Allowances"
"Peterborough","http://opendatacommunities.org/id/unitary-authority/peterborough","Peterborough City Council","Children's & Safeguarding","Early Help ASC/CSC","Services",01/09/2017 00:00:00,30144354,10000,"Revenue","The Princes Trust","Programmes"
"Peterborough","http://opendatacommunities.org/id/unitary-authority/peterborough","Peterborough City Council","Adults","Independent Sector Placements","Services",01/09/2017 00:00:00,30144364,5600,"Revenue","Community Care Solutions Ltd","Residential Care"
"Peterborough","http://opendatacommunities.org/id/unitary-authority/peterborough","Peterborough City Council","Adults","Independent Sector Placements","Services",01/09/2017 00:00:00,30144365,5600,"Revenue","Community Care Solutions Ltd","Residential Care"
"Peterborough","http://opendatacommunities.org/id/unitary-authority/peterborough","Peterborough City Council","Corporate","Corporate","Non Revenue",01/09/2017 00:00:00,30144419,2609.23,"Capital","G & J Roffe Limited","Grant Payment"
"Peterborough","http://opendatacommunities.org/id/unitary-authority/peterborough","Peterborough City Council","Adults","Housing","Services",01/09/2017 00:00:00,30144456,525,"Revenue","Eastfield Guesthouse","Homelessness Bed & Breakfast Costs"
"Peterborough","http://opendatacommunities.org/id/unitary-authority/peterborough","Peterborough City Council","Adults","Housing","Services",01/09/2017 00:00:00,30144457,525,"Revenue","Eastfield Guesthouse","Homelessness Bed & Breakfast Costs"
"Peterborough","http://opendatacommunities.org/id/unitary-authority/peterborough","Peterborough City Council","Adults","Housing","Services",01/09/2017 00:00:00,30144459,525,"Revenue","Eastfield Guesthouse","Homelessness Bed & Breakfast Costs"
"Peterborough","http://opendatacommunities.org/id/unitary-authority/peterborough","Peterborough City Council","Adults","Housing","Services",01/09/2017 00:00:00,30144465,525,"Revenue","Eastfield Guesthouse","Homelessness Bed & Breakfast Costs"
"Peterborough","http://opendatacommunities.org/id/unitary-authority/peterborough","Peterborough City Council","Adults","Housing","Services",01/09/2017 00:00:00,30144466,525,"Revenue","Eastfield Guesthouse","Homelessness Bed & Breakfast Costs"
"Peterborough","http://opendatacommunities.org/id/unitary-authority/peterborough","Peterborough City Council","Adults","Housing","Services",01/09/2017 00:00:00,30144468,525,"Revenue","Eastfield Guesthouse","Homelessness Bed & Breakfast Costs"
"Peterborough","http://opendatacommunities.org/id/unitary-authority/peterborough","Peterborough City Council","Adults","Housing","Services",01/09/2017 00:00:00,30144469,525,"Revenue","Eastfield Guesthouse","Homelessness Bed & Breakfast Costs"
"Peterborough","http://opendatacommunities.org/id/unitary-authority/peterborough","Peterborough City Council","Adults","Housing","Services",01/09/2017 00:00:00,30144470,525,"Revenue","Eastfield Guesthouse","Homelessness Bed & Breakfast Costs"
"Peterborough","http://opendatacommunities.org/id/unitary-authority/peterborough","Peterborough City Council","Adults","Independent Sector Placements","Services",01/09/2017 00:00:00,8000095724,992.78,"Revenue","Hales Group Ltd","Home Care"
"Peterborough","http://opendatacommunities.org/id/unitary-authority/peterborough","Peterborough City Council","Adults","Independent Sector Placements","Services",01/09/2017 00:00:00,8000095725,1096.28,"Revenue","Hales Group Ltd","Home Care"
"Peterborough","http://opendatacommunities.org/id/unitary-authority/peterborough","Peterborough City Council","Adults","Independent Sector Placements","Services",01/09/2017 00:00:00,8000095727,707.75,"Revenue","Hales Group Ltd","Home Care"
"Peterborough","http://opendatacommunities.org/id/unitary-authority/peterborough","Peterborough City Council","Adults","Independent Sector Placements","Services",01/09/2017 00:00:00,8000095731,1999.51,"Revenue","Hales Group Ltd","Home Care"
"Peterborough","http://opendatacommunities.org/id/unitary-authority/peterborough","Peterborough City Council","Adults","Independent Sector Placements","Services",01/09/2017 00:00:00,8000095734,598.87,"Revenue","Hales Group Ltd","Home Care"
"Peterborough","http://opendatacommunities.org/id/unitary-authority/peterborough","Peterborough City Council","Adults","Independent Sector Placements","Services",01/09/2017 00:00:00,8000095737,1068.61,"Revenue","Hales Group Ltd","Home Care"
"Peterborough","http://opendatacommunities.org/id/unitary-authority/peterborough","Peterborough City Council","Adults","Independent Sector Placements","Services",01/09/2017 00:00:00,8000095738,1333.91,"Revenue","Hales Group Ltd","Home Care"
"Peterborough","http://opendatacommunities.org/id/unitary-authority/peterborough","Peterborough City Council","Adults","Independent Sector Placements","Services",01/09/2017 00:00:00,8000095741,771.8,"Revenue","Hales Group Ltd","Home Care"
"Peterborough","http://opendatacommunities.org/id/unitary-authority/peterborough","Peterborough City Council","Adults","Independent Sector Placements","Services",01/09/2017 00:00:00,8000095742,2334.62,"Revenue","Hales Group Ltd","Home Care"
"Peterborough","http://opendatacommunities.org/id/unitary-authority/peterborough","Peterborough City Council","Adults","Independent Sector Placements","Services",01/09/2017 00:00:00,8000095781,1805.04,"Revenue","Allied Healthcare (UK) Ltd","Home Care"
"Peterborough","http://opendatacommunities.org/id/unitary-authority/peterborough","Peterborough City Council","Adults","Independent Sector Placements","Services",01/09/2017 00:00:00,8000095783,1703.52,"Revenue","Allied Healthcare (UK) Ltd","Home Care"
"Peterborough","http://opendatacommunities.org/id/unitary-authority/peterborough","Peterborough City Council","Adults","Independent Sector Placements","Services",01/09/2017 00:00:00,8000095788,791.28,"Revenue","Allied Healthcare (UK) Ltd","Home Care"
"Peterborough","http://opendatacommunities.org/id/unitary-authority/peterborough","Peterborough City Council","Adults","Independent Sector Placements","Services",01/09/2017 00:00:00,8000095789,1742.69,"Revenue","Allied Healthcare (UK) Ltd","Home Care"
"Peterborough","http://opendatacommunities.org/id/unitary-authority/peterborough","Peterborough City Council","Adults","Independent Sector Placements","Services",01/09/2017 00:00:00,8000095796,741.74,"Revenue","Allied Healthcare (UK) Ltd","Home Care"
"Peterborough","http://opendatacommunities.org/id/unitary-authority/peterborough","Peterborough City Council","Adults","Independent Sector Placements","Services",01/09/2017 00:00:00,8000095797,657.22,"Revenue","Allied Healthcare (UK) Ltd","Home Care"
"Peterborough","http://opendatacommunities.org/id/unitary-authority/peterborough","Peterborough City Council","Adults","Independent Sector Placements","Services",01/09/2017 00:00:00,8000095798,571.82,"Revenue","Allied Healthcare (UK) Ltd","Home Care"
"Peterborough","http://opendatacommunities.org/id/unitary-authority/peterborough","Peterborough City Council","Adults","Independent Sector Placements","Services",01/09/2017 00:00:00,8000095801,580.61,"Revenue","Allied Healthcare (UK) Ltd","Home Care"
"Peterborough","http://opendatacommunities.org/id/unitary-authority/peterborough","Peterborough City Council","Adults","Independent Sector Placements","Services",01/09/2017 00:00:00,8000095865,778.82,"Revenue","Hales Group Ltd","Home Care"
"Peterborough","http://opendatacommunities.org/id/unitary-authority/peterborough","Peterborough City Council","Adults","Independent Sector Placements","Services",01/09/2017 00:00:00,8000095867,1488.3,"Revenue","Hales Group Ltd","Home Care"
"Peterborough","http://opendatacommunities.org/id/unitary-authority/peterborough","Peterborough City Council","Adults","Independent Sector Placements","Services",01/09/2017 00:00:00,8000095869,1258.46,"Revenue","Hales Group Ltd","Home Care"
"Peterborough","http://opendatacommunities.org/id/unitary-authority/peterborough","Peterborough City Council","Adults","Independent Sector Placements","Services",01/09/2017 00:00:00,8000095870,679.16,"Revenue","Hales Group Ltd","Home Care"
"Peterborough","http://opendatacommunities.org/id/unitary-authority/peterborough","Peterborough City Council","Adults","Independent Sector Placements","Services",01/09/2017 00:00:00,8000095874,2198.98,"Revenue","Hales Group Ltd","Home Care"
"Peterborough","http://opendatacommunities.org/id/unitary-authority/peterborough","Peterborough City Council","Adults","Independent Sector Placements","Services",01/09/2017 00:00:00,8000095875,549.08,"Revenue","Hales Group Ltd","Home Care"
"Peterborough","http://opendatacommunities.org/id/unitary-authority/peterborough","Peterborough City Council","Adults","Independent Sector Placements","Services",01/09/2017 00:00:00,8000095878,708.08,"Revenue","Hales Group Ltd","Home Care"
"Peterborough","http://opendatacommunities.org/id/unitary-authority/peterborough","Peterborough City Council","Adults","Independent Sector Placements","Services",01/09/2017 00:00:00,8000095880,3135.42,"Revenue","Hales Group Ltd","Home Care"
"Peterborough","http://opendatacommunities.org/id/unitary-authority/peterborough","Peterborough City Council","Adults","Independent Sector Placements","Services",01/09/2017 00:00:00,8000095881,809.96,"Revenue","Hales Group Ltd","Home Care"
"Peterborough","http://opendatacommunities.org/id/unitary-authority/peterborough","Peterborough City Council","Adults","Independent Sector Placements","Services",01/09/2017 00:00:00,8000095882,1809.06,"Revenue","Hales Group Ltd","Home Care"
"Peterborough","http://opendatacommunities.org/id/unitary-authority/peterborough","Peterborough City Council","Adults","Independent Sector Placements","Services",01/09/2017 00:00:00,8000095883,815.92,"Revenue","Hales Group Ltd","Home Care"
"Peterborough","http://opendatacommunities.org/id/unitary-authority/peterborough","Peterborough City Council","Adults","Independent Sector Placements","Services",01/09/2017 00:00:00,8000095884,538.42,"Revenue","Hales Group Ltd","Home Care"
"Peterborough","http://opendatacommunities.org/id/unitary-authority/peterborough","Peterborough City Council","Adults","Independent Sector Placements","Services",01/09/2017 00:00:00,8000095885,575.82,"Revenue","Hales Group Ltd","Home Care"
"Peterborough","http://opendatacommunities.org/id/unitary-authority/peterborough","Peterborough City Council","Adults","Independent Sector Placements","Services",01/09/2017 00:00:00,8000095890,1830,"Revenue","Hales Group Ltd","Home Care"
"Peterborough","http://opendatacommunities.org/id/unitary-authority/peterborough","Peterborough City Council","Adults","Independent Sector Placements","Services",01/09/2017 00:00:00,8000095891,665.56,"Revenue","Hales Group Ltd","Home Care"
"Peterborough","http://opendatacommunities.org/id/unitary-authority/peterborough","Peterborough City Council","Adults","Independent Sector Placements","Services",01/09/2017 00:00:00,8000095894,561.4,"Revenue","Hales Group Ltd","Home Care"
"Peterborough","http://opendatacommunities.org/id/unitary-authority/peterborough","Peterborough City Council","Adults","Independent Sector Placements","Services",01/09/2017 00:00:00,8000095897,2595.54,"Revenue","Hales Group Ltd","Home Care"
"Peterborough","http://opendatacommunities.org/id/unitary-authority/peterborough","Peterborough City Council","Adults","Independent Sector Placements","Services",01/09/2017 00:00:00,8000095898,516.64,"Revenue","Hales Group Ltd","Home Care"
"Peterborough","http://opendatacommunities.org/id/unitary-authority/peterborough","Peterborough City Council","Adults","Independent Sector Placements","Services",01/09/2017 00:00:00,8000095899,636.9,"Revenue","Hales Group Ltd","Home Care"
"Peterborough","http://opendatacommunities.org/id/unitary-authority/peterborough","Peterborough City Council","Adults","Independent Sector Placements","Services",01/09/2017 00:00:00,8000095902,622.26,"Revenue","Hales Group Ltd","Home Care"
"Peterborough","http://opendatacommunities.org/id/unitary-authority/peterborough","Peterborough City Council","Adults","Independent Sector Placements","Services",01/09/2017 00:00:00,8000095903,1487.32,"Revenue","Hales Group Ltd","Home Care"
"Peterborough","http://opendatacommunities.org/id/unitary-authority/peterborough","Peterborough City Council","Adults","Independent Sector Placements","Services",01/09/2017 00:00:00,8000095908,651.7,"Revenue","Hales Group Ltd","Home Care"
"Peterborough","http://opendatacommunities.org/id/unitary-authority/peterborough","Peterborough City Council","Adults","Independent Sector Placements","Services",01/09/2017 00:00:00,8000095912,910.78,"Revenue","Hales Group Ltd","Home Care"
"Peterborough","http://opendatacommunities.org/id/unitary-authority/peterborough","Peterborough City Council","Adults","Independent Sector Placements","Services",01/09/2017 00:00:00,8000095913,621.98,"Revenue","Hales Group Ltd","Home Care"
"Peterborough","http://opendatacommunities.org/id/unitary-authority/peterborough","Peterborough City Council","Adults","Independent Sector Placements","Services",01/09/2017 00:00:00,8000095917,1094.78,"Revenue","Hales Group Ltd","Home Care"
"Peterborough","http://opendatacommunities.org/id/unitary-authority/peterborough","Peterborough City Council","Adults","Independent Sector Placements","Services",01/09/2017 00:00:00,8000095918,1367.31,"Revenue","Hales Group Ltd","Home Care"
"Peterborough","http://opendatacommunities.org/id/unitary-authority/peterborough","Peterborough City Council","Adults","Independent Sector Placements","Services",01/09/2017 00:00:00,8000095919,1012.26,"Revenue","Hales Group Ltd","Home Care"
"Peterborough","http://opendatacommunities.org/id/unitary-authority/peterborough","Peterborough City Council","Adults","Independent Sector Placements","Services",01/09/2017 00:00:00,8000095920,1283.76,"Revenue","Hales Group Ltd","Home Care"
"Peterborough","http://opendatacommunities.org/id/unitary-authority/peterborough","Peterborough City Council","Adults","Independent Sector Placements","Services",01/09/2017 00:00:00,8000095922,635.08,"Revenue","Hales Group Ltd","Home Care"
"Peterborough","http://opendatacommunities.org/id/unitary-authority/peterborough","Peterborough City Council","Adults","Independent Sector Placements","Services",01/09/2017 00:00:00,8000095925,512.78,"Revenue","Allied Healthcare (UK) Ltd","Home Care"
"Peterborough","http://opendatacommunities.org/id/unitary-authority/peterborough","Peterborough City Council","Adults","Independent Sector Placements","Services",01/09/2017 00:00:00,8000095926,4431.64,"Revenue","Hales Group Ltd","Home Care"
"Peterborough","http://opendatacommunities.org/id/unitary-authority/peterborough","Peterborough City Council","Adults","Independent Sector Placements","Services",01/09/2017 00:00:00,8000095927,5063.52,"Revenue","Hales Group Ltd","Home Care"
"Peterborough","http://opendatacommunities.org/id/unitary-authority/peterborough","Peterborough City Council","Adults","Independent Sector Placements","Services",01/09/2017 00:00:00,8000096018,772.7,"Revenue","Sagecare","Home Care"
"Peterborough","http://opendatacommunities.org/id/unitary-authority/peterborough","Peterborough City Council","Adults","Independent Sector Placements","Services",01/09/2017 00:00:00,8000096021,855,"Revenue","Sagecare","Home Care"
"Peterborough","http://opendatacommunities.org/id/unitary-authority/peterborough","Peterborough City Council","Adults","Independent Sector Placements","Services",01/09/2017 00:00:00,8000096022,544.93,"Revenue","Sagecare","Home Care"
"Peterborough","http://opendatacommunities.org/id/unitary-authority/peterborough","Peterborough City Council","Adults","Independent Sector Placements","Services",01/09/2017 00:00:00,8000096023,906.91,"Revenue","Sagecare","Home Care"
"Peterborough","http://opendatacommunities.org/id/unitary-authority/peterborough","Peterborough City Council","Adults","Independent Sector Placements","Services",01/09/2017 00:00:00,8000096025,2133.29,"Revenue","Sagecare","Home Care"
"Peterborough","http://opendatacommunities.org/id/unitary-authority/peterborough","Peterborough City Council","Adults","Independent Sector Placements","Services",01/09/2017 00:00:00,8000096029,956.34,"Revenue","Sagecare","Home Care"
"Peterborough","http://opendatacommunities.org/id/unitary-authority/peterborough","Peterborough City Council","Adults","Independent Sector Placements","Services",01/09/2017 00:00:00,8000096030,2114.81,"Revenue","Sagecare","Home Care"
"Peterborough","http://opendatacommunities.org/id/unitary-authority/peterborough","Peterborough City Council","Adults","Independent Sector Placements","Services",01/09/2017 00:00:00,8000096033,672.21,"Revenue","Sagecare","Home Care"
"Peterborough","http://opendatacommunities.org/id/unitary-authority/peterborough","Peterborough City Council","Adults","Independent Sector Placements","Services",01/09/2017 00:00:00,8000096037,511.43,"Revenue","Sagecare","Home Care"
"Peterborough","http://opendatacommunities.org/id/unitary-authority/peterborough","Peterborough City Council","Adults","Independent Sector Placements","Services",01/09/2017 00:00:00,8000096038,720.95,"Revenue","Sagecare","Home Care"
"Peterborough","http://opendatacommunities.org/id/unitary-authority/peterborough","Peterborough City Council","Adults","Independent Sector Placements","Services",01/09/2017 00:00:00,8000096040,679.14,"Revenue","Sagecare","Home Care"
"Peterborough","http://opendatacommunities.org/id/unitary-authority/peterborough","Peterborough City Council","Adults","Independent Sector Placements","Services",01/09/2017 00:00:00,8000096043,949.41,"Revenue","Sagecare","Home Care"
"Peterborough","http://opendatacommunities.org/id/unitary-authority/peterborough","Peterborough City Council","Adults","Independent Sector Placements","Services",01/09/2017 00:00:00,8000096045,856.75,"Revenue","Sagecare","Home Care"
"Peterborough","http://opendatacommunities.org/id/unitary-authority/peterborough","Peterborough City Council","Adults","Independent Sector Placements","Services",01/09/2017 00:00:00,8000096046,568.75,"Revenue","Sagecare","Home Care"
"Peterborough","http://opendatacommunities.org/id/unitary-authority/peterborough","Peterborough City Council","Adults","Independent Sector Placements","Services",01/09/2017 00:00:00,8000096047,582.12,"Revenue","Sagecare","Home Care"
"Peterborough","http://opendatacommunities.org/id/unitary-authority/peterborough","Peterborough City Council","Adults","Independent Sector Placements","Services",01/09/2017 00:00:00,8000096050,1916.38,"Revenue","Sagecare","Home Care"
"Peterborough","http://opendatacommunities.org/id/unitary-authority/peterborough","Peterborough City Council","Adults","Independent Sector Placements","Services",01/09/2017 00:00:00,8000096052,773.85,"Revenue","Sagecare","Home Care"
"Peterborough","http://opendatacommunities.org/id/unitary-authority/peterborough","Peterborough City Council","Adults","Independent Sector Placements","Services",01/09/2017 00:00:00,8000096054,547.93,"Revenue","Sagecare","Home Care"
"Peterborough","http://opendatacommunities.org/id/unitary-authority/peterborough","Peterborough City Council","Adults","Independent Sector Placements","Services",01/09/2017 00:00:00,8000096055,590.9,"Revenue","Sagecare","Home Care"
"Peterborough","http://opendatacommunities.org/id/unitary-authority/peterborough","Peterborough City Council","Adults","Independent Sector Placements","Services",01/09/2017 00:00:00,8000096059,918.69,"Revenue","Sagecare","Home Care"
"Peterborough","http://opendatacommunities.org/id/unitary-authority/peterborough","Peterborough City Council","Adults","Independent Sector Placements","Services",01/09/2017 00:00:00,8000096061,668.05,"Revenue","Sagecare","Home Care"
"Peterborough","http://opendatacommunities.org/id/unitary-authority/peterborough","Peterborough City Council","Adults","Independent Sector Placements","Services",01/09/2017 00:00:00,8000096063,4089.39,"Revenue","Sagecare","Home Care"
"Peterborough","http://opendatacommunities.org/id/unitary-authority/peterborough","Peterborough City Council","Adults","Independent Sector Placements","Services",01/09/2017 00:00:00,8000096064,562.25,"Revenue","Sagecare","Home Care"
"Peterborough","http://opendatacommunities.org/id/unitary-authority/peterborough","Peterborough City Council","Adults","Independent Sector Placements","Services",01/09/2017 00:00:00,8000096065,747.98,"Revenue","Sagecare","Home Care"
"Peterborough","http://opendatacommunities.org/id/unitary-authority/peterborough","Peterborough City Council","Adults","Independent Sector Placements","Services",01/09/2017 00:00:00,8000096066,558.1,"Revenue","Sagecare","Home Care"
"Peterborough","http://opendatacommunities.org/id/unitary-authority/peterborough","Peterborough City Council","Adults","Independent Sector Placements","Services",01/09/2017 00:00:00,8000096067,707.09,"Revenue","Sagecare","Home Care"
"Peterborough","http://opendatacommunities.org/id/unitary-authority/peterborough","Peterborough City Council","Adults","Independent Sector Placements","Services",01/09/2017 00:00:00,8000096072,618.39,"Revenue","Sagecare","Home Care"
"Peterborough","http://opendatacommunities.org/id/unitary-authority/peterborough","Peterborough City Council","Adults","Independent Sector Placements","Services",01/09/2017 00:00:00,8000096074,754.45,"Revenue","Sagecare","Home Care"
"Peterborough","http://opendatacommunities.org/id/unitary-authority/peterborough","Peterborough City Council","Adults","Independent Sector Placements","Services",01/09/2017 00:00:00,8000096079,670.59,"Revenue","Sagecare","Home Care"
"Peterborough","http://opendatacommunities.org/id/unitary-authority/peterborough","Peterborough City Council","Adults","Independent Sector Placements","Services",01/09/2017 00:00:00,8000096080,508.2,"Revenue","Sagecare","Home Care"
"Peterborough","http://opendatacommunities.org/id/unitary-authority/peterborough","Peterborough City Council","Adults","Independent Sector Placements","Services",01/09/2017 00:00:00,8000096081,826.5,"Revenue","Sagecare","Home Care"
"Peterborough","http://opendatacommunities.org/id/unitary-authority/peterborough","Peterborough City Council","Adults","Independent Sector Placements","Services",01/09/2017 00:00:00,8000096082,510.28,"Revenue","Sagecare","Home Care"
"Peterborough","http://opendatacommunities.org/id/unitary-authority/peterborough","Peterborough City Council","Adults","Independent Sector Placements","Services",01/09/2017 00:00:00,8000096085,1200.74,"Revenue","Sagecare","Home Care"
"Peterborough","http://opendatacommunities.org/id/unitary-authority/peterborough","Peterborough City Council","Adults","Independent Sector Placements","Services",01/09/2017 00:00:00,8000096087,1519.06,"Revenue","Sagecare","Home Care"
"Peterborough","http://opendatacommunities.org/id/unitary-authority/peterborough","Peterborough City Council","Adults","Independent Sector Placements","Services",01/09/2017 00:00:00,8000096090,1885.25,"Revenue","Sagecare","Home Care"
"Peterborough","http://opendatacommunities.org/id/unitary-authority/peterborough","Peterborough City Council","Adults","Independent Sector Placements","Services",01/09/2017 00:00:00,8000096091,1935.78,"Revenue","Sagecare","Home Care"
"Peterborough","http://opendatacommunities.org/id/unitary-authority/peterborough","Peterborough City Council","Adults","Independent Sector Placements","Services",01/09/2017 00:00:00,8000096093,941.25,"Revenue","Sagecare","Home Care"
"Peterborough","http://opendatacommunities.org/id/unitary-authority/peterborough","Peterborough City Council","Adults","Independent Sector Placements","Services",01/09/2017 00:00:00,8000096094,589,"Revenue","Sagecare","Home Care"
"Peterborough","http://opendatacommunities.org/id/unitary-authority/peterborough","Peterborough City Council","Adults","Independent Sector Placements","Services",01/09/2017 00:00:00,8000096095,1030.75,"Revenue","Sagecare","Home Care"
"Peterborough","http://opendatacommunities.org/id/unitary-authority/peterborough","Peterborough City Council","Adults","Independent Sector Placements","Services",01/09/2017 00:00:00,8000096096,795.8,"Revenue","Sagecare","Home Care"
"Peterborough","http://opendatacommunities.org/id/unitary-authority/peterborough","Peterborough City Council","Adults","Independent Sector Placements","Services",01/09/2017 00:00:00,8000096097,834.14,"Revenue","Sagecare","Home Care"
"Peterborough","http://opendatacommunities.org/id/unitary-authority/peterborough","Peterborough City Council","Adults","Independent Sector Placements","Services",01/09/2017 00:00:00,8000096099,842.89,"Revenue","Sagecare","Home Care"
"Peterborough","http://opendatacommunities.org/id/unitary-authority/peterborough","Peterborough City Council","Adults","Independent Sector Placements","Services",01/09/2017 00:00:00,8000096100,1153.85,"Revenue","Sagecare","Home Care"
"Peterborough","http://opendatacommunities.org/id/unitary-authority/peterborough","Peterborough City Council","Adults","Independent Sector Placements","Services",01/09/2017 00:00:00,8000096103,905.98,"Revenue","Sagecare","Home Care"
"Peterborough","http://opendatacommunities.org/id/unitary-authority/peterborough","Peterborough City Council","Adults","Independent Sector Placements","Services",01/09/2017 00:00:00,8000096104,778.93,"Revenue","Sagecare","Home Care"
"Peterborough","http://opendatacommunities.org/id/unitary-authority/peterborough","Peterborough City Council","Adults","Independent Sector Placements","Services",01/09/2017 00:00:00,8000096105,672.21,"Revenue","Sagecare","Home Care"
"Peterborough","http://opendatacommunities.org/id/unitary-authority/peterborough","Peterborough City Council","Adults","Independent Sector Placements","Services",01/09/2017 00:00:00,8000096108,1284.59,"Revenue","Sagecare","Home Care"
"Peterborough","http://opendatacommunities.org/id/unitary-authority/peterborough","Peterborough City Council","Adults","Independent Sector Placements","Services",01/09/2017 00:00:00,8000096110,808.5,"Revenue","Sagecare","Home Care"
"Peterborough","http://opendatacommunities.org/id/unitary-authority/peterborough","Peterborough City Council","Adults","Independent Sector Placements","Services",01/09/2017 00:00:00,8000096111,1220.14,"Revenue","Sagecare","Home Care"
"Peterborough","http://opendatacommunities.org/id/unitary-authority/peterborough","Peterborough City Council","Adults","Independent Sector Placements","Services",01/09/2017 00:00:00,8000096112,1922.84,"Revenue","Sagecare","Home Care"
"Peterborough","http://opendatacommunities.org/id/unitary-authority/peterborough","Peterborough City Council","Adults","Independent Sector Placements","Services",01/09/2017 00:00:00,8000096113,1745.44,"Revenue","Sagecare","Home Care"
"Peterborough","http://opendatacommunities.org/id/unitary-authority/peterborough","Peterborough City Council","Adults","Independent Sector Placements","Services",01/09/2017 00:00:00,8000096115,701.32,"Revenue","Sagecare","Home Care"
"Peterborough","http://opendatacommunities.org/id/unitary-authority/peterborough","Peterborough City Council","Adults","Independent Sector Placements","Services",01/09/2017 00:00:00,8000096119,1729.04,"Revenue","Sagecare","Home Care"
"Peterborough","http://opendatacommunities.org/id/unitary-authority/peterborough","Peterborough City Council","Adults","Independent Sector Placements","Services",01/09/2017 00:00:00,8000096123,590.67,"Revenue","Sagecare","Home Care"
"Peterborough","http://opendatacommunities.org/id/unitary-authority/peterborough","Peterborough City Council","Adults","Independent Sector Placements","Services",01/09/2017 00:00:00,8000096128,867.41,"Revenue","Sagecare","Home Care"
"Peterborough","http://opendatacommunities.org/id/unitary-authority/peterborough","Peterborough City Council","Adults","Independent Sector Placements","Services",01/09/2017 00:00:00,8000096129,636.41,"Revenue","Sagecare","Home Care"
"Peterborough","http://opendatacommunities.org/id/unitary-authority/peterborough","Peterborough City Council","Adults","Independent Sector Placements","Services",01/09/2017 00:00:00,8000096134,1940.4,"Revenue","Sagecare","Home Care"
"Peterborough","http://opendatacommunities.org/id/unitary-authority/peterborough","Peterborough City Council","Adults","Independent Sector Placements","Services",01/09/2017 00:00:00,8000096138,1801.34,"Revenue","Sagecare","Home Care"
"Peterborough","http://opendatacommunities.org/id/unitary-authority/peterborough","Peterborough City Council","Adults","Independent Sector Placements","Services",01/09/2017 00:00:00,8000096139,713.56,"Revenue","Sagecare","Home Care"
"Peterborough","http://opendatacommunities.org/id/unitary-authority/peterborough","Peterborough City Council","Adults","Independent Sector Placements","Services",01/09/2017 00:00:00,8000096141,583.04,"Revenue","Sagecare","Home Care"
"Peterborough","http://opendatacommunities.org/id/unitary-authority/peterborough","Peterborough City Council","Adults","Independent Sector Placements","Services",01/09/2017 00:00:00,8000096155,934.36,"Revenue","Atlas Care Services Ltd","Home Care"
"Peterborough","http://opendatacommunities.org/id/unitary-authority/peterborough","Peterborough City Council","Adults","Independent Sector Placements","Services",01/09/2017 00:00:00,8000096159,1409.35,"Revenue","Atlas Care Services Ltd","Home Care"
"Peterborough","http://opendatacommunities.org/id/unitary-authority/peterborough","Peterborough City Council","Adults","Independent Sector Placements","Services",01/09/2017 00:00:00,8000096160,641.84,"Revenue","Atlas Care Services Ltd","Home Care"
"Peterborough","http://opendatacommunities.org/id/unitary-authority/peterborough","Peterborough City Council","Adults","Independent Sector Placements","Services",01/09/2017 00:00:00,8000096161,1555.61,"Revenue","Atlas Care Services Ltd","Home Care"
"Peterborough","http://opendatacommunities.org/id/unitary-authority/peterborough","Peterborough City Council","Adults","Independent Sector Placements","Services",01/09/2017 00:00:00,8000096165,643.26,"Revenue","Atlas Care Services Ltd","Home Care"
"Peterborough","http://opendatacommunities.org/id/unitary-authority/peterborough","Peterborough City Council","Adults","Independent Sector Placements","Services",01/09/2017 00:00:00,8000096166,2328.09,"Revenue","Atlas Care Services Ltd","Home Care"
"Peterborough","http://opendatacommunities.org/id/unitary-authority/peterborough","Peterborough City Council","Adults","Independent Sector Placements","Services",01/09/2017 00:00:00,8000096172,1025.95,"Revenue","Atlas Care Services Ltd","Home Care"
"Peterborough","http://opendatacommunities.org/id/unitary-authority/peterborough","Peterborough City Council","Adults","Independent Sector Placements","Services",01/09/2017 00:00:00,8000096173,661.01,"Revenue","Atlas Care Services Ltd","Home Care"
"Peterborough","http://opendatacommunities.org/id/unitary-authority/peterborough","Peterborough City Council","Adults","Independent Sector Placements","Services",01/09/2017 00:00:00,8000096176,982.64,"Revenue","Atlas Care Services Ltd","Home Care"
"Peterborough","http://opendatacommunities.org/id/unitary-authority/peterborough","Peterborough City Council","Adults","Independent Sector Placements","Services",01/09/2017 00:00:00,8000096177,733.43,"Revenue","Atlas Care Services Ltd","Home Care"
"Peterborough","http://opendatacommunities.org/id/unitary-authority/peterborough","Peterborough City Council","Adults","Independent Sector Placements","Services",01/09/2017 00:00:00,8000096179,533.21,"Revenue","Atlas Care Services Ltd","Home Care"
"Peterborough","http://opendatacommunities.org/id/unitary-authority/peterborough","Peterborough City Council","Adults","Independent Sector Placements","Services",01/09/2017 00:00:00,8000096180,658.17,"Revenue","Atlas Care Services Ltd","Home Care"
"Peterborough","http://opendatacommunities.org/id/unitary-authority/peterborough","Peterborough City Council","Adults","Independent Sector Placements","Services",01/09/2017 00:00:00,8000096182,543.86,"Revenue","Atlas Care Services Ltd","Home Care"
"Peterborough","http://opendatacommunities.org/id/unitary-authority/peterborough","Peterborough City Council","Adults","Independent Sector Placements","Services",01/09/2017 00:00:00,8000096186,1921.26,"Revenue","Atlas Care Services Ltd","Home Care"
"Peterborough","http://opendatacommunities.org/id/unitary-authority/peterborough","Peterborough City Council","Adults","Independent Sector Placements","Services",01/09/2017 00:00:00,8000096187,1329.12,"Revenue","Atlas Care Services Ltd","Home Care"
"Peterborough","http://opendatacommunities.org/id/unitary-authority/peterborough","Peterborough City Council","Adults","Independent Sector Placements","Services",01/09/2017 00:00:00,8000096191,557.35,"Revenue","Atlas Care Services Ltd","Home Care"
"Peterborough","http://opendatacommunities.org/id/unitary-authority/peterborough","Peterborough City Council","Adults","Independent Sector Placements","Services",01/09/2017 00:00:00,8000096193,734.14,"Revenue","Atlas Care Services Ltd","Home Care"
"Peterborough","http://opendatacommunities.org/id/unitary-authority/peterborough","Peterborough City Council","Adults","Independent Sector Placements","Services",01/09/2017 00:00:00,8000096198,756.15,"Revenue","Atlas Care Services Ltd","Home Care"
"Peterborough","http://opendatacommunities.org/id/unitary-authority/peterborough","Peterborough City Council","Adults","Independent Sector Placements","Services",01/09/2017 00:00:00,8000096200,751.89,"Revenue","Atlas Care Services Ltd","Home Care"
"Peterborough","http://opendatacommunities.org/id/unitary-authority/peterborough","Peterborough City Council","Adults","Independent Sector Placements","Services",01/09/2017 00:00:00,8000096202,548.12,"Revenue","Atlas Care Services Ltd","Home Care"
"Peterborough","http://opendatacommunities.org/id/unitary-authority/peterborough","Peterborough City Council","Adults","Independent Sector Placements","Services",01/09/2017 00:00:00,8000096203,1398.7,"Revenue","Atlas Care Services Ltd","Home Care"
"Peterborough","http://opendatacommunities.org/id/unitary-authority/peterborough","Peterborough City Council","Adults","Independent Sector Placements","Services",01/09/2017 00:00:00,8000096204,663.85,"Revenue","Atlas Care Services Ltd","Home Care"
"Peterborough","http://opendatacommunities.org/id/unitary-authority/peterborough","Peterborough City Council","Adults","Independent Sector Placements","Services",01/09/2017 00:00:00,8000096210,752.6,"Revenue","Atlas Care Services Ltd","Home Care"
"Peterborough","http://opendatacommunities.org/id/unitary-authority/peterborough","Peterborough City Council","Adults","Independent Sector Placements","Services",01/09/2017 00:00:00,8000096212,1484.61,"Revenue","Atlas Care Services Ltd","Home Care"
"Peterborough","http://opendatacommunities.org/id/unitary-authority/peterborough","Peterborough City Council","Adults","Independent Sector Placements","Services",01/09/2017 00:00:00,8000096213,1601.76,"Revenue","Atlas Care Services Ltd","Home Care"
"Peterborough","http://opendatacommunities.org/id/unitary-authority/peterborough","Peterborough City Council","Adults","Independent Sector Placements","Services",01/09/2017 00:00:00,8000096219,594.27,"Revenue","Atlas Care Services Ltd","Home Care"
"Peterborough","http://opendatacommunities.org/id/unitary-authority/peterborough","Peterborough City Council","Adults","Independent Sector Placements","Services",01/09/2017 00:00:00,8000096222,955.66,"Revenue","Atlas Care Services Ltd","Home Care"
"Peterborough","http://opendatacommunities.org/id/unitary-authority/peterborough","Peterborough City Council","Adults","Independent Sector Placements","Services",01/09/2017 00:00:00,8000096225,522.56,"Revenue","Atlas Care Services Ltd","Home Care"
"Peterborough","http://opendatacommunities.org/id/unitary-authority/peterborough","Peterborough City Council","Adults","Independent Sector Placements","Services",01/09/2017 00:00:00,8000096232,612.02,"Revenue","Atlas Care Services Ltd","Home Care"
"Peterborough","http://opendatacommunities.org/id/unitary-authority/peterborough","Peterborough City Council","Adults","Independent Sector Placements","Services",01/09/2017 00:00:00,8000096233,2078.88,"Revenue","Atlas Care Services Ltd","Home Care"
"Peterborough","http://opendatacommunities.org/id/unitary-authority/peterborough","Peterborough City Council","Adults","Independent Sector Placements","Services",01/09/2017 00:00:00,8000096234,790.23,"Revenue","Atlas Care Services Ltd","Home Care"
"Peterborough","http://opendatacommunities.org/id/unitary-authority/peterborough","Peterborough City Council","Adults","Independent Sector Placements","Services",01/09/2017 00:00:00,8000096235,778.16,"Revenue","Atlas Care Services Ltd","Home Care"
"Peterborough","http://opendatacommunities.org/id/unitary-authority/peterborough","Peterborough City Council","Adults","Independent Sector Placements","Services",01/09/2017 00:00:00,8000096237,931.52,"Revenue","Atlas Care Services Ltd","Home Care"
"Peterborough","http://opendatacommunities.org/id/unitary-authority/peterborough","Peterborough City Council","Adults","Independent Sector Placements","Services",01/09/2017 00:00:00,8000096238,502.68,"Revenue","Atlas Care Services Ltd","Home Care"
"Peterborough","http://opendatacommunities.org/id/unitary-authority/peterborough","Peterborough City Council","Adults","Independent Sector Placements","Services",01/09/2017 00:00:00,8000096242,811.53,"Revenue","Atlas Care Services Ltd","Home Care"
"Peterborough","http://opendatacommunities.org/id/unitary-authority/peterborough","Peterborough City Council","Adults","Independent Sector Placements","Services",01/09/2017 00:00:00,8000096243,680.18,"Revenue","Atlas Care Services Ltd","Home Care"
"Peterborough","http://opendatacommunities.org/id/unitary-authority/peterborough","Peterborough City Council","Adults","Independent Sector Placements","Services",01/09/2017 00:00:00,8000096248,1036.6,"Revenue","Atlas Care Services Ltd","Home Care"
"Peterborough","http://opendatacommunities.org/id/unitary-authority/peterborough","Peterborough City Council","Adults","Independent Sector Placements","Services",01/09/2017 00:00:00,8000096494,525,"Revenue","Cross Keys Homes","Home Care"
"Peterborough","http://opendatacommunities.org/id/unitary-authority/peterborough","Peterborough City Council","Adults","Independent Sector Placements","Services",01/09/2017 00:00:00,8000096495,787.5,"Revenue","Cross Keys Homes","Home Care"
"Peterborough","http://opendatacommunities.org/id/unitary-authority/peterborough","Peterborough City Council","Adults","Independent Sector Placements","Services",01/09/2017 00:00:00,8000096500,2730,"Revenue","Cross Keys Homes","Home Care"
"Peterborough","http://opendatacommunities.org/id/unitary-authority/peterborough","Peterborough City Council","Adults","Independent Sector Placements","Services",01/09/2017 00:00:00,8000096502,525,"Revenue","Cross Keys Homes","Home Care"
"Peterborough","http://opendatacommunities.org/id/unitary-authority/peterborough","Peterborough City Council","Adults","Independent Sector Placements","Services",01/09/2017 00:00:00,8000096504,1155,"Revenue","Cross Keys Homes","Home Care"
"Peterborough","http://opendatacommunities.org/id/unitary-authority/peterborough","Peterborough City Council","Adults","Independent Sector Placements","Services",01/09/2017 00:00:00,8000096511,753.75,"Revenue","Cross Keys Homes","Home Care"
"Peterborough","http://opendatacommunities.org/id/unitary-authority/peterborough","Peterborough City Council","Adults","Independent Sector Placements","Services",01/09/2017 00:00:00,8000096512,630,"Revenue","Cross Keys Homes","Home Care"
"Peterborough","http://opendatacommunities.org/id/unitary-authority/peterborough","Peterborough City Council","Adults","Independent Sector Placements","Services",01/09/2017 00:00:00,8000096517,1050,"Revenue","Cross Keys Homes","Home Care"
"Peterborough","http://opendatacommunities.org/id/unitary-authority/peterborough","Peterborough City Council","Adults","Independent Sector Placements","Services",01/09/2017 00:00:00,8000096519,840,"Revenue","Cross Keys Homes","Home Care"
"Peterborough","http://opendatacommunities.org/id/unitary-authority/peterborough","Peterborough City Council","Adults","Independent Sector Placements","Services",01/09/2017 00:00:00,8000096521,1005,"Revenue","Cross Keys Homes","Home Care"
"Peterborough","http://opendatacommunities.org/id/unitary-authority/peterborough","Peterborough City Council","Adults","Independent Sector Placements","Services",01/09/2017 00:00:00,8000096522,720,"Revenue","Cross Keys Homes","Home Care"
"Peterborough","http://opendatacommunities.org/id/unitary-authority/peterborough","Peterborough City Council","Adults","Independent Sector Placements","Services",01/09/2017 00:00:00,8000096523,697.5,"Revenue","Cross Keys Homes","Home Care"
"Peterborough","http://opendatacommunities.org/id/unitary-authority/peterborough","Peterborough City Council","Adults","Independent Sector Placements","Services",01/09/2017 00:00:00,8000096524,517.5,"Revenue","Cross Keys Homes","Home Care"
"Peterborough","http://opendatacommunities.org/id/unitary-authority/peterborough","Peterborough City Council","Adults","Independent Sector Placements","Services",01/09/2017 00:00:00,8000096525,626.25,"Revenue","Cross Keys Homes","Home Care"
"Peterborough","http://opendatacommunities.org/id/unitary-authority/peterborough","Peterborough City Council","Adults","Independent Sector Placements","Services",01/09/2017 00:00:00,8000096589,1336.22,"Revenue","Atlas Care Services Ltd","Home Care"
"Peterborough","http://opendatacommunities.org/id/unitary-authority/peterborough","Peterborough City Council","Adults","Independent Sector Placements","Services",01/09/2017 00:00:00,8000096590,598.53,"Revenue","Atlas Care Services Ltd","Home Care"
"Peterborough","http://opendatacommunities.org/id/unitary-authority/peterborough","Peterborough City Council","Adults","Independent Sector Placements","Services",01/09/2017 00:00:00,8000096593,585,"Revenue","Cross Keys Homes","Home Care"
"Peterborough","http://opendatacommunities.org/id/unitary-authority/peterborough","Peterborough City Council","Adults","Independent Sector Placements","Services",01/09/2017 00:00:00,8000096595,813.75,"Revenue","Cross Keys Homes","Home Care"
"Peterborough","http://opendatacommunities.org/id/unitary-authority/peterborough","Peterborough City Council","Adults","Independent Sector Placements","Services",01/09/2017 00:00:00,8000096596,1125,"Revenue","Cross Keys Homes","Home Care"
"Peterborough","http://opendatacommunities.org/id/unitary-authority/peterborough","Peterborough City Council","Adults","Independent Sector Placements","Transfer Payments",01/09/2017 00:00:00,8000097197,1574,"Revenue","Redacted Personal Data","Adult Social Care Direct Payment"
"Peterborough","http://opendatacommunities.org/id/unitary-authority/peterborough","Peterborough City Council","Adults","Independent Sector Placements","Services",01/09/2017 00:00:00,8000097256,993.3,"Revenue","Sagecare","Home Care"
"Peterborough","http://opendatacommunities.org/id/unitary-authority/peterborough","Peterborough City Council","Adults","Independent Sector Placements","Services",01/09/2017 00:00:00,8000097261,1702.47,"Revenue","Sagecare","Home Care"
"Peterborough","http://opendatacommunities.org/id/unitary-authority/peterborough","Peterborough City Council","Adults","Independent Sector Placements","Services",01/09/2017 00:00:00,8000097262,516.5,"Revenue","Sagecare","Home Care"
"Peterborough","http://opendatacommunities.org/id/unitary-authority/peterborough","Peterborough City Council","Adults","Independent Sector Placements","Services",01/09/2017 00:00:00,8000097263,807.35,"Revenue","Sagecare","Home Care"
"Peterborough","http://opendatacommunities.org/id/unitary-authority/peterborough","Peterborough City Council","Adults","Independent Sector Placements","Services",01/09/2017 00:00:00,8000097266,831.14,"Revenue","Sagecare","Home Care"
"Peterborough","http://opendatacommunities.org/id/unitary-authority/peterborough","Peterborough City Council","Adults","Independent Sector Placements","Services",01/09/2017 00:00:00,8000097267,588.82,"Revenue","Sagecare","Home Care"
"Peterborough","http://opendatacommunities.org/id/unitary-authority/peterborough","Peterborough City Council","Adults","Independent Sector Placements","Services",01/09/2017 00:00:00,8000097271,1150.38,"Revenue","Sagecare","Home Care"
"Peterborough","http://opendatacommunities.org/id/unitary-authority/peterborough","Peterborough City Council","Adults","Independent Sector Placements","Services",01/09/2017 00:00:00,8000097273,735.04,"Revenue","Sagecare","Home Care"
"Peterborough","http://opendatacommunities.org/id/unitary-authority/peterborough","Peterborough City Council","Adults","Independent Sector Placements","Services",01/09/2017 00:00:00,8000097276,1039,"Revenue","Sagecare","Home Care"
"Peterborough","http://opendatacommunities.org/id/unitary-authority/peterborough","Peterborough City Council","Adults","Independent Sector Placements","Services",01/09/2017 00:00:00,8000097285,1084.08,"Revenue","Sagecare","Home Care"
"Peterborough","http://opendatacommunities.org/id/unitary-authority/peterborough","Peterborough City Council","Adults","Independent Sector Placements","Services",01/09/2017 00:00:00,8000097291,753.52,"Revenue","Sagecare","Home Care"
"Peterborough","http://opendatacommunities.org/id/unitary-authority/peterborough","Peterborough City Council","Adults","Independent Sector Placements","Services",01/09/2017 00:00:00,8000097292,2338.18,"Revenue","Sagecare","Home Care"
"Peterborough","http://opendatacommunities.org/id/unitary-authority/peterborough","Peterborough City Council","Adults","Independent Sector Placements","Services",01/09/2017 00:00:00,8000097387,2125.2,"Revenue","Cozy Care","Home Care"
"Peterborough","http://opendatacommunities.org/id/unitary-authority/peterborough","Peterborough City Council","Adults","Independent Sector Placements","Services",01/09/2017 00:00:00,8000097388,679.65,"Revenue","Cozy Care","Home Care"
"Peterborough","http://opendatacommunities.org/id/unitary-authority/peterborough","Peterborough City Council","Children's & Safeguarding","Looked After Children","Services",01/09/2017 00:00:00,8000099106,560482.97,"Revenue","TACT","Third Party Payments - Contract"
"Peterborough","http://opendatacommunities.org/id/unitary-authority/peterborough","Peterborough City Council","Public Health","PH Commissioning","Third Party Payments",04/09/2017 00:00:00,30140370,552,"Revenue","Thorpe Road Surgery","Third Party Payments - Contract"
"Peterborough","http://opendatacommunities.org/id/unitary-authority/peterborough","Peterborough City Council","Public Health","PH Commissioning","Third Party Payments",04/09/2017 00:00:00,30140376,1012,"Revenue","Westgate Surgery","Third Party Payments - Contract"
"Peterborough","http://opendatacommunities.org/id/unitary-authority/peterborough","Peterborough City Council","Public Health","PH Commissioning","Third Party Payments",04/09/2017 00:00:00,30140405,713,"Revenue","3 Well Medical (Botolph Bridge)","Third Party Payments - Contract"
"Peterborough","http://opendatacommunities.org/id/unitary-authority/peterborough","Peterborough City Council","Children's & Safeguarding","Children's Social Care","Agency Staff",04/09/2017 00:00:00,30141336,1406,"Revenue","NonStop Recruitment Ltd","External Temporary Staff"
"Peterborough","http://opendatacommunities.org/id/unitary-authority/peterborough","Peterborough City Council","Children's & Safeguarding","Early Help ASC/CSC","Services",04/09/2017 00:00:00,30141342,600,"Revenue","Muslim Council of Peterborough","Hired Services"
"Peterborough","http://opendatacommunities.org/id/unitary-authority/peterborough","Peterborough City Council","Adults","Block Contracts","Third Party Payments",04/09/2017 00:00:00,30141343,2289.84,"Revenue","Hales Group Ltd","Third Party Payments - Contract"
"Peterborough","http://opendatacommunities.org/id/unitary-authority/peterborough","Peterborough City Council","Adults","Block Contracts","Third Party Payments",04/09/2017 00:00:00,30141344,6730.64,"Revenue","Hales Group Ltd","Third Party Payments - Contract"
"Peterborough","http://opendatacommunities.org/id/unitary-authority/peterborough","Peterborough City Council","Children's & Safeguarding","External Education Placements","Services",04/09/2017 00:00:00,30141373,21669,"Revenue","Childhood First","Boarding Out Allowances"
"Peterborough","http://opendatacommunities.org/id/unitary-authority/peterborough","Peterborough City Council","Adults","Therapy/Reablement/Community Equipment","Tools, Equipment, Furniture & Materials",04/09/2017 00:00:00,30141516,778.14,"Revenue","Action on Hearing Loss","Occupational Therapy Equipment"
"Peterborough","http://opendatacommunities.org/id/unitary-authority/peterborough","Peterborough City Council","Adults","Therapy/Reablement/Community Equipment","Tools, Equipment, Furniture & Materials",04/09/2017 00:00:00,30141517,757.01,"Revenue","Action on Hearing Loss","Occupational Therapy Equipment"
"Peterborough","http://opendatacommunities.org/id/unitary-authority/peterborough","Peterborough City Council","Corporate","Corporate","Non Revenue",04/09/2017 00:00:00,30141649,3830,"Capital","Barker Storey Matthews","Consultants Fees"
"Peterborough","http://opendatacommunities.org/id/unitary-authority/peterborough","Peterborough City Council","Adults","Independent Sector Placements","Services",04/09/2017 00:00:00,30142070,9469.8,"Revenue","Voyage","Home Care"
"Peterborough","http://opendatacommunities.org/id/unitary-authority/peterborough","Peterborough City Council","Adults","Independent Sector Placements","Services",04/09/2017 00:00:00,30142181,1700,"Revenue","Barchester Healthcare (Werrington Lodge)","Residential Care"
"Peterborough","http://opendatacommunities.org/id/unitary-authority/peterborough","Peterborough City Council","Adults","Independent Sector Placements","Services",04/09/2017 00:00:00,30142183,1944.64,"Revenue","Barchester Healthcare (Werrington Lodge)","Residential Care"
"Peterborough","http://opendatacommunities.org/id/unitary-authority/peterborough","Peterborough City Council","Adults","Independent Sector Placements","Services",04/09/2017 00:00:00,30142184,2305.92,"Revenue","Barchester Healthcare (Werrington Lodge)","Residential Care"
"Peterborough","http://opendatacommunities.org/id/unitary-authority/peterborough","Peterborough City Council","Adults","Independent Sector Placements","Services",04/09/2017 00:00:00,30142186,1593.32,"Revenue","Barchester Healthcare (Werrington Lodge)","Residential Care"
"Peterborough","http://opendatacommunities.org/id/unitary-authority/peterborough","Peterborough City Council","Adults","Independent Sector Placements","Services",04/09/2017 00:00:00,30142187,2687.2,"Revenue","Barchester Healthcare (Werrington Lodge)","Residential Care"
"Peterborough","http://opendatacommunities.org/id/unitary-authority/peterborough","Peterborough City Council","Adults","Independent Sector Placements","Services",04/09/2017 00:00:00,30142205,3188,"Revenue","Barchester Healthcare (Werrington Lodge)","Residential Care"
"Peterborough","http://opendatacommunities.org/id/unitary-authority/peterborough","Peterborough City Council","Adults","Independent Sector Placements","Services",04/09/2017 00:00:00,30142206,2655,"Revenue","Barchester Healthcare (Werrington Lodge)","Residential Care"
"Peterborough","http://opendatacommunities.org/id/unitary-authority/peterborough","Peterborough City Council","Adults","Independent Sector Placements","Services",04/09/2017 00:00:00,30142207,1762.88,"Revenue","Barchester Healthcare (Werrington Lodge)","Residential Care"
"Peterborough","http://opendatacommunities.org/id/unitary-authority/peterborough","Peterborough City Council","Adults","Independent Sector Placements","Services",04/09/2017 00:00:00,30142208,2549.04,"Revenue","Barchester Healthcare (Werrington Lodge)","Residential Care"
"Peterborough","http://opendatacommunities.org/id/unitary-authority/peterborough","Peterborough City Council","Adults","Independent Sector Placements","Services",04/09/2017 00:00:00,30142209,910.94,"Revenue","Barchester Healthcare (Werrington Lodge)","Residential Care"
"Peterborough","http://opendatacommunities.org/id/unitary-authority/peterborough","Peterborough City Council","Adults","Independent Sector Placements","Services",04/09/2017 00:00:00,30142210,2305.92,"Revenue","Barchester Healthcare (Werrington Lodge)","Residential Care"
"Peterborough","http://opendatacommunities.org/id/unitary-authority/peterborough","Peterborough City Council","Communities","Other Enforcement","Services",04/09/2017 00:00:00,30142331,780,"Revenue","Snelling, Mr Charles","Legal Costs"
"Peterborough","http://opendatacommunities.org/id/unitary-authority/peterborough","Peterborough City Council","Communities","Housing Enforcement","Services",04/09/2017 00:00:00,30142332,2100,"Revenue","Snelling, Mr Charles","Legal Costs"
"Peterborough","http://opendatacommunities.org/id/unitary-authority/peterborough","Peterborough City Council","Corporate","Corporate","Non Revenue",04/09/2017 00:00:00,30142510,1579.56,"Capital","Eastern Shires Purchasing Organisation","Furniture And Equipment Purchase"
"Peterborough","http://opendatacommunities.org/id/unitary-authority/peterborough","Peterborough City Council","Adults","Independent Sector Placements","Contract Hire and Operating Leases",04/09/2017 00:00:00,30142763,630,"Revenue","Peterborough Cars","Hired Transport"
"Peterborough","http://opendatacommunities.org/id/unitary-authority/peterborough","Peterborough City Council","Corporate Property","Office Accomodation","Rents",04/09/2017 00:00:00,30142827,11261.23,"Revenue","Beeson Wright Ltd","Rent"
"Peterborough","http://opendatacommunities.org/id/unitary-authority/peterborough","Peterborough City Council","Various","Various","Services",04/09/2017 00:00:00,30142919,1307.96,"Revenue","Whistl UK Ltd","Postage"
"Peterborough","http://opendatacommunities.org/id/unitary-authority/peterborough","Peterborough City Council","Adults","Independent Sector Placements","Services",04/09/2017 00:00:00,30142922,11022.8,"Revenue","Sense","Residential Care"
"Peterborough","http://opendatacommunities.org/id/unitary-authority/peterborough","Peterborough City Council","Adults","Independent Sector Placements","Services",04/09/2017 00:00:00,30142923,11444.64,"Revenue","Sense","Residential Care"
"Peterborough","http://opendatacommunities.org/id/unitary-authority/peterborough","Peterborough City Council","Adults","Independent Sector Placements","Services",04/09/2017 00:00:00,30142924,15283.44,"Revenue","Sense","Residential Care"
"Peterborough","http://opendatacommunities.org/id/unitary-authority/peterborough","Peterborough City Council","Adults","Independent Sector Placements","Contract Hire and Operating Leases",04/09/2017 00:00:00,30143093,560,"Revenue","Peterborough Cars","Hired Transport"
"Peterborough","http://opendatacommunities.org/id/unitary-authority/peterborough","Peterborough City Council","Adults","Independent Sector Placements","Services",04/09/2017 00:00:00,30143162,1788.6,"Revenue","Carewatch Care Services Ltd","Home Care"
"Peterborough","http://opendatacommunities.org/id/unitary-authority/peterborough","Peterborough City Council","Adults","Independent Sector Placements","Services",04/09/2017 00:00:00,30143163,778.8,"Revenue","Carewatch Care Services Ltd","Home Care"
"Peterborough","http://opendatacommunities.org/id/unitary-authority/peterborough","Peterborough City Council","Adults","Independent Sector Placements","Services",04/09/2017 00:00:00,30143166,772.2,"Revenue","Carewatch Care Services Ltd","Home Care"
"Peterborough","http://opendatacommunities.org/id/unitary-authority/peterborough","Peterborough City Council","Adults","Independent Sector Placements","Services",04/09/2017 00:00:00,30143170,752.4,"Revenue","Carewatch Care Services Ltd","Home Care"
"Peterborough","http://opendatacommunities.org/id/unitary-authority/peterborough","Peterborough City Council","Adults","Independent Sector Placements","Services",04/09/2017 00:00:00,30143172,1452,"Revenue","Carewatch Care Services Ltd","Home Care"
"Peterborough","http://opendatacommunities.org/id/unitary-authority/peterborough","Peterborough City Council","Adults","Independent Sector Placements","Services",04/09/2017 00:00:00,30143173,1485,"Revenue","Carewatch Care Services Ltd","Home Care"
"Peterborough","http://opendatacommunities.org/id/unitary-authority/peterborough","Peterborough City Council","Adults","Independent Sector Placements","Services",04/09/2017 00:00:00,30143175,514.8,"Revenue","Carewatch Care Services Ltd","Home Care"
"Peterborough","http://opendatacommunities.org/id/unitary-authority/peterborough","Peterborough City Council","Adults","Independent Sector Placements","Services",04/09/2017 00:00:00,30143180,541.2,"Revenue","Carewatch Care Services Ltd","Home Care"
"Peterborough","http://opendatacommunities.org/id/unitary-authority/peterborough","Peterborough City Council","Adults","Independent Sector Placements","Services",04/09/2017 00:00:00,30143184,1663.2,"Revenue","Carewatch Care Services Ltd","Home Care"
"Peterborough","http://opendatacommunities.org/id/unitary-authority/peterborough","Peterborough City Council","Adults","Independent Sector Placements","Services",04/09/2017 00:00:00,30143190,785.4,"Revenue","Carewatch Care Services Ltd","Home Care"
"Peterborough","http://opendatacommunities.org/id/unitary-authority/peterborough","Peterborough City Council","Adults","Independent Sector Placements","Services",04/09/2017 00:00:00,30143192,1029.6,"Revenue","Carewatch Care Services Ltd","Home Care"
"Peterborough","http://opendatacommunities.org/id/unitary-authority/peterborough","Peterborough City Council","Adults","Independent Sector Placements","Services",04/09/2017 00:00:00,30143212,937.2,"Revenue","Carewatch Care Services Ltd","Home Care"
"Peterborough","http://opendatacommunities.org/id/unitary-authority/peterborough","Peterborough City Council","Adults","Independent Sector Placements","Services",04/09/2017 00:00:00,30143213,1848,"Revenue","Carewatch Care Services Ltd","Home Care"
"Peterborough","http://opendatacommunities.org/id/unitary-authority/peterborough","Peterborough City Council","Adults","Independent Sector Placements","Services",04/09/2017 00:00:00,30143219,567.6,"Revenue","Carewatch Care Services Ltd","Home Care"
"Peterborough","http://opendatacommunities.org/id/unitary-authority/peterborough","Peterborough City Council","Adults","Independent Sector Placements","Services",04/09/2017 00:00:00,30143221,1188,"Revenue","Carewatch Care Services Ltd","Home Care"
"Peterborough","http://opendatacommunities.org/id/unitary-authority/peterborough","Peterborough City Council","Adults","Independent Sector Placements","Services",04/09/2017 00:00:00,30143228,666.6,"Revenue","Carewatch Care Services Ltd","Home Care"
"Peterborough","http://opendatacommunities.org/id/unitary-authority/peterborough","Peterborough City Council","Adults","Independent Sector Placements","Services",04/09/2017 00:00:00,30143230,999.9,"Revenue","Carewatch Care Services Ltd","Home Care"
"Peterborough","http://opendatacommunities.org/id/unitary-authority/peterborough","Peterborough City Council","Adults","Independent Sector Placements","Services",04/09/2017 00:00:00,30143233,805.2,"Revenue","Carewatch Care Services Ltd","Home Care"
"Peterborough","http://opendatacommunities.org/id/unitary-authority/peterborough","Peterborough City Council","Adults","Independent Sector Placements","Services",04/09/2017 00:00:00,30143244,524.7,"Revenue","Carewatch Care Services Ltd","Home Care"
"Peterborough","http://opendatacommunities.org/id/unitary-authority/peterborough","Peterborough City Council","Adults","Independent Sector Placements","Services",04/09/2017 00:00:00,30143245,594,"Revenue","Carewatch Care Services Ltd","Home Care"
"Peterborough","http://opendatacommunities.org/id/unitary-authority/peterborough","Peterborough City Council","Adults","Independent Sector Placements","Services",04/09/2017 00:00:00,30143247,924,"Revenue","Carewatch Care Services Ltd","Home Care"
"Peterborough","http://opendatacommunities.org/id/unitary-authority/peterborough","Peterborough City Council","Adults","Independent Sector Placements","Services",04/09/2017 00:00:00,30143312,13194.8,"Revenue","Sense","Residential Care"
"Peterborough","http://opendatacommunities.org/id/unitary-authority/peterborough","Peterborough City Council","Adults","Independent Sector Placements","Services",04/09/2017 00:00:00,30143582,14541.16,"Revenue","Atlas Care Services Ltd","Home Care"
"Peterborough","http://opendatacommunities.org/id/unitary-authority/peterborough","Peterborough City Council","Westcombe Engineering","Westcombe Engineering","Tools, Equipment, Furniture & Materials",04/09/2017 00:00:00,30143633,1102.62,"Revenue","Barron Clark Castings Ltd","Items For Resale"
"Peterborough","http://opendatacommunities.org/id/unitary-authority/peterborough","Peterborough City Council","Peterborough Highway Services","Transport & Infrastructure Commissioning","Services",04/09/2017 00:00:00,30143669,7920.28,"Revenue","Stagecoach in Peterborough","Contractors"
"Peterborough","http://opendatacommunities.org/id/unitary-authority/peterborough","Peterborough City Council","Education","PFI","Energy Costs",04/09/2017 00:00:00,30143673,4107.1,"Revenue","Southern Electric","Electricity"
"Peterborough","http://opendatacommunities.org/id/unitary-authority/peterborough","Peterborough City Council","Education","PFI","Energy Costs",04/09/2017 00:00:00,30143673,1993.36,"Revenue","Southern Electric","Electricity"
"Peterborough","http://opendatacommunities.org/id/unitary-authority/peterborough","Peterborough City Council","Education","Pupil Referral Unit","Energy Costs",04/09/2017 00:00:00,30143673,530.99,"Revenue","Southern Electric","Electricity"
"Peterborough","http://opendatacommunities.org/id/unitary-authority/peterborough","Peterborough City Council","Education","PFI","Energy Costs",04/09/2017 00:00:00,30143673,1056.89,"Revenue","Southern Electric","Electricity"
"Peterborough","http://opendatacommunities.org/id/unitary-authority/peterborough","Peterborough City Council","Education","PFI","Energy Costs",04/09/2017 00:00:00,30143673,1474.2,"Revenue","Southern Electric","Electricity"
"Peterborough","http://opendatacommunities.org/id/unitary-authority/peterborough","Peterborough City Council","Education","PFI","Energy Costs",04/09/2017 00:00:00,30143673,4046.88,"Revenue","Southern Electric","Electricity"
"Peterborough","http://opendatacommunities.org/id/unitary-authority/peterborough","Peterborough City Council","Vivacity/Cultural Services","Cultural Services","Energy Costs",04/09/2017 00:00:00,30143673,2935.45,"Revenue","Southern Electric","Electricity"
"Peterborough","http://opendatacommunities.org/id/unitary-authority/peterborough","Peterborough City Council","Cemeteries, Cremation & Registrars","Registration Service","Repair & Maintenance of Buildings",04/09/2017 00:00:00,30143681,1539.24,"Revenue","The Lawns(Peterborough) Ltd","Service Charges - Premises"
"Peterborough","http://opendatacommunities.org/id/unitary-authority/peterborough","Peterborough City Council","Cemeteries, Cremation & Registrars","Registration Service","Rents",04/09/2017 00:00:00,30143682,11469,"Revenue","The Lawns(Peterborough) Ltd","Rent"
"Peterborough","http://opendatacommunities.org/id/unitary-authority/peterborough","Peterborough City Council","Vivacity/Cultural Services","Cultural Services","Water Services",04/09/2017 00:00:00,30143683,1716.48,"Revenue","Anglian Water","Water"
"Peterborough","http://opendatacommunities.org/id/unitary-authority/peterborough","Peterborough City Council","Vivacity/Cultural Services","Cultural Services","Water Services",04/09/2017 00:00:00,30143683,3236.86,"Revenue","Anglian Water","Water"
"Peterborough","http://opendatacommunities.org/id/unitary-authority/peterborough","Peterborough City Council","Adults","Housing","Water Services",04/09/2017 00:00:00,30143683,1217.26,"Revenue","Anglian Water","Water"
"Peterborough","http://opendatacommunities.org/id/unitary-authority/peterborough","Peterborough City Council","Communities","Community Capacity","Water Services",04/09/2017 00:00:00,30143683,596.78,"Revenue","Anglian Water","Water"
"Peterborough","http://opendatacommunities.org/id/unitary-authority/peterborough","Peterborough City Council","Education","PFI","Water Services",04/09/2017 00:00:00,30143683,625.49,"Revenue","Anglian Water","Water"
"Peterborough","http://opendatacommunities.org/id/unitary-authority/peterborough","Peterborough City Council","Corporate Property","Commercial Propety","Water Services",04/09/2017 00:00:00,30143683,554.34,"Revenue","Anglian Water","Water"
"Peterborough","http://opendatacommunities.org/id/unitary-authority/peterborough","Peterborough City Council","Vivacity/Cultural Services","Cultural Services","Water Services",04/09/2017 00:00:00,30143683,16846.45,"Revenue","Anglian Water","Water"
"Peterborough","http://opendatacommunities.org/id/unitary-authority/peterborough","Peterborough City Council","Adults","Independent Sector Placements","Services",04/09/2017 00:00:00,30143686,818.4,"Revenue","Carewatch Care Services Ltd","Home Care"
"Peterborough","http://opendatacommunities.org/id/unitary-authority/peterborough","Peterborough City Council","Amey Peterborough & Waste Management","Waste & Operational Svs Mgmt","Water Services",04/09/2017 00:00:00,30143758,523.56,"Revenue","Anglian Water","Water"
"Peterborough","http://opendatacommunities.org/id/unitary-authority/peterborough","Peterborough City Council","Vivacity/Cultural Services","Cultural Services","Water Services",04/09/2017 00:00:00,30143758,687.09,"Revenue","Anglian Water","Water"
"Peterborough","http://opendatacommunities.org/id/unitary-authority/peterborough","Peterborough City Council","Adults","Independent Sector Placements","Services",04/09/2017 00:00:00,30143916,770,"Revenue","Carewatch Care Services Ltd","Home Care"
"Peterborough","http://opendatacommunities.org/id/unitary-authority/peterborough","Peterborough City Council","Adults","Independent Sector Placements","Services",04/09/2017 00:00:00,30143922,696.3,"Revenue","Carewatch Care Services Ltd","Home Care"
"Peterborough","http://opendatacommunities.org/id/unitary-authority/peterborough","Peterborough City Council","Adults","Independent Sector Placements","Services",04/09/2017 00:00:00,30143929,722.7,"Revenue","Carewatch Care Services Ltd","Home Care"
"Peterborough","http://opendatacommunities.org/id/unitary-authority/peterborough","Peterborough City Council","Corporate Items","Corporate Services","Salaries & Wages",04/09/2017 00:00:00,30144342,1880000,"Revenue","LGSS Cambridgeshire Pension Fund","Pensions"
"Peterborough","http://opendatacommunities.org/id/unitary-authority/peterborough","Peterborough City Council","Performance & Information","Coroners Service","Services",04/09/2017 00:00:00,30144408,17815,"Revenue","Cambridgeshire County Council","Administration Expenses"
"Peterborough","http://opendatacommunities.org/id/unitary-authority/peterborough","Peterborough City Council","Corporate","Corporate","Non Revenue",04/09/2017 00:00:00,30144571,245876.35,"Capital","Viridor Peterborough Ltd","Building And Site Works"
"Peterborough","http://opendatacommunities.org/id/unitary-authority/peterborough","Peterborough City Council","Adults","Block Contracts","Third Party Payments",04/09/2017 00:00:00,30144590,1996.92,"Revenue","Park Vista Care Home","Third Party Payments - Contract"
"Peterborough","http://opendatacommunities.org/id/unitary-authority/peterborough","Peterborough City Council","Corporate","Corporate","Non Revenue",04/09/2017 00:00:00,30144636,1813.32,"Capital","Salesforce.com","Computer Software"
"Peterborough","http://opendatacommunities.org/id/unitary-authority/peterborough","Peterborough City Council","Adults","Independent Sector Placements","Services",04/09/2017 00:00:00,8000095748,1025.31,"Revenue","Hales Group Ltd","Home Care"
"Peterborough","http://opendatacommunities.org/id/unitary-authority/peterborough","Peterborough City Council","Adults","Independent Sector Placements","Services",04/09/2017 00:00:00,8000095749,650.11,"Revenue","Hales Group Ltd","Home Care"
"Peterborough","http://opendatacommunities.org/id/unitary-authority/peterborough","Peterborough City Council","Adults","Independent Sector Placements","Services",04/09/2017 00:00:00,8000095750,624.49,"Revenue","Hales Group Ltd","Home Care"
"Peterborough","http://opendatacommunities.org/id/unitary-authority/peterborough","Peterborough City Council","Adults","Independent Sector Placements","Services",04/09/2017 00:00:00,8000095751,1016.22,"Revenue","Hales Group Ltd","Home Care"
"Peterborough","http://opendatacommunities.org/id/unitary-authority/peterborough","Peterborough City Council","Adults","Independent Sector Placements","Services",04/09/2017 00:00:00,8000095752,1879.74,"Revenue","Hales Group Ltd","Home Care"
"Peterborough","http://opendatacommunities.org/id/unitary-authority/peterborough","Peterborough City Council","Adults","Independent Sector Placements","Services",04/09/2017 00:00:00,8000095753,914.89,"Revenue","Hales Group Ltd","Home Care"
"Peterborough","http://opendatacommunities.org/id/unitary-authority/peterborough","Peterborough City Council","Adults","Independent Sector Placements","Services",04/09/2017 00:00:00,8000095754,631.92,"Revenue","Hales Group Ltd","Home Care"
"Peterborough","http://opendatacommunities.org/id/unitary-authority/peterborough","Peterborough City Council","Adults","Independent Sector Placements","Services",04/09/2017 00:00:00,8000095755,694.04,"Revenue","Hales Group Ltd","Home Care"
"Peterborough","http://opendatacommunities.org/id/unitary-authority/peterborough","Peterborough City Council","Adults","Independent Sector Placements","Services",04/09/2017 00:00:00,8000095756,2107.25,"Revenue","Hales Group Ltd","Home Care"
"Peterborough","http://opendatacommunities.org/id/unitary-authority/peterborough","Peterborough City Council","Adults","Independent Sector Placements","Services",04/09/2017 00:00:00,8000095758,881.71,"Revenue","Hales Group Ltd","Home Care"
"Peterborough","http://opendatacommunities.org/id/unitary-authority/peterborough","Peterborough City Council","Adults","Independent Sector Placements","Services",04/09/2017 00:00:00,8000095761,554.67,"Revenue","Hales Group Ltd","Home Care"
"Peterborough","http://opendatacommunities.org/id/unitary-authority/peterborough","Peterborough City Council","Adults","Independent Sector Placements","Services",04/09/2017 00:00:00,8000095762,721.59,"Revenue","Hales Group Ltd","Home Care"
"Peterborough","http://opendatacommunities.org/id/unitary-authority/peterborough","Peterborough City Council","Adults","Independent Sector Placements","Services",04/09/2017 00:00:00,8000095764,611.68,"Revenue","Hales Group Ltd","Home Care"
"Peterborough","http://opendatacommunities.org/id/unitary-authority/peterborough","Peterborough City Council","Adults","Independent Sector Placements","Services",04/09/2017 00:00:00,8000095765,788.84,"Revenue","Hales Group Ltd","Home Care"
"Peterborough","http://opendatacommunities.org/id/unitary-authority/peterborough","Peterborough City Council","Adults","Independent Sector Placements","Services",04/09/2017 00:00:00,8000095767,856.09,"Revenue","Hales Group Ltd","Home Care"
"Peterborough","http://opendatacommunities.org/id/unitary-authority/peterborough","Peterborough City Council","Adults","Independent Sector Placements","Services",04/09/2017 00:00:00,8000095768,1061.18,"Revenue","Hales Group Ltd","Home Care"
"Peterborough","http://opendatacommunities.org/id/unitary-authority/peterborough","Peterborough City Council","Adults","Independent Sector Placements","Services",04/09/2017 00:00:00,8000095769,619.11,"Revenue","Hales Group Ltd","Home Care"
"Peterborough","http://opendatacommunities.org/id/unitary-authority/peterborough","Peterborough City Council","Adults","Independent Sector Placements","Services",04/09/2017 00:00:00,8000095770,651.13,"Revenue","Hales Group Ltd","Home Care"
"Peterborough","http://opendatacommunities.org/id/unitary-authority/peterborough","Peterborough City Council","Adults","Independent Sector Placements","Services",04/09/2017 00:00:00,8000095771,708.78,"Revenue","Hales Group Ltd","Home Care"
"Peterborough","http://opendatacommunities.org/id/unitary-authority/peterborough","Peterborough City Council","Education","HTS & CSC Transport","Contract Hire and Operating Leases",04/09/2017 00:00:00,8000097418,2910,"Revenue","Goldstar Cabs Ltd","Hired Transport"
"Peterborough","http://opendatacommunities.org/id/unitary-authority/peterborough","Peterborough City Council","Education","HTS & CSC Transport","Contract Hire and Operating Leases",04/09/2017 00:00:00,8000097419,1240,"Revenue","Goldstar Cabs Ltd","Hired Transport"
"Peterborough","http://opendatacommunities.org/id/unitary-authority/peterborough","Peterborough City Council","Education","HTS & CSC Transport","Contract Hire and Operating Leases",04/09/2017 00:00:00,8000097420,1540.4,"Revenue","Goldstar Cabs Ltd","Hired Transport"
"Peterborough","http://opendatacommunities.org/id/unitary-authority/peterborough","Peterborough City Council","Education","HTS & CSC Transport","Contract Hire and Operating Leases",04/09/2017 00:00:00,8000097421,1118.8,"Revenue","Goldstar Cabs Ltd","Hired Transport"
"Peterborough","http://opendatacommunities.org/id/unitary-authority/peterborough","Peterborough City Council","Education","HTS & CSC Transport","Contract Hire and Operating Leases",04/09/2017 00:00:00,8000097422,1051.1,"Revenue","Goldstar Cabs Ltd","Hired Transport"
"Peterborough","http://opendatacommunities.org/id/unitary-authority/peterborough","Peterborough City Council","Education","HTS & CSC Transport","Contract Hire and Operating Leases",04/09/2017 00:00:00,8000097423,1624.99,"Revenue","Goldstar Cabs Ltd","Hired Transport"
"Peterborough","http://opendatacommunities.org/id/unitary-authority/peterborough","Peterborough City Council","Education","HTS & CSC Transport","Contract Hire and Operating Leases",04/09/2017 00:00:00,8000097424,1880,"Revenue","Goldstar Cabs Ltd","Hired Transport"
"Peterborough","http://opendatacommunities.org/id/unitary-authority/peterborough","Peterborough City Council","Education","HTS & CSC Transport","Contract Hire and Operating Leases",04/09/2017 00:00:00,8000097425,2600,"Revenue","Goldstar Cabs Ltd","Hired Transport"
"Peterborough","http://opendatacommunities.org/id/unitary-authority/peterborough","Peterborough City Council","Education","HTS & CSC Transport","Contract Hire and Operating Leases",04/09/2017 00:00:00,8000097426,1420,"Revenue","Goldstar Cabs Ltd","Hired Transport"
"Peterborough","http://opendatacommunities.org/id/unitary-authority/peterborough","Peterborough City Council","Education","HTS & CSC Transport","Contract Hire and Operating Leases",04/09/2017 00:00:00,8000097427,2470,"Revenue","Goldstar Cabs Ltd","Hired Transport"
"Peterborough","http://opendatacommunities.org/id/unitary-authority/peterborough","Peterborough City Council","Education","HTS & CSC Transport","Contract Hire and Operating Leases",04/09/2017 00:00:00,8000097428,1820,"Revenue","Goldstar Cabs Ltd","Hired Transport"
"Peterborough","http://opendatacommunities.org/id/unitary-authority/peterborough","Peterborough City Council","Education","HTS & CSC Transport","Contract Hire and Operating Leases",04/09/2017 00:00:00,8000097429,2395,"Revenue","Goldstar Cabs Ltd","Hired Transport"
"Peterborough","http://opendatacommunities.org/id/unitary-authority/peterborough","Peterborough City Council","Education","HTS & CSC Transport","Contract Hire and Operating Leases",04/09/2017 00:00:00,8000097430,2525,"Revenue","Goldstar Cabs Ltd","Hired Transport"
"Peterborough","http://opendatacommunities.org/id/unitary-authority/peterborough","Peterborough City Council","Education","HTS & CSC Transport","Contract Hire and Operating Leases",04/09/2017 00:00:00,8000097431,630,"Revenue","Goldstar Cabs Ltd","Hired Transport"
"Peterborough","http://opendatacommunities.org/id/unitary-authority/peterborough","Peterborough City Council","Education","HTS & CSC Transport","Contract Hire and Operating Leases",04/09/2017 00:00:00,8000097432,645.2,"Revenue","Goldstar Cabs Ltd","Hired Transport"
"Peterborough","http://opendatacommunities.org/id/unitary-authority/peterborough","Peterborough City Council","Education","HTS & CSC Transport","Contract Hire and Operating Leases",04/09/2017 00:00:00,8000097434,1635.99,"Revenue","Goldstar Cabs Ltd","Hired Transport"
"Peterborough","http://opendatacommunities.org/id/unitary-authority/peterborough","Peterborough City Council","Education","HTS & CSC Transport","Contract Hire and Operating Leases",04/09/2017 00:00:00,8000097435,1145.19,"Revenue","Goldstar Cabs Ltd","Hired Transport"
"Peterborough","http://opendatacommunities.org/id/unitary-authority/peterborough","Peterborough City Council","Education","HTS & CSC Transport","Contract Hire and Operating Leases",04/09/2017 00:00:00,8000097436,1209.6,"Revenue","Goldstar Cabs Ltd","Hired Transport"
"Peterborough","http://opendatacommunities.org/id/unitary-authority/peterborough","Peterborough City Council","Education","HTS & CSC Transport","Contract Hire and Operating Leases",04/09/2017 00:00:00,8000097437,1097.17,"Revenue","Goldstar Cabs Ltd","Hired Transport"
"Peterborough","http://opendatacommunities.org/id/unitary-authority/peterborough","Peterborough City Council","Education","HTS & CSC Transport","Contract Hire and Operating Leases",04/09/2017 00:00:00,8000097438,741.72,"Revenue","Goldstar Cabs Ltd","Hired Transport"
"Peterborough","http://opendatacommunities.org/id/unitary-authority/peterborough","Peterborough City Council","Education","HTS & CSC Transport","Contract Hire and Operating Leases",04/09/2017 00:00:00,8000097439,1277.4,"Revenue","Goldstar Cabs Ltd","Hired Transport"
"Peterborough","http://opendatacommunities.org/id/unitary-authority/peterborough","Peterborough City Council","Education","HTS & CSC Transport","Contract Hire and Operating Leases",04/09/2017 00:00:00,8000097440,565.2,"Revenue","Goldstar Cabs Ltd","Hired Transport"
"Peterborough","http://opendatacommunities.org/id/unitary-authority/peterborough","Peterborough City Council","Education","HTS & CSC Transport","Contract Hire and Operating Leases",04/09/2017 00:00:00,8000097441,1330,"Revenue","Goldstar Cabs Ltd","Hired Transport"
"Peterborough","http://opendatacommunities.org/id/unitary-authority/peterborough","Peterborough City Council","Education","HTS & CSC Transport","Contract Hire and Operating Leases",04/09/2017 00:00:00,8000097443,963.2,"Revenue","King Carz Ltd","Hired Transport"
"Peterborough","http://opendatacommunities.org/id/unitary-authority/peterborough","Peterborough City Council","Adults","Independent Sector Placements","Contract Hire and Operating Leases",04/09/2017 00:00:00,8000097444,1260,"Revenue","King Carz Ltd","Hired Transport"
"Peterborough","http://opendatacommunities.org/id/unitary-authority/peterborough","Peterborough City Council","Corporate","Corporate","Non Revenue",06/09/2017 00:00:00,30131144,2814.41,"Capital","Enterprise Managed Services Limited","Building And Site Works"
"Peterborough","http://opendatacommunities.org/id/unitary-authority/peterborough","Peterborough City Council","Adults","Independent Sector Placements","Services",06/09/2017 00:00:00,30136892,520.54,"Revenue","Longueville Court (Barchester)","Residential Care"
"Peterborough","http://opendatacommunities.org/id/unitary-authority/peterborough","Peterborough City Council","Public Health","PH Commissioning","Third Party Payments",06/09/2017 00:00:00,30139152,18045,"Revenue","Soil Association Ltd","Projects"
"Peterborough","http://opendatacommunities.org/id/unitary-authority/peterborough","Peterborough City Council","Education","Pupil Referral Unit","Agency Staff",06/09/2017 00:00:00,30139639,1577.97,"Revenue","Textbook Teachers Recruitment & Education Services Ltd","Supply Teachers"
"Peterborough","http://opendatacommunities.org/id/unitary-authority/peterborough","Peterborough City Council","Children's & Safeguarding","Child Health","Cleaning & Domestic Supplies",06/09/2017 00:00:00,30139809,945.97,"Revenue","Eastern Shires Purchasing Organisation","Cleaning"
"Peterborough","http://opendatacommunities.org/id/unitary-authority/peterborough","Peterborough City Council","Public Health","PH Commissioning","Third Party Payments",06/09/2017 00:00:00,30140027,855,"Revenue","Guy's and St Thomas' NHS FT","Third Party Payments - Contract"
"Peterborough","http://opendatacommunities.org/id/unitary-authority/peterborough","Peterborough City Council","Children's & Safeguarding","Children's Social Care","Services",06/09/2017 00:00:00,30140766,1493.8,"Revenue","Redacted Personal Data","Financial Assistance"
"Peterborough","http://opendatacommunities.org/id/unitary-authority/peterborough","Peterborough City Council","HR","HR","Services",06/09/2017 00:00:00,30140851,2520,"Revenue","Reed Business Information Ltd","Subscriptions"
"Peterborough","http://opendatacommunities.org/id/unitary-authority/peterborough","Peterborough City Council","Education","Pupil Referral Unit","Tools, Equipment, Furniture & Materials",06/09/2017 00:00:00,30141314,500,"Revenue","Peterborough Grass Machinery Ltd","Purchase of Equipment"
"Peterborough","http://opendatacommunities.org/id/unitary-authority/peterborough","Peterborough City Council","Development and Construction","Development Management","Services",06/09/2017 00:00:00,30141377,2200,"Revenue","WYG","Consultants Fees"
"Peterborough","http://opendatacommunities.org/id/unitary-authority/peterborough","Peterborough City Council","Adults","Housing","Services",06/09/2017 00:00:00,30141533,1504.5,"Revenue","Nightingale Services","Contractors"
"Peterborough","http://opendatacommunities.org/id/unitary-authority/peterborough","Peterborough City Council","Westcombe Engineering","Westcombe Engineering","Tools, Equipment, Furniture & Materials",06/09/2017 00:00:00,30141631,840,"Revenue","AALCO","Items For Resale"
"Peterborough","http://opendatacommunities.org/id/unitary-authority/peterborough","Peterborough City Council","Education","Pupil Referral Unit","Services",06/09/2017 00:00:00,30141765,5450.95,"Revenue","Crossfire Protection Ltd","Security"
"Peterborough","http://opendatacommunities.org/id/unitary-authority/peterborough","Peterborough City Council","Children's & Safeguarding","Children's Social Care","Agency Staff",06/09/2017 00:00:00,30141821,1406,"Revenue","NonStop Recruitment Ltd","External Temporary Staff"
"Peterborough","http://opendatacommunities.org/id/unitary-authority/peterborough","Peterborough City Council","Communities","Targeted Youth Service","Services",06/09/2017 00:00:00,30141826,5800,"Revenue","C J Camps","Programmes"
"Peterborough","http://opendatacommunities.org/id/unitary-authority/peterborough","Peterborough City Council","Peterborough Highway Services","Highway & Drainage Control","Agency Staff",06/09/2017 00:00:00,30141916,1020,"Revenue","Matchtech","External Temporary Staff"
"Peterborough","http://opendatacommunities.org/id/unitary-authority/peterborough","Peterborough City Council","Peterborough Highway Services","Highway & Drainage Control","Agency Staff",06/09/2017 00:00:00,30141917,1683,"Revenue","Matchtech","External Temporary Staff"
"Peterborough","http://opendatacommunities.org/id/unitary-authority/peterborough","Peterborough City Council","Westcombe Engineering","Westcombe Engineering","Tools, Equipment, Furniture & Materials",06/09/2017 00:00:00,30141918,590,"Revenue","Perkins Engines Co Ltd","Items For Resale"
"Peterborough","http://opendatacommunities.org/id/unitary-authority/peterborough","Peterborough City Council","Adults","Day opportunities - Older People","Agency Staff",06/09/2017 00:00:00,30141930,1221,"Revenue","Medicare First","External Temporary Staff"
"Peterborough","http://opendatacommunities.org/id/unitary-authority/peterborough","Peterborough City Council","Cemeteries, Cremation & Registrars","Bereavement Service","Repair & Maintenance of Buildings",06/09/2017 00:00:00,30141933,1022.52,"Revenue","Facultatieve Technologies Ltd","Cremators"
"Peterborough","http://opendatacommunities.org/id/unitary-authority/peterborough","Peterborough City Council","Legal & Democratic","Democratic Services","Tools, Equipment, Furniture & Materials",06/09/2017 00:00:00,30141940,941,"Revenue","Service-AV.co.uk","Computer Hardware"
"Peterborough","http://opendatacommunities.org/id/unitary-authority/peterborough","Peterborough City Council","City Servs & Communications","Marketing & Communications","Services",06/09/2017 00:00:00,30141978,744,"Revenue","XL Circondare Ltd t/a  XL Press","Printing"
"Peterborough","http://opendatacommunities.org/id/unitary-authority/peterborough","Peterborough City Council","Development and Construction","Development Management","Services",06/09/2017 00:00:00,30141992,946,"Revenue","Johnston Press Midlands Division","Advertising"
"Peterborough","http://opendatacommunities.org/id/unitary-authority/peterborough","Peterborough City Council","City Servs & Communications","Marketing & Communications","Services",06/09/2017 00:00:00,30142015,1500,"Revenue","The Creative Marketing Studio","Hired Services"
"Peterborough","http://opendatacommunities.org/id/unitary-authority/peterborough","Peterborough City Council","Legal & Democratic","Legal Services","Agency Staff",06/09/2017 00:00:00,30142039,1702,"Revenue","Venn Group Ltd","External Temporary Staff"
"Peterborough","http://opendatacommunities.org/id/unitary-authority/peterborough","Peterborough City Council","Legal & Democratic","Legal Services","Agency Staff",06/09/2017 00:00:00,30142041,1628.26,"Revenue","Venn Group Ltd","External Temporary Staff"
"Peterborough","http://opendatacommunities.org/id/unitary-authority/peterborough","Peterborough City Council","Legal & Democratic","Legal Services","Agency Staff",06/09/2017 00:00:00,30142042,771.03,"Revenue","Venn Group Ltd","External Temporary Staff"
"Peterborough","http://opendatacommunities.org/id/unitary-authority/peterborough","Peterborough City Council","Communities","Targeted Youth Service","Services",06/09/2017 00:00:00,30142088,2800,"Revenue","Peterborough Open Awards Centre CIC","Programmes"
"Peterborough","http://opendatacommunities.org/id/unitary-authority/peterborough","Peterborough City Council","Legal & Democratic","Legal Services","Agency Staff",06/09/2017 00:00:00,30142089,671,"Revenue","Venn Group Ltd","External Temporary Staff"
"Peterborough","http://opendatacommunities.org/id/unitary-authority/peterborough","Peterborough City Council","Legal & Democratic","Legal Services","Agency Staff",06/09/2017 00:00:00,30142090,2211.84,"Revenue","Venn Group Ltd","External Temporary Staff"
"Peterborough","http://opendatacommunities.org/id/unitary-authority/peterborough","Peterborough City Council","Cemeteries, Cremation & Registrars","Bereavement Service","Repair & Maintenance of Buildings",06/09/2017 00:00:00,30142094,1689.96,"Revenue","Facultatieve Technologies Ltd","Cremators"
"Peterborough","http://opendatacommunities.org/id/unitary-authority/peterborough","Peterborough City Council","Cemeteries, Cremation & Registrars","Bereavement Service","Services",06/09/2017 00:00:00,30142114,623.19,"Revenue","Scribes Ltd","Memorials"
"Peterborough","http://opendatacommunities.org/id/unitary-authority/peterborough","Peterborough City Council","Adults","Independent Sector Placements","Services",06/09/2017 00:00:00,30142129,3098.56,"Revenue","HAZELWOOD LODGE LTD","Residential Care"
"Peterborough","http://opendatacommunities.org/id/unitary-authority/peterborough","Peterborough City Council","Communities","Service Director - Adults & Communities","Third Party Payments",06/09/2017 00:00:00,30142141,1904,"Revenue","Enterprise Managed Services Limited","Grant-Third Party"
"Peterborough","http://opendatacommunities.org/id/unitary-authority/peterborough","Peterborough City Council","Adults","Independent Sector Placements","Services",06/09/2017 00:00:00,30142143,3098.56,"Revenue","HAZELWOOD LODGE LTD","Residential Care"
"Peterborough","http://opendatacommunities.org/id/unitary-authority/peterborough","Peterborough City Council","Adults","Independent Sector Placements","Services",06/09/2017 00:00:00,30142144,3098.56,"Revenue","HAZELWOOD LODGE LTD","Residential Care"
"Peterborough","http://opendatacommunities.org/id/unitary-authority/peterborough","Peterborough City Council","Corporate","Corporate","Non Revenue",06/09/2017 00:00:00,30142146,2950,"Capital","Badenoch & Clark Ltd","Consultants Fees"
"Peterborough","http://opendatacommunities.org/id/unitary-authority/peterborough","Peterborough City Council","Westcombe Engineering","Westcombe Engineering","Tools, Equipment, Furniture & Materials",06/09/2017 00:00:00,30142149,1087.51,"Revenue","BWC Aluminium Ltd","Items For Resale"
"Peterborough","http://opendatacommunities.org/id/unitary-authority/peterborough","Peterborough City Council","Westcombe Engineering","Westcombe Engineering","Tools, Equipment, Furniture & Materials",06/09/2017 00:00:00,30142150,12946.5,"Revenue","BWC Aluminium Ltd","Items For Resale"
"Peterborough","http://opendatacommunities.org/id/unitary-authority/peterborough","Peterborough City Council","Adults","Independent Sector Placements","Services",06/09/2017 00:00:00,30142158,2703.64,"Revenue","LEONARD CHESHIRE DISABILITY","Residential Care"
"Peterborough","http://opendatacommunities.org/id/unitary-authority/peterborough","Peterborough City Council","Adults","Independent Sector Placements","Services",06/09/2017 00:00:00,30142160,4992.32,"Revenue","LEONARD CHESHIRE DISABILITY","Residential Care"
"Peterborough","http://opendatacommunities.org/id/unitary-authority/peterborough","Peterborough City Council","Commissioning and Commercial Operations","Commissioning","Services",06/09/2017 00:00:00,30142162,1600,"Revenue","BDP Social Care Ltd","Hired Services"
"Peterborough","http://opendatacommunities.org/id/unitary-authority/peterborough","Peterborough City Council","Commissioning and Commercial Operations","Commissioning","Services",06/09/2017 00:00:00,30142163,3360,"Revenue","BDP Social Care Ltd","Hired Services"
"Peterborough","http://opendatacommunities.org/id/unitary-authority/peterborough","Peterborough City Council","Children's & Safeguarding","Early Help ASC/CSC","Services",06/09/2017 00:00:00,30142164,2230,"Revenue","BDP Social Care Ltd","Hired Services"
"Peterborough","http://opendatacommunities.org/id/unitary-authority/peterborough","Peterborough City Council","Children's & Safeguarding","Children's Social Care","Services",06/09/2017 00:00:00,30142171,500,"Revenue","Redacted Personal Data","Education Expenses"
"Peterborough","http://opendatacommunities.org/id/unitary-authority/peterborough","Peterborough City Council","Commissioning and Commercial Operations","Clare Lodge","Agency Staff",06/09/2017 00:00:00,30142192,1616,"Revenue","Wrixon Care Services","External Temporary Staff"
"Peterborough","http://opendatacommunities.org/id/unitary-authority/peterborough","Peterborough City Council","Westcombe Engineering","Westcombe Engineering","Tools, Equipment, Furniture & Materials",06/09/2017 00:00:00,30142194,913.5,"Revenue","Olis Machine Tools Ltd","Equipment Repairs"
"Peterborough","http://opendatacommunities.org/id/unitary-authority/peterborough","Peterborough City Council","Commissioning and Commercial Operations","Clare Lodge","Agency Staff",06/09/2017 00:00:00,30142196,1568,"Revenue","Wrixon Care Services","External Temporary Staff"
"Peterborough","http://opendatacommunities.org/id/unitary-authority/peterborough","Peterborough City Council","Commissioning and Commercial Operations","Clare Lodge","Agency Staff",06/09/2017 00:00:00,30142197,952,"Revenue","Wrixon Care Services","External Temporary Staff"
"Peterborough","http://opendatacommunities.org/id/unitary-authority/peterborough","Peterborough City Council","Commissioning and Commercial Operations","Clare Lodge","Agency Staff",06/09/2017 00:00:00,30142198,1808,"Revenue","Wrixon Care Services","External Temporary Staff"
"Peterborough","http://opendatacommunities.org/id/unitary-authority/peterborough","Peterborough City Council","Commissioning and Commercial Operations","Clare Lodge","Agency Staff",06/09/2017 00:00:00,30142199,1472,"Revenue","Wrixon Care Services","External Temporary Staff"
"Peterborough","http://opendatacommunities.org/id/unitary-authority/peterborough","Peterborough City Council","Commissioning and Commercial Operations","Clare Lodge","Agency Staff",06/09/2017 00:00:00,30142200,1840,"Revenue","Wrixon Care Services","External Temporary Staff"
"Peterborough","http://opendatacommunities.org/id/unitary-authority/peterborough","Peterborough City Council","Commissioning and Commercial Operations","Clare Lodge","Agency Staff",06/09/2017 00:00:00,30142201,1520,"Revenue","Wrixon Care Services","External Temporary Staff"
"Peterborough","http://opendatacommunities.org/id/unitary-authority/peterborough","Peterborough City Council","Commissioning and Commercial Operations","Clare Lodge","Agency Staff",06/09/2017 00:00:00,30142202,1416,"Revenue","Wrixon Care Services","External Temporary Staff"
"Peterborough","http://opendatacommunities.org/id/unitary-authority/peterborough","Peterborough City Council","Commissioning and Commercial Operations","Clare Lodge","Agency Staff",06/09/2017 00:00:00,30142280,960,"Revenue","Wrixon Care Services","External Temporary Staff"
"Peterborough","http://opendatacommunities.org/id/unitary-authority/peterborough","Peterborough City Council","Commissioning and Commercial Operations","Clare Lodge","Agency Staff",06/09/2017 00:00:00,30142285,1352,"Revenue","Wrixon Care Services","External Temporary Staff"
"Peterborough","http://opendatacommunities.org/id/unitary-authority/peterborough","Peterborough City Council","Commissioning and Commercial Operations","Commissioning Team","Agency Staff",06/09/2017 00:00:00,30142309,3510,"Revenue","Permanent Futures Ltd","External Temporary Staff"
"Peterborough","http://opendatacommunities.org/id/unitary-authority/peterborough","Peterborough City Council","City Servs & Communications","Regulatory Services","Services",06/09/2017 00:00:00,30142334,3228.6,"Revenue","Johnson, Mr Andrew","Legal Costs"
"Peterborough","http://opendatacommunities.org/id/unitary-authority/peterborough","Peterborough City Council","Adults","Independent Sector Placements","Services",06/09/2017 00:00:00,30142346,1975.18,"Revenue","Park Vista Care Home","Residential Care"
"Peterborough","http://opendatacommunities.org/id/unitary-authority/peterborough","Peterborough City Council","Adults","Independent Sector Placements","Services",06/09/2017 00:00:00,30142347,1284.08,"Revenue","Pilgrim Havens","Residential Care"
"Peterborough","http://opendatacommunities.org/id/unitary-authority/peterborough","Peterborough City Council","Cemeteries, Cremation & Registrars","Bereavement Service","Repair & Maintenance of Buildings",06/09/2017 00:00:00,30142391,1703.26,"Revenue","Facultatieve Technologies Ltd","Cremators"
"Peterborough","http://opendatacommunities.org/id/unitary-authority/peterborough","Peterborough City Council","Adults","Independent Sector Placements","Services",06/09/2017 00:00:00,30142619,1924.69,"Revenue","GCH (North London) Ltd - Tudors","Residential Care"
"Peterborough","http://opendatacommunities.org/id/unitary-authority/peterborough","Peterborough City Council","Peterborough Highway Services","Highway & Drainage Control","Services",06/09/2017 00:00:00,30142667,572,"Revenue","Rics Books","Subscriptions"
"Peterborough","http://opendatacommunities.org/id/unitary-authority/peterborough","Peterborough City Council","Corporate","Corporate","Non Revenue",06/09/2017 00:00:00,30142677,882289.69,"Capital","Carillion Construction Limited","Building And Site Works"
"Peterborough","http://opendatacommunities.org/id/unitary-authority/peterborough","Peterborough City Council","Adults","Block Contracts","Third Party Payments",06/09/2017 00:00:00,30142859,60548.12,"Revenue","HEREWARD CARE SERVICES LIMITED","Third Party Payments - Contract"
"Peterborough","http://opendatacommunities.org/id/unitary-authority/peterborough","Peterborough City Council","Cemeteries, Cremation & Registrars","Bereavement Service","Repair & Maintenance of Buildings",06/09/2017 00:00:00,30142882,5067.58,"Revenue","Facultatieve Technologies Ltd","Cremators"
"Peterborough","http://opendatacommunities.org/id/unitary-authority/peterborough","Peterborough City Council","Adults","Day opportunities - Older People","Catering",06/09/2017 00:00:00,30142995,1413.4,"Revenue","The Cresset (Peterborough) Ltd","Catering Provisions"
"Peterborough","http://opendatacommunities.org/id/unitary-authority/peterborough","Peterborough City Council","Adults","Independent Sector Placements","Services",06/09/2017 00:00:00,30143014,695.5,"Revenue","Select Support Partnerships Limited","Home Care"
"Peterborough","http://opendatacommunities.org/id/unitary-authority/peterborough","Peterborough City Council","Adults","Independent Sector Placements","Services",06/09/2017 00:00:00,30143015,588.25,"Revenue","Select Support Partnerships Limited","Home Care"
"Peterborough","http://opendatacommunities.org/id/unitary-authority/peterborough","Peterborough City Council","Adults","Independent Sector Placements","Services",06/09/2017 00:00:00,30143017,572,"Revenue","Select Support Partnerships Limited","Home Care"
"Peterborough","http://opendatacommunities.org/id/unitary-authority/peterborough","Peterborough City Council","Adults","Independent Sector Placements","Services",06/09/2017 00:00:00,30143038,1066,"Revenue","Select Support Partnerships Limited","Home Care"
"Peterborough","http://opendatacommunities.org/id/unitary-authority/peterborough","Peterborough City Council","Adults","Independent Sector Placements","Services",06/09/2017 00:00:00,30143050,585,"Revenue","Select Support Partnerships Limited","Home Care"
"Peterborough","http://opendatacommunities.org/id/unitary-authority/peterborough","Peterborough City Council","Adults","Independent Sector Placements","Services",06/09/2017 00:00:00,30143082,3187.48,"Revenue","HEREWARD CARE SERVICES LIMITED","Residential Care"
"Peterborough","http://opendatacommunities.org/id/unitary-authority/peterborough","Peterborough City Council","Adults","Independent Sector Placements","Services",06/09/2017 00:00:00,30143083,3437.52,"Revenue","HEREWARD CARE SERVICES LIMITED","Residential Care"
"Peterborough","http://opendatacommunities.org/id/unitary-authority/peterborough","Peterborough City Council","Adults","Independent Sector Placements","Services",06/09/2017 00:00:00,30143084,2680.24,"Revenue","HEREWARD CARE SERVICES LIMITED","Residential Care"
"Peterborough","http://opendatacommunities.org/id/unitary-authority/peterborough","Peterborough City Council","Adults","Independent Sector Placements","Services",06/09/2017 00:00:00,30143085,2808.64,"Revenue","HEREWARD CARE SERVICES LIMITED","Residential Care"
"Peterborough","http://opendatacommunities.org/id/unitary-authority/peterborough","Peterborough City Council","Adults","Independent Sector Placements","Services",06/09/2017 00:00:00,30143086,2621.6,"Revenue","HEREWARD CARE SERVICES LIMITED","Residential Care"
"Peterborough","http://opendatacommunities.org/id/unitary-authority/peterborough","Peterborough City Council","Adults","Independent Sector Placements","Services",06/09/2017 00:00:00,30143087,1714.56,"Revenue","HEREWARD CARE SERVICES LIMITED","Residential Care"
"Peterborough","http://opendatacommunities.org/id/unitary-authority/peterborough","Peterborough City Council","Adults","Independent Sector Placements","Services",06/09/2017 00:00:00,30143088,2182.2,"Revenue","HEREWARD CARE SERVICES LIMITED","Residential Care"
"Peterborough","http://opendatacommunities.org/id/unitary-authority/peterborough","Peterborough City Council","Adults","Independent Sector Placements","Services",06/09/2017 00:00:00,30143089,2677.32,"Revenue","HEREWARD CARE SERVICES LIMITED","Residential Care"
"Peterborough","http://opendatacommunities.org/id/unitary-authority/peterborough","Peterborough City Council","Adults","Mental Capacity Act & DoLs","Services",06/09/2017 00:00:00,30143493,740,"Revenue","SS Psychiatric Services Ltd","Hired Services"
"Peterborough","http://opendatacommunities.org/id/unitary-authority/peterborough","Peterborough City Council","Corporate","Corporate","Non Revenue",06/09/2017 00:00:00,30143581,1706.63,"Capital","Frederick F Smith (Builders) Ltd","Building And Site Works"
"Peterborough","http://opendatacommunities.org/id/unitary-authority/peterborough","Peterborough City Council","Westcombe Engineering","Westcombe Engineering","Tools, Equipment, Furniture & Materials",06/09/2017 00:00:00,30143635,670.22,"Revenue","Barron Clark Castings Ltd","Items For Resale"
"Peterborough","http://opendatacommunities.org/id/unitary-authority/peterborough","Peterborough City Council","Westcombe Engineering","Westcombe Engineering","Tools, Equipment, Furniture & Materials",06/09/2017 00:00:00,30143638,652,"Revenue","Barron Clark Castings Ltd","Items For Resale"
"Peterborough","http://opendatacommunities.org/id/unitary-authority/peterborough","Peterborough City Council","Commissioning and Commercial Operations","Commissioning","Services",06/09/2017 00:00:00,30143660,60000,"Revenue","Cambridgeshire Constabulary","Contract Services"
"Peterborough","http://opendatacommunities.org/id/unitary-authority/peterborough","Peterborough City Council","Communities","Performance & Information","Agency Staff",06/09/2017 00:00:00,30143889,1621.6,"Revenue","Reed Specialist Recruitment Limited","External Temporary Staff"
"Peterborough","http://opendatacommunities.org/id/unitary-authority/peterborough","Peterborough City Council","Communities","Other Enforcement","Services",06/09/2017 00:00:00,30143892,34642.5,"Revenue","Kingdom Services Group Limited","Contractors"
"Peterborough","http://opendatacommunities.org/id/unitary-authority/peterborough","Peterborough City Council","Communities","Other Enforcement","Services",06/09/2017 00:00:00,30143894,29303.4,"Revenue","Kingdom Services Group Limited","Contractors"
"Peterborough","http://opendatacommunities.org/id/unitary-authority/peterborough","Peterborough City Council","Financial Services","Finance","Agency Staff",06/09/2017 00:00:00,30143908,792.91,"Revenue","Reed Specialist Recruitment Limited","External Temporary Staff"
"Peterborough","http://opendatacommunities.org/id/unitary-authority/peterborough","Peterborough City Council","Children's & Safeguarding","Early Help ASC/CSC","Agency Staff",06/09/2017 00:00:00,30143911,511.91,"Revenue","Reed Specialist Recruitment Limited","External Temporary Staff"
"Peterborough","http://opendatacommunities.org/id/unitary-authority/peterborough","Peterborough City Council","Corporate","Corporate","Non Revenue",06/09/2017 00:00:00,30143989,1000,"Balance Sheet","Vivacity Culture and Leisure Trust","Insurance Claims"
"Peterborough","http://opendatacommunities.org/id/unitary-authority/peterborough","Peterborough City Council","Corporate","Corporate","Non Revenue",06/09/2017 00:00:00,30144033,2800.18,"Capital","Viridor Peterborough Ltd","Building And Site Works"
"Peterborough","http://opendatacommunities.org/id/unitary-authority/peterborough","Peterborough City Council","Peterborough Serco Strategic Partnership","Peterborough Serco Strategic Partnership","Services",06/09/2017 00:00:00,30144071,1980,"Revenue","Inform CPI Ltd","Consultants Fees"
"Peterborough","http://opendatacommunities.org/id/unitary-authority/peterborough","Peterborough City Council","Financial Services","Insurance","Services",06/09/2017 00:00:00,30144091,1107,"Revenue","Browne Jacobson","Legal Costs"
"Peterborough","http://opendatacommunities.org/id/unitary-authority/peterborough","Peterborough City Council","Corporate","Corporate","Non Revenue",06/09/2017 00:00:00,30144208,82774.9,"Capital","Kier Eastern","Building And Site Works"
"Peterborough","http://opendatacommunities.org/id/unitary-authority/peterborough","Peterborough City Council","Adults","Mental Health","Third Party Payments",06/09/2017 00:00:00,30144292,105114.16,"Revenue","Cambs & P'boro NHS Foundation Trust","Third Party Payments - Contract"
"Peterborough","http://opendatacommunities.org/id/unitary-authority/peterborough","Peterborough City Council","Public Health","PH Commissioning","Third Party Payments",06/09/2017 00:00:00,30144367,4972,"Revenue","Boroughbury Medical Centre","Third Party Payments - Contract"
"Peterborough","http://opendatacommunities.org/id/unitary-authority/peterborough","Peterborough City Council","Public Health","PH Commissioning","Third Party Payments",06/09/2017 00:00:00,30144369,1702,"Revenue","Westgate Surgery","Third Party Payments - Contract"
"Peterborough","http://opendatacommunities.org/id/unitary-authority/peterborough","Peterborough City Council","Public Health","PH Commissioning","Third Party Payments",06/09/2017 00:00:00,30144371,754,"Revenue","Redacted Personal Data","Third Party Payments - Contract"
"Peterborough","http://opendatacommunities.org/id/unitary-authority/peterborough","Peterborough City Council","Adults","Independent Sector Placements","Services",06/09/2017 00:00:00,30144510,1013.8,"Revenue","Sahara Community Care Services","Home Care"
"Peterborough","http://opendatacommunities.org/id/unitary-authority/peterborough","Peterborough City Council","Adults","Independent Sector Placements","Services",06/09/2017 00:00:00,30144512,700,"Revenue","Sahara Community Care Services","Home Care"
"Peterborough","http://opendatacommunities.org/id/unitary-authority/peterborough","Peterborough City Council","Adults","Independent Sector Placements","Services",06/09/2017 00:00:00,30144567,1768.92,"Revenue","Ashmere","Residential Care"
"Peterborough","http://opendatacommunities.org/id/unitary-authority/peterborough","Peterborough City Council","Corporate","Corporate","Non Revenue",06/09/2017 00:00:00,30144575,792736.88,"Balance Sheet","Teachers Pensions","Pensions"
"Peterborough","http://opendatacommunities.org/id/unitary-authority/peterborough","Peterborough City Council","Adults","Independent Sector Placements","Services",06/09/2017 00:00:00,30144602,6343.2,"Revenue","SOCIAL CARE SOLUTIONS LTD","Home Care"
"Peterborough","http://opendatacommunities.org/id/unitary-authority/peterborough","Peterborough City Council","Adults","Independent Sector Placements","Services",06/09/2017 00:00:00,30144607,6343.2,"Revenue","SOCIAL CARE SOLUTIONS LTD","Home Care"
"Peterborough","http://opendatacommunities.org/id/unitary-authority/peterborough","Peterborough City Council","Adults","Day opportunities - Older People","Catering",06/09/2017 00:00:00,30144616,1232.1,"Revenue","The Cresset (Peterborough) Ltd","Catering Provisions"
"Peterborough","http://opendatacommunities.org/id/unitary-authority/peterborough","Peterborough City Council","Adults","Independent Sector Placements","Services",06/09/2017 00:00:00,30144639,617.01,"Revenue","BROADLEIGH NURSING HOME","Residential Care"
"Peterborough","http://opendatacommunities.org/id/unitary-authority/peterborough","Peterborough City Council","Adults","Block Contracts","Rents",06/09/2017 00:00:00,30144641,15192.32,"Revenue","Cross Keys Homes","Rent"
"Peterborough","http://opendatacommunities.org/id/unitary-authority/peterborough","Peterborough City Council","Adults","Independent Sector Placements","Services",06/09/2017 00:00:00,30144658,608.57,"Revenue","BROADLEIGH NURSING HOME","Residential Care"
"Peterborough","http://opendatacommunities.org/id/unitary-authority/peterborough","Peterborough City Council","Commissioning and Commercial Operations","Early Years & Quality Improvement","Services",06/09/2017 00:00:00,30144736,600,"Revenue","Redacted Personal Data","Grant Payment"
"Peterborough","http://opendatacommunities.org/id/unitary-authority/peterborough","Peterborough City Council","Commissioning and Commercial Operations","Early Years & Quality Improvement","Services",06/09/2017 00:00:00,30144737,11189.01,"Revenue","Rise & Shine Day Nursery","Grant Payment"
"Peterborough","http://opendatacommunities.org/id/unitary-authority/peterborough","Peterborough City Council","Legal & Democratic","Legal Services","Services",06/09/2017 00:00:00,30144767,1200,"Revenue","Elliott, Ms Margot","Legal Costs"
"Peterborough","http://opendatacommunities.org/id/unitary-authority/peterborough","Peterborough City Council","Corporate","Corporate","Non Revenue",06/09/2017 00:00:00,30144772,403592.45,"Capital","Carillion Construction Limited","Building And Site Works"
"Peterborough","http://opendatacommunities.org/id/unitary-authority/peterborough","Peterborough City Council","Adults","Independent Sector Placements","Services",06/09/2017 00:00:00,30144824,1301.34,"Revenue","Athena (Ashlynn Grange)","Residential Care"
"Peterborough","http://opendatacommunities.org/id/unitary-authority/peterborough","Peterborough City Council","Adults","Independent Sector Placements","Services",06/09/2017 00:00:00,30144825,1821.88,"Revenue","Athena (Ashlynn Grange)","Residential Care"
"Peterborough","http://opendatacommunities.org/id/unitary-authority/peterborough","Peterborough City Council","Adults","Independent Sector Placements","Services",06/09/2017 00:00:00,30144867,900,"Revenue","SOCIAL CARE SOLUTIONS LTD","Home Care"
"Peterborough","http://opendatacommunities.org/id/unitary-authority/peterborough","Peterborough City Council","Adults","Independent Sector Placements","Services",06/09/2017 00:00:00,30144868,900,"Revenue","SOCIAL CARE SOLUTIONS LTD","Home Care"
"Peterborough","http://opendatacommunities.org/id/unitary-authority/peterborough","Peterborough City Council","Adults","Independent Sector Placements","Services",06/09/2017 00:00:00,30144872,3559.92,"Revenue","Byrne House Ltd","Residential Care"
"Peterborough","http://opendatacommunities.org/id/unitary-authority/peterborough","Peterborough City Council","Adults","Independent Sector Placements","Services",06/09/2017 00:00:00,30144873,3559.92,"Revenue","Byrne House Ltd","Residential Care"
"Peterborough","http://opendatacommunities.org/id/unitary-authority/peterborough","Peterborough City Council","Adults","Independent Sector Placements","Services",06/09/2017 00:00:00,30144876,855,"Revenue","SOCIAL CARE SOLUTIONS LTD","Home Care"
"Peterborough","http://opendatacommunities.org/id/unitary-authority/peterborough","Peterborough City Council","Adults","Independent Sector Placements","Services",06/09/2017 00:00:00,30144877,900,"Revenue","SOCIAL CARE SOLUTIONS LTD","Home Care"
"Peterborough","http://opendatacommunities.org/id/unitary-authority/peterborough","Peterborough City Council","Adults","Independent Sector Placements","Services",06/09/2017 00:00:00,30144878,900,"Revenue","SOCIAL CARE SOLUTIONS LTD","Home Care"
"Peterborough","http://opendatacommunities.org/id/unitary-authority/peterborough","Peterborough City Council","Adults","Independent Sector Placements","Services",06/09/2017 00:00:00,30144879,900,"Revenue","SOCIAL CARE SOLUTIONS LTD","Home Care"
"Peterborough","http://opendatacommunities.org/id/unitary-authority/peterborough","Peterborough City Council","Adults","Independent Sector Placements","Services",06/09/2017 00:00:00,30144880,900,"Revenue","SOCIAL CARE SOLUTIONS LTD","Home Care"
"Peterborough","http://opendatacommunities.org/id/unitary-authority/peterborough","Peterborough City Council","Adults","Independent Sector Placements","Services",06/09/2017 00:00:00,30144881,900,"Revenue","SOCIAL CARE SOLUTIONS LTD","Home Care"
"Peterborough","http://opendatacommunities.org/id/unitary-authority/peterborough","Peterborough City Council","Adults","Independent Sector Placements","Services",06/09/2017 00:00:00,30144882,900,"Revenue","SOCIAL CARE SOLUTIONS LTD","Home Care"
"Peterborough","http://opendatacommunities.org/id/unitary-authority/peterborough","Peterborough City Council","Children's & Safeguarding","Access to Resources & Specialist Commissioning","Services",06/09/2017 00:00:00,30144924,14299.24,"Revenue","Our Place Schools Ltd","Boarding Out Allowances"
"Peterborough","http://opendatacommunities.org/id/unitary-authority/peterborough","Peterborough City Council","Children's & Safeguarding","Access to Resources & Specialist Commissioning","Services",06/09/2017 00:00:00,30144925,28598.48,"Revenue","Our Place Schools Ltd","Boarding Out Allowances"
"Peterborough","http://opendatacommunities.org/id/unitary-authority/peterborough","Peterborough City Council","Adults","Other Services","Third Party Payments",06/09/2017 00:00:00,30144936,76750,"Revenue","Healthwatch Cambridgeshire and Peterborough","Third Party Payments - Contract"
"Peterborough","http://opendatacommunities.org/id/unitary-authority/peterborough","Peterborough City Council","Education","Service Director Education","Salaries & Wages",06/09/2017 00:00:00,30144955,26463.51,"Revenue","Teachers Pensions","Pensions"
"Peterborough","http://opendatacommunities.org/id/unitary-authority/peterborough","Peterborough City Council","Adults","Independent Sector Placements","Services",06/09/2017 00:00:00,30144962,1106.82,"Revenue","Atlas Care Services Ltd","Home Care"
"Peterborough","http://opendatacommunities.org/id/unitary-authority/peterborough","Peterborough City Council","Adults","Independent Sector Placements","Services",06/09/2017 00:00:00,30144963,700.92,"Revenue","Atlas Care Services Ltd","Home Care"
"Peterborough","http://opendatacommunities.org/id/unitary-authority/peterborough","Peterborough City Council","Adults","Independent Sector Placements","Services",06/09/2017 00:00:00,30144965,1000.56,"Revenue","Atlas Care Services Ltd","Home Care"
"Peterborough","http://opendatacommunities.org/id/unitary-authority/peterborough","Peterborough City Council","Adults","Independent Sector Placements","Services",06/09/2017 00:00:00,30144967,1031.58,"Revenue","Atlas Care Services Ltd","Home Care"
"Peterborough","http://opendatacommunities.org/id/unitary-authority/peterborough","Peterborough City Council","Adults","Independent Sector Placements","Services",06/09/2017 00:00:00,30144968,1009.14,"Revenue","Atlas Care Services Ltd","Home Care"
"Peterborough","http://opendatacommunities.org/id/unitary-authority/peterborough","Peterborough City Council","Adults","Independent Sector Placements","Services",06/09/2017 00:00:00,30144969,897.6,"Revenue","Atlas Care Services Ltd","Home Care"
"Peterborough","http://opendatacommunities.org/id/unitary-authority/peterborough","Peterborough City Council","Adults","Independent Sector Placements","Services",06/09/2017 00:00:00,30144970,551.1,"Revenue","Atlas Care Services Ltd","Home Care"
"Peterborough","http://opendatacommunities.org/id/unitary-authority/peterborough","Peterborough City Council","Children's & Safeguarding","Commissioning - CSC","Services",06/09/2017 00:00:00,8000097476,851.5,"Revenue","Redacted Personal Data","Financial Assistance"
"Peterborough","http://opendatacommunities.org/id/unitary-authority/peterborough","Peterborough City Council","Children's & Safeguarding","External Education Placements","Services",08/09/2017 00:00:00,30126451,15359.04,"Revenue","Sedbergh School","Boarding Out Allowances"
"Peterborough","http://opendatacommunities.org/id/unitary-authority/peterborough","Peterborough City Council","Adults","Housing","Third Party Payments",08/09/2017 00:00:00,30138534,29033.28,"Revenue","Genesis Housing Association","Grant-Third Party"
"Peterborough","http://opendatacommunities.org/id/unitary-authority/peterborough","Peterborough City Council","Education","Pupil Referral Unit","Agency Staff",08/09/2017 00:00:00,30139430,1120,"Revenue","Grade A Recruitment Ltd","Supply Teachers"
"Peterborough","http://opendatacommunities.org/id/unitary-authority/peterborough","Peterborough City Council","Communities","Other Enforcement","Services",08/09/2017 00:00:00,30139543,5493,"Revenue","Quadrant Security Group Ltd","Cctv"
"Peterborough","http://opendatacommunities.org/id/unitary-authority/peterborough","Peterborough City Council","Education","Pupil Referral Unit","Agency Staff",08/09/2017 00:00:00,30139580,5466,"Revenue","Vision for Education Ltd","Supply Teachers"
"Peterborough","http://opendatacommunities.org/id/unitary-authority/peterborough","Peterborough City Council","Adults","Independent Sector Placements","Services",08/09/2017 00:00:00,30140778,2357.14,"Revenue","Linkage Community Trust Limited","Residential Care"
"Peterborough","http://opendatacommunities.org/id/unitary-authority/peterborough","Peterborough City Council","Adults","Block Contracts","Third Party Payments",08/09/2017 00:00:00,30142117,6837.36,"Revenue","Axiom Housing Association","Third Party Payments - Contract"
"Peterborough","http://opendatacommunities.org/id/unitary-authority/peterborough","Peterborough City Council","Adults","Independent Sector Placements","Services",08/09/2017 00:00:00,30142127,8597.96,"Revenue","Consensus Support Services Ltd","Residential Care"
"Peterborough","http://opendatacommunities.org/id/unitary-authority/peterborough","Peterborough City Council","Adults","Independent Sector Placements","Services",08/09/2017 00:00:00,30142128,3674.44,"Revenue","Consensus Support Services Ltd","Residential Care"
"Peterborough","http://opendatacommunities.org/id/unitary-authority/peterborough","Peterborough City Council","ICT","ICT","Agency Staff",08/09/2017 00:00:00,30142130,2500,"Revenue","Cranford Solutions (UK) Ltd","External Temporary Staff"
"Peterborough","http://opendatacommunities.org/id/unitary-authority/peterborough","Peterborough City Council","Communities","Targeted Youth Service","Services",08/09/2017 00:00:00,30142142,500,"Revenue","Opportunity Peterborough T/A OP Ltd","Programmes"
"Peterborough","http://opendatacommunities.org/id/unitary-authority/peterborough","Peterborough City Council","ICT","ICT","Agency Staff",08/09/2017 00:00:00,30142145,5000,"Revenue","Cranford Solutions (UK) Ltd","External Temporary Staff"
"Peterborough","http://opendatacommunities.org/id/unitary-authority/peterborough","Peterborough City Council","Adults","Independent Sector Placements","Services",08/09/2017 00:00:00,30142157,680.8,"Revenue","Mencap","Home Care"
"Peterborough","http://opendatacommunities.org/id/unitary-authority/peterborough","Peterborough City Council","Children's & Safeguarding","Children's Social Care","Agency Staff",08/09/2017 00:00:00,30142170,1406,"Revenue","NonStop Recruitment Ltd","External Temporary Staff"
"Peterborough","http://opendatacommunities.org/id/unitary-authority/peterborough","Peterborough City Council","Children's & Safeguarding","Commissioning - CSC","Services",08/09/2017 00:00:00,30142242,8000,"Revenue","Better Communication CIC","Hired Services"
"Peterborough","http://opendatacommunities.org/id/unitary-authority/peterborough","Peterborough City Council","Peterborough Highway Services","Network and Traffic Management","Services",08/09/2017 00:00:00,30142244,3743.86,"Revenue","Dynniq UK Ltd","Contractors"
"Peterborough","http://opendatacommunities.org/id/unitary-authority/peterborough","Peterborough City Council","Peterborough Highway Services","Network and Traffic Management","Services",08/09/2017 00:00:00,30142245,3677,"Revenue","Dynniq UK Ltd","Contractors"
"Peterborough","http://opendatacommunities.org/id/unitary-authority/peterborough","Peterborough City Council","City Servs & Communications","Parking Services","Services",08/09/2017 00:00:00,30142323,1939,"Revenue","British Parking Association","Subscriptions"
"Peterborough","http://opendatacommunities.org/id/unitary-authority/peterborough","Peterborough City Council","Adults","Independent Sector Placements","Services",08/09/2017 00:00:00,30142350,1256.6,"Revenue","LAVENDER HOUSE RESIDENTIAL HOME","Residential Care"
"Peterborough","http://opendatacommunities.org/id/unitary-authority/peterborough","Peterborough City Council","Adults","Independent Sector Placements","Services",08/09/2017 00:00:00,30142351,1801.2,"Revenue","LAVENDER HOUSE RESIDENTIAL HOME","Residential Care"
"Peterborough","http://opendatacommunities.org/id/unitary-authority/peterborough","Peterborough City Council","Adults","Independent Sector Placements","Services",08/09/2017 00:00:00,30142352,1662.2,"Revenue","LAVENDER HOUSE RESIDENTIAL HOME","Residential Care"
"Peterborough","http://opendatacommunities.org/id/unitary-authority/peterborough","Peterborough City Council","Adults","Independent Sector Placements","Services",08/09/2017 00:00:00,30142372,905.72,"Revenue","BROADLEIGH NURSING HOME","Residential Care"
"Peterborough","http://opendatacommunities.org/id/unitary-authority/peterborough","Peterborough City Council","Adults","Independent Sector Placements","Services",08/09/2017 00:00:00,30142373,2123.6,"Revenue","BROADLEIGH NURSING HOME","Residential Care"
"Peterborough","http://opendatacommunities.org/id/unitary-authority/peterborough","Peterborough City Council","Adults","Block Contracts","Third Party Payments",08/09/2017 00:00:00,30142482,2042.86,"Revenue","Park Vista Care Home","Third Party Payments - Contract"
"Peterborough","http://opendatacommunities.org/id/unitary-authority/peterborough","Peterborough City Council","Adults","Independent Sector Placements","Services",08/09/2017 00:00:00,30142567,1038.44,"Revenue","Park Vista Care Home","Residential Care"
"Peterborough","http://opendatacommunities.org/id/unitary-authority/peterborough","Peterborough City Council","Adults","Independent Sector Placements","Services",08/09/2017 00:00:00,30142568,924.96,"Revenue","Park Vista Care Home","Residential Care"
"Peterborough","http://opendatacommunities.org/id/unitary-authority/peterborough","Peterborough City Council","Adults","Independent Sector Placements","Services",08/09/2017 00:00:00,30142578,2318.12,"Revenue","Park Vista Care Home","Residential Care"
"Peterborough","http://opendatacommunities.org/id/unitary-authority/peterborough","Peterborough City Council","Adults","Independent Sector Placements","Services",08/09/2017 00:00:00,30142579,1038.44,"Revenue","Park Vista Care Home","Residential Care"
"Peterborough","http://opendatacommunities.org/id/unitary-authority/peterborough","Peterborough City Council","Adults","Independent Sector Placements","Services",08/09/2017 00:00:00,30142580,625,"Revenue","Park Vista Care Home","Residential Care"
"Peterborough","http://opendatacommunities.org/id/unitary-authority/peterborough","Peterborough City Council","Adults","Independent Sector Placements","Services",08/09/2017 00:00:00,30142581,539.28,"Revenue","Park Vista Care Home","Residential Care"
"Peterborough","http://opendatacommunities.org/id/unitary-authority/peterborough","Peterborough City Council","Adults","Independent Sector Placements","Services",08/09/2017 00:00:00,30142582,1284.08,"Revenue","Park Vista Care Home","Residential Care"
"Peterborough","http://opendatacommunities.org/id/unitary-authority/peterborough","Peterborough City Council","Adults","Independent Sector Placements","Services",08/09/2017 00:00:00,30142583,1182.08,"Revenue","Park Vista Care Home","Residential Care"
"Peterborough","http://opendatacommunities.org/id/unitary-authority/peterborough","Peterborough City Council","Adults","Independent Sector Placements","Services",08/09/2017 00:00:00,30142584,805.44,"Revenue","Park Vista Care Home","Residential Care"
"Peterborough","http://opendatacommunities.org/id/unitary-authority/peterborough","Peterborough City Council","Adults","Independent Sector Placements","Services",08/09/2017 00:00:00,30142585,1273.56,"Revenue","Park Vista Care Home","Residential Care"
"Peterborough","http://opendatacommunities.org/id/unitary-authority/peterborough","Peterborough City Council","Adults","Independent Sector Placements","Services",08/09/2017 00:00:00,30142586,625,"Revenue","Park Vista Care Home","Residential Care"
"Peterborough","http://opendatacommunities.org/id/unitary-authority/peterborough","Peterborough City Council","Adults","Independent Sector Placements","Services",08/09/2017 00:00:00,30142588,1026.44,"Revenue","Park Vista Care Home","Residential Care"
"Peterborough","http://opendatacommunities.org/id/unitary-authority/peterborough","Peterborough City Council","Adults","Independent Sector Placements","Services",08/09/2017 00:00:00,30142589,1282.96,"Revenue","Park Vista Care Home","Residential Care"
"Peterborough","http://opendatacommunities.org/id/unitary-authority/peterborough","Peterborough City Council","Adults","Independent Sector Placements","Services",08/09/2017 00:00:00,30142590,849.36,"Revenue","Park Vista Care Home","Residential Care"
"Peterborough","http://opendatacommunities.org/id/unitary-authority/peterborough","Peterborough City Council","Adults","Block Contracts","Third Party Payments",08/09/2017 00:00:00,30142592,1821.88,"Revenue","Park Vista Care Home","Third Party Payments - Contract"
"Peterborough","http://opendatacommunities.org/id/unitary-authority/peterborough","Peterborough City Council","Adults","Independent Sector Placements","Services",08/09/2017 00:00:00,30142593,1043.6,"Revenue","Park Vista Care Home","Residential Care"
"Peterborough","http://opendatacommunities.org/id/unitary-authority/peterborough","Peterborough City Council","Adults","Independent Sector Placements","Services",08/09/2017 00:00:00,30142594,1821.88,"Revenue","Park Vista Care Home","Residential Care"
"Peterborough","http://opendatacommunities.org/id/unitary-authority/peterborough","Peterborough City Council","Adults","Independent Sector Placements","Services",08/09/2017 00:00:00,30142596,924.68,"Revenue","Park Vista Care Home","Residential Care"
"Peterborough","http://opendatacommunities.org/id/unitary-authority/peterborough","Peterborough City Council","Adults","Independent Sector Placements","Services",08/09/2017 00:00:00,30142597,1821.88,"Revenue","Park Vista Care Home","Residential Care"
"Peterborough","http://opendatacommunities.org/id/unitary-authority/peterborough","Peterborough City Council","Adults","Independent Sector Placements","Services",08/09/2017 00:00:00,30142598,936.44,"Revenue","Park Vista Care Home","Residential Care"
"Peterborough","http://opendatacommunities.org/id/unitary-authority/peterborough","Peterborough City Council","Adults","Independent Sector Placements","Services",08/09/2017 00:00:00,30142599,1001.35,"Revenue","Park Vista Care Home","Residential Care"
"Peterborough","http://opendatacommunities.org/id/unitary-authority/peterborough","Peterborough City Council","Adults","Independent Sector Placements","Services",08/09/2017 00:00:00,30142601,625,"Revenue","Park Vista Care Home","Residential Care"
"Peterborough","http://opendatacommunities.org/id/unitary-authority/peterborough","Peterborough City Council","Adults","Independent Sector Placements","Services",08/09/2017 00:00:00,30142603,625,"Revenue","Park Vista Care Home","Residential Care"
"Peterborough","http://opendatacommunities.org/id/unitary-authority/peterborough","Peterborough City Council","Adults","Block Contracts","Third Party Payments",08/09/2017 00:00:00,30142605,1821.88,"Revenue","Park Vista Care Home","Third Party Payments - Contract"
"Peterborough","http://opendatacommunities.org/id/unitary-authority/peterborough","Peterborough City Council","Adults","Independent Sector Placements","Services",08/09/2017 00:00:00,30142606,2305.92,"Revenue","Park Vista Care Home","Residential Care"
"Peterborough","http://opendatacommunities.org/id/unitary-authority/peterborough","Peterborough City Council","Adults","Independent Sector Placements","Services",08/09/2017 00:00:00,30142608,1299.08,"Revenue","Park Vista Care Home","Residential Care"
"Peterborough","http://opendatacommunities.org/id/unitary-authority/peterborough","Peterborough City Council","Adults","Independent Sector Placements","Services",08/09/2017 00:00:00,30142610,927.18,"Revenue","Park Vista Care Home","Residential Care"
"Peterborough","http://opendatacommunities.org/id/unitary-authority/peterborough","Peterborough City Council","Adults","Independent Sector Placements","Services",08/09/2017 00:00:00,30142611,984.88,"Revenue","Park Vista Care Home","Residential Care"
"Peterborough","http://opendatacommunities.org/id/unitary-authority/peterborough","Peterborough City Council","Adults","Independent Sector Placements","Services",08/09/2017 00:00:00,30142612,1932,"Revenue","SOCIAL CARE SOLUTIONS LTD","Home Care"
"Peterborough","http://opendatacommunities.org/id/unitary-authority/peterborough","Peterborough City Council","Adults","Independent Sector Placements","Services",08/09/2017 00:00:00,30142613,4463.2,"Revenue","SOCIAL CARE SOLUTIONS LTD","Home Care"
"Peterborough","http://opendatacommunities.org/id/unitary-authority/peterborough","Peterborough City Council","Adults","Independent Sector Placements","Services",08/09/2017 00:00:00,30142614,3211.2,"Revenue","SOCIAL CARE SOLUTIONS LTD","Home Care"
"Peterborough","http://opendatacommunities.org/id/unitary-authority/peterborough","Peterborough City Council","Adults","Independent Sector Placements","Services",08/09/2017 00:00:00,30142621,2055.92,"Revenue","LAVENDER HOUSE RESIDENTIAL HOME","Residential Care"
"Peterborough","http://opendatacommunities.org/id/unitary-authority/peterborough","Peterborough City Council","Adults","Independent Sector Placements","Services",08/09/2017 00:00:00,30142622,2509.72,"Revenue","Peterborough Care  The Maltings","Residential Care"
"Peterborough","http://opendatacommunities.org/id/unitary-authority/peterborough","Peterborough City Council","Adults","Independent Sector Placements","Services",08/09/2017 00:00:00,30142623,2520,"Revenue","LAVENDER HOUSE RESIDENTIAL HOME","Residential Care"
"Peterborough","http://opendatacommunities.org/id/unitary-authority/peterborough","Peterborough City Council","Adults","Independent Sector Placements","Services",08/09/2017 00:00:00,30142624,2195.96,"Revenue","LAVENDER HOUSE RESIDENTIAL HOME","Residential Care"
"Peterborough","http://opendatacommunities.org/id/unitary-authority/peterborough","Peterborough City Council","Adults","Independent Sector Placements","Services",08/09/2017 00:00:00,30142625,1971.24,"Revenue","BROADLEIGH NURSING HOME","Residential Care"
"Peterborough","http://opendatacommunities.org/id/unitary-authority/peterborough","Peterborough City Council","Adults","Independent Sector Placements","Services",08/09/2017 00:00:00,30142626,578.72,"Revenue","BROADLEIGH NURSING HOME","Residential Care"
"Peterborough","http://opendatacommunities.org/id/unitary-authority/peterborough","Peterborough City Council","Adults","Independent Sector Placements","Services",08/09/2017 00:00:00,30142627,2409.4,"Revenue","Peterborough Care  The Maltings","Residential Care"
"Peterborough","http://opendatacommunities.org/id/unitary-authority/peterborough","Peterborough City Council","Adults","Independent Sector Placements","Services",08/09/2017 00:00:00,30142628,2485.12,"Revenue","Peterborough Care  The Maltings","Residential Care"
"Peterborough","http://opendatacommunities.org/id/unitary-authority/peterborough","Peterborough City Council","Adults","Independent Sector Placements","Services",08/09/2017 00:00:00,30142629,1336.12,"Revenue","BROADLEIGH NURSING HOME","Residential Care"
"Peterborough","http://opendatacommunities.org/id/unitary-authority/peterborough","Peterborough City Council","Adults","Independent Sector Placements","Services",08/09/2017 00:00:00,30142630,2289.45,"Revenue","Peterborough Care  The Maltings","Residential Care"
"Peterborough","http://opendatacommunities.org/id/unitary-authority/peterborough","Peterborough City Council","Adults","Independent Sector Placements","Services",08/09/2017 00:00:00,30142635,14588,"Revenue","Decoy Farm","Residential Care"
"Peterborough","http://opendatacommunities.org/id/unitary-authority/peterborough","Peterborough City Council","Adults","Independent Sector Placements","Services",08/09/2017 00:00:00,30142640,8328.92,"Revenue","Home From Home Care","Residential Care"
"Peterborough","http://opendatacommunities.org/id/unitary-authority/peterborough","Peterborough City Council","Adults","Independent Sector Placements","Services",08/09/2017 00:00:00,30142641,6354.32,"Revenue","Home From Home Care","Residential Care"
"Peterborough","http://opendatacommunities.org/id/unitary-authority/peterborough","Peterborough City Council","Adults","Independent Sector Placements","Services",08/09/2017 00:00:00,30142642,7814.04,"Revenue","Home From Home Care","Residential Care"
"Peterborough","http://opendatacommunities.org/id/unitary-authority/peterborough","Peterborough City Council","Adults","Independent Sector Placements","Services",08/09/2017 00:00:00,30142643,7002.04,"Revenue","Home From Home Care","Residential Care"
"Peterborough","http://opendatacommunities.org/id/unitary-authority/peterborough","Peterborough City Council","Corporate","Corporate","Non Revenue",08/09/2017 00:00:00,30142664,4423.3,"Capital","Enterprise Managed Services Limited","Building And Site Works"
"Peterborough","http://opendatacommunities.org/id/unitary-authority/peterborough","Peterborough City Council","Adults","Independent Sector Placements","Services",08/09/2017 00:00:00,30142731,2215.2,"Revenue","Mencap","Home Care"
"Peterborough","http://opendatacommunities.org/id/unitary-authority/peterborough","Peterborough City Council","Adults","Independent Sector Placements","Services",08/09/2017 00:00:00,30142732,681.6,"Revenue","Mencap","Home Care"
"Peterborough","http://opendatacommunities.org/id/unitary-authority/peterborough","Peterborough City Council","Adults","Independent Sector Placements","Services",08/09/2017 00:00:00,30142733,852,"Revenue","Mencap","Home Care"
"Peterborough","http://opendatacommunities.org/id/unitary-authority/peterborough","Peterborough City Council","Adults","Independent Sector Placements","Services",08/09/2017 00:00:00,30142746,1306.4,"Revenue","Mencap","Home Care"
"Peterborough","http://opendatacommunities.org/id/unitary-authority/peterborough","Peterborough City Council","Adults","Independent Sector Placements","Services",08/09/2017 00:00:00,30142748,6548.8,"Revenue","Mencap","Home Care"
"Peterborough","http://opendatacommunities.org/id/unitary-authority/peterborough","Peterborough City Council","Adults","Independent Sector Placements","Services",08/09/2017 00:00:00,30142762,1500.64,"Revenue","Mencap","Home Care"
"Peterborough","http://opendatacommunities.org/id/unitary-authority/peterborough","Peterborough City Council","Adults","Independent Sector Placements","Services",08/09/2017 00:00:00,30142764,979.8,"Revenue","Mencap","Home Care"
"Peterborough","http://opendatacommunities.org/id/unitary-authority/peterborough","Peterborough City Council","Adults","Independent Sector Placements","Services",08/09/2017 00:00:00,30142785,1636.8,"Revenue","Mencap","Home Care"
"Peterborough","http://opendatacommunities.org/id/unitary-authority/peterborough","Peterborough City Council","Adults","Independent Sector Placements","Services",08/09/2017 00:00:00,30142788,6492,"Revenue","Mencap","Home Care"
"Peterborough","http://opendatacommunities.org/id/unitary-authority/peterborough","Peterborough City Council","ICT","ICT","Services",08/09/2017 00:00:00,30142790,6186.46,"Revenue","Capita Business Services Ltd","Computer Software"
"Peterborough","http://opendatacommunities.org/id/unitary-authority/peterborough","Peterborough City Council","Adults","Independent Sector Placements","Services",08/09/2017 00:00:00,30142791,1671.04,"Revenue","Mencap","Home Care"
"Peterborough","http://opendatacommunities.org/id/unitary-authority/peterborough","Peterborough City Council","Adults","Independent Sector Placements","Services",08/09/2017 00:00:00,30142799,852,"Revenue","Mencap","Home Care"
"Peterborough","http://opendatacommunities.org/id/unitary-authority/peterborough","Peterborough City Council","Adults","Independent Sector Placements","Services",08/09/2017 00:00:00,30142805,695.8,"Revenue","Mencap","Home Care"
"Peterborough","http://opendatacommunities.org/id/unitary-authority/peterborough","Peterborough City Council","Adults","Independent Sector Placements","Services",08/09/2017 00:00:00,30142807,6302.2,"Revenue","Mencap","Residential Care"
"Peterborough","http://opendatacommunities.org/id/unitary-authority/peterborough","Peterborough City Council","Adults","Independent Sector Placements","Services",08/09/2017 00:00:00,30142810,1542,"Revenue","Mencap","Home Care"
"Peterborough","http://opendatacommunities.org/id/unitary-authority/peterborough","Peterborough City Council","Adults","Independent Sector Placements","Services",08/09/2017 00:00:00,30142812,7425.6,"Revenue","Mencap","Home Care"
"Peterborough","http://opendatacommunities.org/id/unitary-authority/peterborough","Peterborough City Council","Adults","Independent Sector Placements","Services",08/09/2017 00:00:00,30142814,3369.24,"Revenue","Mencap","Home Care"
"Peterborough","http://opendatacommunities.org/id/unitary-authority/peterborough","Peterborough City Council","Adults","Independent Sector Placements","Services",08/09/2017 00:00:00,30142818,562.4,"Revenue","Mencap","Home Care"
"Peterborough","http://opendatacommunities.org/id/unitary-authority/peterborough","Peterborough City Council","Adults","Independent Sector Placements","Services",08/09/2017 00:00:00,30142828,3964.32,"Revenue","ABBEYGATE REST HOME","Residential Care"
"Peterborough","http://opendatacommunities.org/id/unitary-authority/peterborough","Peterborough City Council","Children's & Safeguarding","Early Help ASC/CSC","Services",08/09/2017 00:00:00,30142860,27900,"Revenue","Barnardo Services Limited","Hired Services"
"Peterborough","http://opendatacommunities.org/id/unitary-authority/peterborough","Peterborough City Council","Commissioning and Commercial Operations","Commissioning","Services",08/09/2017 00:00:00,30142861,6975,"Revenue","Barnardo Services Limited","Contract Services"
"Peterborough","http://opendatacommunities.org/id/unitary-authority/peterborough","Peterborough City Council","Commissioning and Commercial Operations","Clare Lodge","Agency Staff",08/09/2017 00:00:00,30142871,960,"Revenue","Wrixon Care Services","External Temporary Staff"
"Peterborough","http://opendatacommunities.org/id/unitary-authority/peterborough","Peterborough City Council","Commissioning and Commercial Operations","Clare Lodge","Agency Staff",08/09/2017 00:00:00,30142875,2824,"Revenue","Wrixon Care Services","External Temporary Staff"
"Peterborough","http://opendatacommunities.org/id/unitary-authority/peterborough","Peterborough City Council","Commissioning and Commercial Operations","Clare Lodge","Agency Staff",08/09/2017 00:00:00,30142876,1080,"Revenue","Wrixon Care Services","External Temporary Staff"
"Peterborough","http://opendatacommunities.org/id/unitary-authority/peterborough","Peterborough City Council","Commissioning and Commercial Operations","Clare Lodge","Agency Staff",08/09/2017 00:00:00,30142877,1016,"Revenue","Wrixon Care Services","External Temporary Staff"
"Peterborough","http://opendatacommunities.org/id/unitary-authority/peterborough","Peterborough City Council","Commissioning and Commercial Operations","Clare Lodge","Agency Staff",08/09/2017 00:00:00,30142906,531.9,"Revenue","Randstad Care Ltd","External Temporary Staff"
"Peterborough","http://opendatacommunities.org/id/unitary-authority/peterborough","Peterborough City Council","Adults","Independent Sector Placements","Services",08/09/2017 00:00:00,30142960,735.91,"Revenue","Avery House (Peterborough) t/a Brighterkind","Residential Care"
"Peterborough","http://opendatacommunities.org/id/unitary-authority/peterborough","Peterborough City Council","Adults","Independent Sector Placements","Services",08/09/2017 00:00:00,30142961,506.65,"Revenue","Avery House (Peterborough) t/a Brighterkind","Residential Care"
"Peterborough","http://opendatacommunities.org/id/unitary-authority/peterborough","Peterborough City Council","Adults","Independent Sector Placements","Services",08/09/2017 00:00:00,30142962,930.44,"Revenue","Avery House (Peterborough) t/a Brighterkind","Residential Care"
"Peterborough","http://opendatacommunities.org/id/unitary-authority/peterborough","Peterborough City Council","Adults","Independent Sector Placements","Services",08/09/2017 00:00:00,30142963,1820.96,"Revenue","Avery House (Peterborough) t/a Brighterkind","Residential Care"
"Peterborough","http://opendatacommunities.org/id/unitary-authority/peterborough","Peterborough City Council","Adults","Independent Sector Placements","Services",08/09/2017 00:00:00,30142979,939.16,"Revenue","Avery House (Peterborough) t/a Brighterkind","Residential Care"
"Peterborough","http://opendatacommunities.org/id/unitary-authority/peterborough","Peterborough City Council","Adults","Independent Sector Placements","Services",08/09/2017 00:00:00,30142980,994.88,"Revenue","Avery House (Peterborough) t/a Brighterkind","Residential Care"
"Peterborough","http://opendatacommunities.org/id/unitary-authority/peterborough","Peterborough City Council","Adults","Independent Sector Placements","Services",08/09/2017 00:00:00,30142981,1299.08,"Revenue","Avery House (Peterborough) t/a Brighterkind","Residential Care"
"Peterborough","http://opendatacommunities.org/id/unitary-authority/peterborough","Peterborough City Council","Adults","Independent Sector Placements","Services",08/09/2017 00:00:00,30142982,1292.08,"Revenue","Avery House (Peterborough) t/a Brighterkind","Residential Care"
"Peterborough","http://opendatacommunities.org/id/unitary-authority/peterborough","Peterborough City Council","Adults","Independent Sector Placements","Services",08/09/2017 00:00:00,30142983,1235.8,"Revenue","Avery House (Peterborough) t/a Brighterkind","Residential Care"
"Peterborough","http://opendatacommunities.org/id/unitary-authority/peterborough","Peterborough City Council","Adults","Independent Sector Placements","Services",08/09/2017 00:00:00,30142984,1299.08,"Revenue","Avery House (Peterborough) t/a Brighterkind","Residential Care"
"Peterborough","http://opendatacommunities.org/id/unitary-authority/peterborough","Peterborough City Council","Adults","Independent Sector Placements","Services",08/09/2017 00:00:00,30143002,2210.6,"Revenue","Avery House (Peterborough) t/a Brighterkind","Residential Care"
"Peterborough","http://opendatacommunities.org/id/unitary-authority/peterborough","Peterborough City Council","Adults","Independent Sector Placements","Services",08/09/2017 00:00:00,30143064,948,"Revenue","Avery House (Peterborough) t/a Brighterkind","Residential Care"
"Peterborough","http://opendatacommunities.org/id/unitary-authority/peterborough","Peterborough City Council","Adults","Independent Sector Placements","Services",08/09/2017 00:00:00,30143065,1821.88,"Revenue","Avery House (Peterborough) t/a Brighterkind","Residential Care"
"Peterborough","http://opendatacommunities.org/id/unitary-authority/peterborough","Peterborough City Council","Adults","Independent Sector Placements","Services",08/09/2017 00:00:00,30143066,3700,"Revenue","Avery House (Peterborough) t/a Brighterkind","Residential Care"
"Peterborough","http://opendatacommunities.org/id/unitary-authority/peterborough","Peterborough City Council","Adults","Independent Sector Placements","Services",08/09/2017 00:00:00,30143068,2450.24,"Revenue","Avery House (Peterborough) t/a Brighterkind","Residential Care"
"Peterborough","http://opendatacommunities.org/id/unitary-authority/peterborough","Peterborough City Council","Adults","Independent Sector Placements","Services",08/09/2017 00:00:00,30143069,859.2,"Revenue","Avery House (Peterborough) t/a Brighterkind","Residential Care"
"Peterborough","http://opendatacommunities.org/id/unitary-authority/peterborough","Peterborough City Council","Adults","Independent Sector Placements","Services",08/09/2017 00:00:00,30143070,832.32,"Revenue","Avery House (Peterborough) t/a Brighterkind","Residential Care"
"Peterborough","http://opendatacommunities.org/id/unitary-authority/peterborough","Peterborough City Council","Adults","Independent Sector Placements","Services",08/09/2017 00:00:00,30143071,1195.64,"Revenue","Avery House (Peterborough) t/a Brighterkind","Residential Care"
"Peterborough","http://opendatacommunities.org/id/unitary-authority/peterborough","Peterborough City Council","Adults","Independent Sector Placements","Services",08/09/2017 00:00:00,30143072,1284.08,"Revenue","Avery House (Peterborough) t/a Brighterkind","Residential Care"
"Peterborough","http://opendatacommunities.org/id/unitary-authority/peterborough","Peterborough City Council","Adults","Independent Sector Placements","Services",08/09/2017 00:00:00,30143073,999.36,"Revenue","Avery House (Peterborough) t/a Brighterkind","Residential Care"
"Peterborough","http://opendatacommunities.org/id/unitary-authority/peterborough","Peterborough City Council","Adults","Independent Sector Placements","Services",08/09/2017 00:00:00,30143075,1733.04,"Revenue","Avery House (Peterborough) t/a Brighterkind","Residential Care"
"Peterborough","http://opendatacommunities.org/id/unitary-authority/peterborough","Peterborough City Council","Adults","Independent Sector Placements","Services",08/09/2017 00:00:00,30143081,6966.72,"Revenue","Autism Care (UK) Ltd","Residential Care"
"Peterborough","http://opendatacommunities.org/id/unitary-authority/peterborough","Peterborough City Council","Adults","Independent Sector Placements","Services",08/09/2017 00:00:00,30143099,7966.75,"Revenue","NEW BOUNDARIES COMMUNITY SERVICES LTD","Residential Care"
"Peterborough","http://opendatacommunities.org/id/unitary-authority/peterborough","Peterborough City Council","Adults","Independent Sector Placements","Services",08/09/2017 00:00:00,30143115,2440,"Revenue","Thera East Anglia","Day Care"
"Peterborough","http://opendatacommunities.org/id/unitary-authority/peterborough","Peterborough City Council","Adults","Independent Sector Placements","Services",08/09/2017 00:00:00,30143117,1071,"Revenue","Thera East Anglia","Day Care"
"Peterborough","http://opendatacommunities.org/id/unitary-authority/peterborough","Peterborough City Council","Adults","Independent Sector Placements","Services",08/09/2017 00:00:00,30143119,688,"Revenue","Thera East Anglia","Day Care"
"Peterborough","http://opendatacommunities.org/id/unitary-authority/peterborough","Peterborough City Council","Adults","Independent Sector Placements","Services",08/09/2017 00:00:00,30143124,1260,"Revenue","Thera East Anglia","Day Care"
"Peterborough","http://opendatacommunities.org/id/unitary-authority/peterborough","Peterborough City Council","Adults","Independent Sector Placements","Services",08/09/2017 00:00:00,30143126,504,"Revenue","Thera East Anglia","Day Care"
"Peterborough","http://opendatacommunities.org/id/unitary-authority/peterborough","Peterborough City Council","Adults","Independent Sector Placements","Services",08/09/2017 00:00:00,30143128,860,"Revenue","Thera East Anglia","Day Care"
"Peterborough","http://opendatacommunities.org/id/unitary-authority/peterborough","Peterborough City Council","Adults","Independent Sector Placements","Services",08/09/2017 00:00:00,30143130,2440,"Revenue","Thera East Anglia","Day Care"
"Peterborough","http://opendatacommunities.org/id/unitary-authority/peterborough","Peterborough City Council","Adults","Independent Sector Placements","Services",08/09/2017 00:00:00,30143133,1464,"Revenue","Thera East Anglia","Day Care"
"Peterborough","http://opendatacommunities.org/id/unitary-authority/peterborough","Peterborough City Council","Adults","Independent Sector Placements","Services",08/09/2017 00:00:00,30143143,1260,"Revenue","Thera East Anglia","Day Care"
"Peterborough","http://opendatacommunities.org/id/unitary-authority/peterborough","Peterborough City Council","Adults","Independent Sector Placements","Services",08/09/2017 00:00:00,30143144,2440,"Revenue","Thera East Anglia","Day Care"
"Peterborough","http://opendatacommunities.org/id/unitary-authority/peterborough","Peterborough City Council","Adults","Independent Sector Placements","Services",08/09/2017 00:00:00,30143145,1260,"Revenue","Thera East Anglia","Day Care"
"Peterborough","http://opendatacommunities.org/id/unitary-authority/peterborough","Peterborough City Council","Adults","Independent Sector Placements","Services",08/09/2017 00:00:00,30143147,504,"Revenue","Thera East Anglia","Day Care"
"Peterborough","http://opendatacommunities.org/id/unitary-authority/peterborough","Peterborough City Council","Adults","Independent Sector Placements","Services",08/09/2017 00:00:00,30143149,2440,"Revenue","Thera East Anglia","Day Care"
"Peterborough","http://opendatacommunities.org/id/unitary-authority/peterborough","Peterborough City Council","Adults","Independent Sector Placements","Services",08/09/2017 00:00:00,30143150,3515,"Revenue","Thera East Anglia","Day Care"
"Peterborough","http://opendatacommunities.org/id/unitary-authority/peterborough","Peterborough City Council","Adults","Independent Sector Placements","Services",08/09/2017 00:00:00,30143153,2440,"Revenue","Thera East Anglia","Day Care"
"Peterborough","http://opendatacommunities.org/id/unitary-authority/peterborough","Peterborough City Council","Adults","Independent Sector Placements","Services",08/09/2017 00:00:00,30143154,1952,"Revenue","Thera East Anglia","Day Care"
"Peterborough","http://opendatacommunities.org/id/unitary-authority/peterborough","Peterborough City Council","Adults","Independent Sector Placements","Services",08/09/2017 00:00:00,30143155,2440,"Revenue","Thera East Anglia","Day Care"
"Peterborough","http://opendatacommunities.org/id/unitary-authority/peterborough","Peterborough City Council","Adults","Independent Sector Placements","Services",08/09/2017 00:00:00,30143158,1260,"Revenue","Thera East Anglia","Day Care"
"Peterborough","http://opendatacommunities.org/id/unitary-authority/peterborough","Peterborough City Council","Commissioning and Commercial Operations","Clare Lodge","Agency Staff",08/09/2017 00:00:00,30143278,2048,"Revenue","Wrixon Care Services","External Temporary Staff"
"Peterborough","http://opendatacommunities.org/id/unitary-authority/peterborough","Peterborough City Council","Adults","Independent Sector Placements","Services",08/09/2017 00:00:00,30143424,3785.4,"Revenue","Community Care Solutions Ltd","Residential Care"
"Peterborough","http://opendatacommunities.org/id/unitary-authority/peterborough","Peterborough City Council","Adults","Independent Sector Placements","Services",08/09/2017 00:00:00,30143439,2424,"Revenue","The Regard Partnership Limited","Residential Care"
"Peterborough","http://opendatacommunities.org/id/unitary-authority/peterborough","Peterborough City Council","Adults","Independent Sector Placements","Services",08/09/2017 00:00:00,30143443,832.32,"Revenue","Avery House (Peterborough) t/a Brighterkind","Residential Care"
"Peterborough","http://opendatacommunities.org/id/unitary-authority/peterborough","Peterborough City Council","Adults","Independent Sector Placements","Services",08/09/2017 00:00:00,30143447,1013.32,"Revenue","K2 CARE LTD","Home Care"
"Peterborough","http://opendatacommunities.org/id/unitary-authority/peterborough","Peterborough City Council","Adults","Independent Sector Placements","Services",08/09/2017 00:00:00,30143449,501.6,"Revenue","K2 CARE LTD","Home Care"
"Peterborough","http://opendatacommunities.org/id/unitary-authority/peterborough","Peterborough City Council","Adults","Block Contracts","Third Party Payments",08/09/2017 00:00:00,30143484,2305.92,"Revenue","Park Vista Care Home","Third Party Payments - Contract"
"Peterborough","http://opendatacommunities.org/id/unitary-authority/peterborough","Peterborough City Council","Adults","Block Contracts","Third Party Payments",08/09/2017 00:00:00,30143485,2460,"Revenue","Park Vista Care Home","Third Party Payments - Contract"
"Peterborough","http://opendatacommunities.org/id/unitary-authority/peterborough","Peterborough City Council","Adults","Block Contracts","Third Party Payments",08/09/2017 00:00:00,30143486,2460,"Revenue","Park Vista Care Home","Third Party Payments - Contract"
"Peterborough","http://opendatacommunities.org/id/unitary-authority/peterborough","Peterborough City Council","Adults","Block Contracts","Third Party Payments",08/09/2017 00:00:00,30143488,2305.92,"Revenue","Park Vista Care Home","Third Party Payments - Contract"
"Peterborough","http://opendatacommunities.org/id/unitary-authority/peterborough","Peterborough City Council","Adults","Independent Sector Placements","Services",08/09/2017 00:00:00,30143602,2272.6,"Revenue","K2 CARE LTD","Home Care"
"Peterborough","http://opendatacommunities.org/id/unitary-authority/peterborough","Peterborough City Council","Adults","Independent Sector Placements","Services",08/09/2017 00:00:00,30143604,2436.56,"Revenue","K2 CARE LTD","Home Care"
"Peterborough","http://opendatacommunities.org/id/unitary-authority/peterborough","Peterborough City Council","Adults","Independent Sector Placements","Services",08/09/2017 00:00:00,30143607,597.37,"Revenue","K2 CARE LTD","Home Care"
"Peterborough","http://opendatacommunities.org/id/unitary-authority/peterborough","Peterborough City Council","Adults","Independent Sector Placements","Services",08/09/2017 00:00:00,30143692,1174.16,"Revenue","Athena","Residential Care"
"Peterborough","http://opendatacommunities.org/id/unitary-authority/peterborough","Peterborough City Council","Adults","Independent Sector Placements","Services",08/09/2017 00:00:00,30143772,1942.4,"Revenue","Benell Care Services Ltd","Residential Care"
"Peterborough","http://opendatacommunities.org/id/unitary-authority/peterborough","Peterborough City Council","Adults","Independent Sector Placements","Services",08/09/2017 00:00:00,30143823,3400,"Revenue","EXCELCARE GLENNFIELD HOUSE","Residential Care"
"Peterborough","http://opendatacommunities.org/id/unitary-authority/peterborough","Peterborough City Council","Adults","Independent Sector Placements","Services",08/09/2017 00:00:00,30143824,3400,"Revenue","EXCELCARE GLENNFIELD HOUSE","Residential Care"
"Peterborough","http://opendatacommunities.org/id/unitary-authority/peterborough","Peterborough City Council","Adults","Independent Sector Placements","Services",08/09/2017 00:00:00,30143825,1811.24,"Revenue","Excelcare Aliwal Manor","Residential Care"
"Peterborough","http://opendatacommunities.org/id/unitary-authority/peterborough","Peterborough City Council","Adults","Independent Sector Placements","Services",08/09/2017 00:00:00,30143826,1884.08,"Revenue","The Cedars Bourne Care Home","Residential Care"
"Peterborough","http://opendatacommunities.org/id/unitary-authority/peterborough","Peterborough City Council","Financial Services","Finance","Agency Staff",08/09/2017 00:00:00,30143886,679.32,"Revenue","Reed Specialist Recruitment Limited","External Temporary Staff"
"Peterborough","http://opendatacommunities.org/id/unitary-authority/peterborough","Peterborough City Council","Peterborough Highway Services","Network and Traffic Management","Services",08/09/2017 00:00:00,30143997,6000,"Revenue","Siemens Plc","Computer Software"
"Peterborough","http://opendatacommunities.org/id/unitary-authority/peterborough","Peterborough City Council","Adults","Independent Sector Placements","Services",08/09/2017 00:00:00,30144005,3720,"Revenue","EXCELCARE GLENNFIELD HOUSE","Residential Care"
"Peterborough","http://opendatacommunities.org/id/unitary-authority/peterborough","Peterborough City Council","Adults","Block Contracts","Third Party Payments",08/09/2017 00:00:00,30144006,1996.92,"Revenue","Park Vista Care Home","Third Party Payments - Contract"
"Peterborough","http://opendatacommunities.org/id/unitary-authority/peterborough","Peterborough City Council","Adults","Independent Sector Placements","Services",08/09/2017 00:00:00,30144007,3200,"Revenue","EXCELCARE GLENNFIELD HOUSE","Residential Care"
"Peterborough","http://opendatacommunities.org/id/unitary-authority/peterborough","Peterborough City Council","Adults","Independent Sector Placements","Services",08/09/2017 00:00:00,30144008,1680,"Revenue","EXCELCARE GLENNFIELD HOUSE","Residential Care"
"Peterborough","http://opendatacommunities.org/id/unitary-authority/peterborough","Peterborough City Council","HR","HR","Services",08/09/2017 00:00:00,30144089,1320,"Revenue","Disclosure and Barring Service","Criminal Record Check"
"Peterborough","http://opendatacommunities.org/id/unitary-authority/peterborough","Peterborough City Council","Corporate Property","Office Accomodation","Services",08/09/2017 00:00:00,30144207,6342,"Revenue","Cooler Aid Ltd","Hired Services"
"Peterborough","http://opendatacommunities.org/id/unitary-authority/peterborough","Peterborough City Council","Adults","Housing","Services",08/09/2017 00:00:00,30144418,525,"Revenue","Eastfield Guesthouse","Homelessness Bed & Breakfast Costs"
"Peterborough","http://opendatacommunities.org/id/unitary-authority/peterborough","Peterborough City Council","Adults","Housing","Services",08/09/2017 00:00:00,30144423,507.5,"Revenue","Eastfield Guesthouse","Homelessness Bed & Breakfast Costs"
"Peterborough","http://opendatacommunities.org/id/unitary-authority/peterborough","Peterborough City Council","Adults","Housing","Services",08/09/2017 00:00:00,30144425,507.5,"Revenue","Eastfield Guesthouse","Homelessness Bed & Breakfast Costs"
"Peterborough","http://opendatacommunities.org/id/unitary-authority/peterborough","Peterborough City Council","Adults","Housing","Services",08/09/2017 00:00:00,30144431,507.5,"Revenue","Eastfield Guesthouse","Homelessness Bed & Breakfast Costs"
"Peterborough","http://opendatacommunities.org/id/unitary-authority/peterborough","Peterborough City Council","Adults","Housing","Services",08/09/2017 00:00:00,30144435,507.5,"Revenue","Eastfield Guesthouse","Homelessness Bed & Breakfast Costs"
"Peterborough","http://opendatacommunities.org/id/unitary-authority/peterborough","Peterborough City Council","Adults","Housing","Services",08/09/2017 00:00:00,30144448,525,"Revenue","Eastfield Guesthouse","Homelessness Bed & Breakfast Costs"
"Peterborough","http://opendatacommunities.org/id/unitary-authority/peterborough","Peterborough City Council","Adults","Housing","Services",08/09/2017 00:00:00,30144452,525,"Revenue","Eastfield Guesthouse","Homelessness Bed & Breakfast Costs"
"Peterborough","http://opendatacommunities.org/id/unitary-authority/peterborough","Peterborough City Council","Peterborough Highway Services","Network and Traffic Management","Services",08/09/2017 00:00:00,30144634,11044.5,"Revenue","Dynniq UK Ltd","Computer Software"
"Peterborough","http://opendatacommunities.org/id/unitary-authority/peterborough","Peterborough City Council","Adults","Independent Sector Placements","Services",08/09/2017 00:00:00,30144637,2846.65,"Revenue","K2 CARE LTD","Home Care"
"Peterborough","http://opendatacommunities.org/id/unitary-authority/peterborough","Peterborough City Council","Adults","Independent Sector Placements","Services",08/09/2017 00:00:00,30144638,1389.67,"Revenue","K2 CARE LTD","Home Care"
"Peterborough","http://opendatacommunities.org/id/unitary-authority/peterborough","Peterborough City Council","Corporate","Corporate","Non Revenue",08/09/2017 00:00:00,30144770,753,"Balance Sheet","Harris, Mr Paul","Hired Services"
"Peterborough","http://opendatacommunities.org/id/unitary-authority/peterborough","Peterborough City Council","HR","HR","Services",08/09/2017 00:00:00,30144789,21753.53,"Revenue","Edenred","Childcare"
"Peterborough","http://opendatacommunities.org/id/unitary-authority/peterborough","Peterborough City Council","Education","Pupil Referral Unit","Agency Staff",08/09/2017 00:00:00,30144848,552,"Revenue","t/a Travail Education","Supply Teachers"
"Peterborough","http://opendatacommunities.org/id/unitary-authority/peterborough","Peterborough City Council","Adults","Independent Sector Placements","Services",08/09/2017 00:00:00,30144883,532.53,"Revenue","ABOUT ME CARE AND SUPPORT LTD","Home Care"
"Peterborough","http://opendatacommunities.org/id/unitary-authority/peterborough","Peterborough City Council","Adults","Independent Sector Placements","Services",08/09/2017 00:00:00,30144884,1575.21,"Revenue","ABOUT ME CARE AND SUPPORT LTD","Home Care"
"Peterborough","http://opendatacommunities.org/id/unitary-authority/peterborough","Peterborough City Council","Adults","Independent Sector Placements","Services",08/09/2017 00:00:00,30144885,662.3,"Revenue","ABOUT ME CARE AND SUPPORT LTD","Home Care"
"Peterborough","http://opendatacommunities.org/id/unitary-authority/peterborough","Peterborough City Council","Adults","Independent Sector Placements","Services",08/09/2017 00:00:00,30144886,1861.6,"Revenue","ABOUT ME CARE AND SUPPORT LTD","Home Care"
"Peterborough","http://opendatacommunities.org/id/unitary-authority/peterborough","Peterborough City Council","Adults","Independent Sector Placements","Services",08/09/2017 00:00:00,30144887,2260.01,"Revenue","ABOUT ME CARE AND SUPPORT LTD","Home Care"
"Peterborough","http://opendatacommunities.org/id/unitary-authority/peterborough","Peterborough City Council","Adults","Independent Sector Placements","Services",08/09/2017 00:00:00,30144889,2577.6,"Revenue","ABOUT ME CARE AND SUPPORT LTD","Home Care"
"Peterborough","http://opendatacommunities.org/id/unitary-authority/peterborough","Peterborough City Council","Adults","Independent Sector Placements","Services",08/09/2017 00:00:00,30144890,2148.01,"Revenue","ABOUT ME CARE AND SUPPORT LTD","Home Care"
"Peterborough","http://opendatacommunities.org/id/unitary-authority/peterborough","Peterborough City Council","Adults","Independent Sector Placements","Services",08/09/2017 00:00:00,30144891,1825.81,"Revenue","ABOUT ME CARE AND SUPPORT LTD","Home Care"
"Peterborough","http://opendatacommunities.org/id/unitary-authority/peterborough","Peterborough City Council","Adults","Independent Sector Placements","Services",08/09/2017 00:00:00,30144893,859.21,"Revenue","ABOUT ME CARE AND SUPPORT LTD","Home Care"
"Peterborough","http://opendatacommunities.org/id/unitary-authority/peterborough","Peterborough City Council","Adults","Independent Sector Placements","Services",08/09/2017 00:00:00,30144894,1127.7,"Revenue","ABOUT ME CARE AND SUPPORT LTD","Home Care"
"Peterborough","http://opendatacommunities.org/id/unitary-authority/peterborough","Peterborough City Council","Adults","Independent Sector Placements","Services",08/09/2017 00:00:00,30144895,1324.86,"Revenue","ABOUT ME CARE AND SUPPORT LTD","Home Care"
"Peterborough","http://opendatacommunities.org/id/unitary-authority/peterborough","Peterborough City Council","Adults","Housing","Services",08/09/2017 00:00:00,30144981,570,"Revenue","Accent Housing Limited","Financial Assistance"
"Peterborough","http://opendatacommunities.org/id/unitary-authority/peterborough","Peterborough City Council","Adults","Independent Sector Placements","Services",08/09/2017 00:00:00,30144982,520.54,"Revenue","Lifestylecare PLC (The Grange)","Residential Care"
"Peterborough","http://opendatacommunities.org/id/unitary-authority/peterborough","Peterborough City Council","Adults","Independent Sector Placements","Services",08/09/2017 00:00:00,30144984,1821.88,"Revenue","Lifestylecare PLC (The Grange)","Residential Care"
"Peterborough","http://opendatacommunities.org/id/unitary-authority/peterborough","Peterborough City Council","Adults","Independent Sector Placements","Services",08/09/2017 00:00:00,30144985,1821.88,"Revenue","Lifestylecare PLC (The Grange)","Residential Care"
"Peterborough","http://opendatacommunities.org/id/unitary-authority/peterborough","Peterborough City Council","Adults","Independent Sector Placements","Services",08/09/2017 00:00:00,30144986,1301.34,"Revenue","Lifestylecare PLC (The Grange)","Residential Care"
"Peterborough","http://opendatacommunities.org/id/unitary-authority/peterborough","Peterborough City Council","Adults","Independent Sector Placements","Services",08/09/2017 00:00:00,30144987,2114.57,"Revenue","Lifestylecare PLC (The Grange)","Residential Care"
"Peterborough","http://opendatacommunities.org/id/unitary-authority/peterborough","Peterborough City Council","Corporate","Corporate","Non Revenue",08/09/2017 00:00:00,30145041,2573.55,"Capital","Gaswise Services Ltd","Grant Payment"
"Peterborough","http://opendatacommunities.org/id/unitary-authority/peterborough","Peterborough City Council","Corporate","Corporate","Non Revenue",08/09/2017 00:00:00,30145043,4923,"Capital","Allworks Home Improvements Ltd","Grant Payment"
"Peterborough","http://opendatacommunities.org/id/unitary-authority/peterborough","Peterborough City Council","Corporate","Corporate","Non Revenue",08/09/2017 00:00:00,30145044,12109.8,"Capital","Casbon Building Services","Grant Payment"
"Peterborough","http://opendatacommunities.org/id/unitary-authority/peterborough","Peterborough City Council","Corporate","Corporate","Non Revenue",08/09/2017 00:00:00,30145045,5543,"Capital","Casbon Building Services","Grant Payment"
"Peterborough","http://opendatacommunities.org/id/unitary-authority/peterborough","Peterborough City Council","Adults","Independent Sector Placements","Services",08/09/2017 00:00:00,30145067,976,"Revenue","THE HELPING HANDS GROUP","Day Care"
"Peterborough","http://opendatacommunities.org/id/unitary-authority/peterborough","Peterborough City Council","Adults","Independent Sector Placements","Services",08/09/2017 00:00:00,30145068,976,"Revenue","THE HELPING HANDS GROUP","Day Care"
"Peterborough","http://opendatacommunities.org/id/unitary-authority/peterborough","Peterborough City Council","Adults","Independent Sector Placements","Services",08/09/2017 00:00:00,30145073,572.26,"Revenue","Atlas Care Services Ltd","Home Care"
"Peterborough","http://opendatacommunities.org/id/unitary-authority/peterborough","Peterborough City Council","Adults","Independent Sector Placements","Services",08/09/2017 00:00:00,30145086,4871.43,"Revenue","Askham Village Community Ltd","Residential Care"
"Peterborough","http://opendatacommunities.org/id/unitary-authority/peterborough","Peterborough City Council","City Servs & Communications","Markets, Tourism & Events","Tools, Equipment, Furniture & Materials",08/09/2017 00:00:00,30145105,800,"Revenue","R J Mason Blacksmith & Farrier","Equipment Hire"
"Peterborough","http://opendatacommunities.org/id/unitary-authority/peterborough","Peterborough City Council","City Servs & Communications","Markets, Tourism & Events","Tools, Equipment, Furniture & Materials",08/09/2017 00:00:00,30145108,720,"Revenue","R J Mason Blacksmith & Farrier","Equipment Hire"
"Peterborough","http://opendatacommunities.org/id/unitary-authority/peterborough","Peterborough City Council","Children's & Safeguarding","Children's Social Care","Agency Staff",08/09/2017 00:00:00,30145118,1560.65,"Revenue","Sanctuary Personnel Ltd","External Temporary Staff"
"Peterborough","http://opendatacommunities.org/id/unitary-authority/peterborough","Peterborough City Council","Legal & Democratic","Legal Services","Services",08/09/2017 00:00:00,30145144,6307,"Revenue","Thomson Reuters UK Limited","Subscriptions"
"Peterborough","http://opendatacommunities.org/id/unitary-authority/peterborough","Peterborough City Council","Legal & Democratic","Elections","Services",08/09/2017 00:00:00,30145146,10659,"Revenue","Thomson Reuters UK Limited","Subscriptions"
"Peterborough","http://opendatacommunities.org/id/unitary-authority/peterborough","Peterborough City Council","Adults","Independent Sector Placements","Services",08/09/2017 00:00:00,30145152,630,"Revenue","Longueville Court (Barchester)","Residential Care"
"Peterborough","http://opendatacommunities.org/id/unitary-authority/peterborough","Peterborough City Council","Adults","Independent Sector Placements","Services",08/09/2017 00:00:00,30145162,4000,"Revenue","Longueville Court (Barchester)","Residential Care"
"Peterborough","http://opendatacommunities.org/id/unitary-authority/peterborough","Peterborough City Council","Adults","Independent Sector Placements","Services",08/09/2017 00:00:00,30145211,2031.34,"Revenue","Atlas Care Services Ltd","Home Care"
"Peterborough","http://opendatacommunities.org/id/unitary-authority/peterborough","Peterborough City Council","Adults","Independent Sector Placements","Services",08/09/2017 00:00:00,30145212,3047.52,"Revenue","Atlas Care Services Ltd","Home Care"
"Peterborough","http://opendatacommunities.org/id/unitary-authority/peterborough","Peterborough City Council","Adults","Independent Sector Placements","Services",08/09/2017 00:00:00,30145222,661.98,"Revenue","Atlas Care Services Ltd","Home Care"
"Peterborough","http://opendatacommunities.org/id/unitary-authority/peterborough","Peterborough City Council","Adults","Independent Sector Placements","Services",08/09/2017 00:00:00,30145259,2444.38,"Revenue","Avery House (Peterborough) t/a Brighterkind","Residential Care"
"Peterborough","http://opendatacommunities.org/id/unitary-authority/peterborough","Peterborough City Council","Adults","Independent Sector Placements","Services",08/09/2017 00:00:00,30145260,1115.38,"Revenue","Avery House (Peterborough) t/a Brighterkind","Residential Care"
"Peterborough","http://opendatacommunities.org/id/unitary-authority/peterborough","Peterborough City Council","Adults","Independent Sector Placements","Services",08/09/2017 00:00:00,30145261,2451.88,"Revenue","Avery House (Peterborough) t/a Brighterkind","Residential Care"
"Peterborough","http://opendatacommunities.org/id/unitary-authority/peterborough","Peterborough City Council","Adults","Independent Sector Placements","Services",08/09/2017 00:00:00,30145262,1107.88,"Revenue","Avery House (Peterborough) t/a Brighterkind","Residential Care"
"Peterborough","http://opendatacommunities.org/id/unitary-authority/peterborough","Peterborough City Council","Adults","Independent Sector Placements","Services",08/09/2017 00:00:00,30145263,2451.88,"Revenue","Avery House (Peterborough) t/a Brighterkind","Residential Care"
"Peterborough","http://opendatacommunities.org/id/unitary-authority/peterborough","Peterborough City Council","Adults","Independent Sector Placements","Services",08/09/2017 00:00:00,30145264,1107.88,"Revenue","Avery House (Peterborough) t/a Brighterkind","Residential Care"
"Peterborough","http://opendatacommunities.org/id/unitary-authority/peterborough","Peterborough City Council","Adults","Independent Sector Placements","Services",08/09/2017 00:00:00,30145268,2451.88,"Revenue","Avery House (Peterborough) t/a Brighterkind","Residential Care"
"Peterborough","http://opendatacommunities.org/id/unitary-authority/peterborough","Peterborough City Council","Adults","Independent Sector Placements","Services",08/09/2017 00:00:00,30145271,2451.88,"Revenue","Avery House (Peterborough) t/a Brighterkind","Residential Care"
"Peterborough","http://opendatacommunities.org/id/unitary-authority/peterborough","Peterborough City Council","Adults","Independent Sector Placements","Services",08/09/2017 00:00:00,30145273,1107.88,"Revenue","Avery House (Peterborough) t/a Brighterkind","Residential Care"
"Peterborough","http://opendatacommunities.org/id/unitary-authority/peterborough","Peterborough City Council","Education","Pupil Referral Unit","Services",08/09/2017 00:00:00,30145277,1168.5,"Revenue","NACRO","Courses And Seminars"
"Peterborough","http://opendatacommunities.org/id/unitary-authority/peterborough","Peterborough City Council","Adults","Independent Sector Placements","Services",08/09/2017 00:00:00,30145281,2730.75,"Revenue","Cambridgeshirehomecare","Home Care"
"Peterborough","http://opendatacommunities.org/id/unitary-authority/peterborough","Peterborough City Council","Adults","Independent Sector Placements","Services",08/09/2017 00:00:00,30145283,1637.64,"Revenue","Avery House (Peterborough) t/a Brighterkind","Residential Care"
"Peterborough","http://opendatacommunities.org/id/unitary-authority/peterborough","Peterborough City Council","Adults","Independent Sector Placements","Services",08/09/2017 00:00:00,30145284,1637.64,"Revenue","Avery House (Peterborough) t/a Brighterkind","Residential Care"
"Peterborough","http://opendatacommunities.org/id/unitary-authority/peterborough","Peterborough City Council","Adults","Independent Sector Placements","Services",08/09/2017 00:00:00,30145285,1536.55,"Revenue","Avery House (Peterborough) t/a Brighterkind","Residential Care"
"Peterborough","http://opendatacommunities.org/id/unitary-authority/peterborough","Peterborough City Council","Adults","Independent Sector Placements","Services",08/09/2017 00:00:00,30145286,1526.32,"Revenue","Avery House (Peterborough) t/a Brighterkind","Residential Care"
"Peterborough","http://opendatacommunities.org/id/unitary-authority/peterborough","Peterborough City Council","Adults","Independent Sector Placements","Services",08/09/2017 00:00:00,30145288,1526.32,"Revenue","Avery House (Peterborough) t/a Brighterkind","Residential Care"
"Peterborough","http://opendatacommunities.org/id/unitary-authority/peterborough","Peterborough City Council","Adults","Independent Sector Placements","Services",08/09/2017 00:00:00,30145289,1526.32,"Revenue","Avery House (Peterborough) t/a Brighterkind","Residential Care"
